{"text_format":"1","workbook":"xlsx","n_sheets":4,"sheets":["К.П. МАЙ 2020","К.П. ИЮНЬ 2020 ","К.П. СПИСОК СОТРУДНИКОВ","И.Б. ИЮНЬ 2020 "],"not_rendered":{"charts":0,"images":0,"macros":0,"external_links":4,"defined_names":42,"comments":0,"pivot_tables":0},"unopened":[],"bounds":{"document_bytes":16777216,"sheet_cells":100000,"rows_first":2000,"rows_last":500,"rows_between":2000,"halvings":0,"cell_chars":16384,"cell_head_chars":4096},"cells_cut":0,"cells_raw":0,"read":"whole","date_system":"1900"}

{"sheet":"К.П. МАЙ 2020","index":0,"n_rows":95,"n_cols":257,"rows_kept":95,"cut":false,"hidden":false,"merged":[[90,64,90,69],[90,58,90,63],[90,52,90,57],[90,46,90,51],[90,40,90,45],[90,34,90,39],[90,28,90,33],[90,23,91,27],[91,160,91,165],[91,154,91,159],[91,148,91,153],[91,142,91,147],[91,136,91,141],[91,130,91,135],[91,76,91,81],[91,82,91,87],[91,88,91,93],[91,94,91,99],[91,100,91,105],[91,106,91,111],[91,112,91,117],[91,118,91,123],[91,124,91,129],[91,28,91,33],[91,34,91,39],[91,40,91,45],[91,46,91,51],[91,52,91,57],[91,58,91,63],[90,88,90,93],[90,94,90,99],[26,214,27,220],[32,214,33,220],[38,214,39,220],[38,221,39,221],[44,214,45,220],[50,214,51,220],[56,214,57,220],[62,214,63,220],[68,214,69,220],[74,214,75,220],[82,214,83,220],[88,214,89,220],[90,112,90,117],[90,106,90,111],[90,100,90,105],[20,202,20,207],[20,106,20,111],[20,112,20,117],[20,118,20,123],[23,202,23,207],[20,124,20,129],[20,172,20,177],[20,178,20,183],[20,184,20,189],[20,190,20,195],[20,196,20,201],[20,130,20,135],[20,136,20,141],[20,142,20,147],[20,148,20,153],[20,154,20,159],[20,160,20,165],[2,0,2,2],[1,0,1,2],[11,210,11,227],[0,241,0,242],[1,241,1,242],[2,241,2,242],[3,241,3,242],[12,211,12,219],[18,46,19,51],[18,52,19,57],[18,58,19,63],[18,64,19,69],[18,70,19,75],[18,76,19,81],[18,0,19,4],[18,5,19,22],[18,23,19,27],[18,28,19,33],[18,34,19,39],[18,40,19,45],[4,241,4,242],[7,0,7,76],[11,235,12,235],[14,0,14,227],[15,0,15,227],[16,0,16,227],[19,214,19,228],[18,160,19,165],[18,166,19,171],[18,172,19,177],[18,178,19,183],[18,214,18,232],[3,0,3,2],[18,184,19,189],[18,118,19,123],[18,124,19,129],[18,130,19,135],[18,136,19,141],[18,142,19,147],[18,148,19,153],[18,82,19,87],[18,88,19,93],[18,94,19,99],[18,100,19,105],[22,58,22,63],[22,64,22,69],[22,202,22,207],[22,100,22,105],[22,106,22,111],[22,112,22,117],[22,70,22,75],[20,40,20,45],[20,46,20,51],[20,52,20,57],[22,40,22,45],[23,106,23,111],[22,172,22,177],[22,178,22,183],[22,130,22,135],[22,136,22,141],[23,154,23,159],[23,160,23,165],[23,166,23,171],[23,172,23,177],[23,178,23,183],[23,112,23,117],[22,118,22,123],[22,124,22,129],[22,166,22,171],[22,184,22,189],[22,82,22,87],[22,94,22,99],[22,88,22,93],[13,250,13,254],[14,250,14,254],[15,250,15,254],[16,250,16,254],[17,250,17,254],[18,250,18,254],[19,250,19,254],[21,94,21,99],[21,100,21,105],[21,106,21,111],[21,112,21,117],[21,118,21,123],[21,124,21,129],[21,130,21,135],[21,136,21,141],[21,142,21,147],[18,106,19,111],[18,112,19,117],[20,94,20,99],[20,250,20,254],[21,250,21,254],[18,190,19,195],[18,196,19,201],[18,202,19,207],[22,221,23,228],[22,190,22,195],[22,196,22,201],[22,142,22,147],[22,148,22,153],[22,154,22,159],[22,160,22,165],[23,208,23,213],[23,190,23,195],[23,196,23,201],[18,208,19,213],[18,154,19,159],[22,23,23,27],[22,28,22,33],[22,46,22,51],[20,28,20,33],[23,28,23,33],[23,34,23,39],[23,40,23,45],[23,46,23,51],[21,148,21,153],[21,154,21,159],[21,160,21,165],[21,166,21,171],[21,172,21,177],[21,178,21,183],[21,184,21,189],[20,23,21,27],[20,100,20,105],[20,34,20,39],[23,184,23,189],[23,118,23,123],[23,52,23,57],[23,58,23,63],[23,64,23,69],[23,70,23,75],[23,76,23,81],[20,214,21,220],[21,28,21,33],[21,34,21,39],[21,40,21,45],[21,46,21,51],[21,52,21,57],[21,58,21,63],[21,64,21,69],[21,70,21,75],[21,76,21,81],[21,82,21,87],[21,88,21,93],[21,202,21,207],[21,208,21,213],[21,190,21,195],[21,196,21,201],[22,208,22,213],[22,214,23,220],[23,124,23,129],[23,130,23,135],[23,136,23,141],[23,142,23,147],[23,148,23,153],[23,82,23,87],[23,88,23,93],[23,94,23,99],[23,100,23,105],[23,250,23,254],[22,250,22,254],[29,28,29,33],[29,34,29,39],[29,40,29,45],[29,46,29,51],[29,52,29,57],[29,58,29,63],[29,64,29,69],[29,70,29,75],[29,76,29,81],[29,82,29,87],[29,88,29,93],[29,94,29,99],[29,100,29,105],[29,106,29,111],[20,208,20,213],[20,166,20,171],[20,221,20,228],[22,52,22,57],[22,76,22,81],[22,34,22,39],[20,58,20,63],[20,64,20,69],[20,70,20,75],[20,76,20,81],[20,82,20,87],[20,88,20,93],[26,28,26,33],[29,166,29,171],[27,160,27,165],[27,166,27,171],[38,208,38,213],[38,124,38,129],[38,130,38,135],[38,136,38,141],[38,142,38,147],[38,148,38,153],[38,154,38,159],[38,160,38,165],[38,166,38,171],[38,172,38,177],[27,28,27,33],[38,34,38,39],[38,40,38,45],[38,46,38,51],[38,52,38,57],[38,58,38,63],[29,172,29,177],[29,178,29,183],[29,184,29,189],[29,190,29,195],[29,196,29,201],[29,202,29,207],[29,208,29,213],[29,112,29,117],[29,118,29,123],[29,124,29,129],[29,130,29,135],[29,136,29,141],[29,142,29,147],[27,172,27,177],[27,178,27,183],[29,160,29,165],[26,34,26,39],[26,40,26,45],[27,34,27,39],[27,40,27,45],[26,46,26,51],[26,52,26,57],[26,58,26,63],[26,64,26,69],[26,70,26,75],[26,23,27,27],[38,178,38,183],[38,184,38,189],[29,148,29,153],[29,154,29,159],[26,136,26,141],[26,142,26,147],[26,148,26,153],[26,154,26,159],[26,160,26,165],[26,166,26,171],[26,172,26,177],[26,178,26,183],[26,76,26,81],[26,82,26,87],[26,88,26,93],[26,94,26,99],[26,100,26,105],[26,106,26,111],[26,112,26,117],[26,118,26,123],[26,124,26,129],[31,178,31,183],[39,82,39,87],[39,88,39,93],[27,184,27,189],[27,190,27,195],[27,196,27,201],[27,202,27,207],[27,208,27,213],[26,184,26,189],[26,190,26,195],[26,196,26,201],[26,202,26,207],[26,208,26,213],[27,46,27,51],[27,52,27,57],[27,58,27,63],[27,64,27,69],[27,70,27,75],[27,76,27,81],[27,82,27,87],[27,88,27,93],[27,94,27,99],[27,100,27,105],[27,106,27,111],[27,112,27,117],[27,118,27,123],[27,124,27,129],[27,130,27,135],[27,136,27,141],[27,142,27,147],[27,148,27,153],[27,154,27,159],[26,130,26,135],[39,190,39,195],[39,196,39,201],[39,94,39,99],[39,100,39,105],[39,106,39,111],[39,112,39,117],[39,118,39,123],[39,124,39,129],[39,130,39,135],[39,136,39,141],[39,142,39,147],[38,23,39,27],[39,28,39,33],[39,34,39,39],[39,40,39,45],[39,46,39,51],[39,52,39,57],[39,58,39,63],[38,70,38,75],[38,76,38,81],[38,82,38,87],[38,88,38,93],[38,94,38,99],[38,100,38,105],[38,106,38,111],[38,112,38,117],[38,118,38,123],[38,28,38,33],[39,64,39,69],[39,70,39,75],[38,64,38,69],[39,76,39,81],[41,172,41,177],[41,178,41,183],[39,202,39,207],[39,208,39,213],[41,28,41,33],[41,34,41,39],[41,40,41,45],[41,46,41,51],[41,52,41,57],[41,58,41,63],[41,64,41,69],[41,70,41,75],[41,76,41,81],[41,82,41,87],[41,88,41,93],[41,94,41,99],[41,100,41,105],[41,106,41,111],[41,112,41,117],[41,118,41,123],[41,124,41,129],[41,130,41,135],[41,136,41,141],[41,142,41,147],[41,148,41,153],[39,148,39,153],[39,154,39,159],[39,160,39,165],[39,166,39,171],[39,172,39,177],[39,178,39,183],[39,184,39,189],[24,148,24,153],[24,154,24,159],[24,160,24,165],[24,166,24,171],[24,172,24,177],[24,178,24,183],[24,184,24,189],[41,208,41,213],[20,5,25,22],[20,0,25,4],[24,23,25,27],[24,28,24,33],[24,34,24,39],[24,40,24,45],[24,46,24,51],[24,52,24,57],[24,58,24,63],[24,64,24,69],[24,70,24,75],[24,76,24,81],[24,82,24,87],[24,88,24,93],[24,94,24,99],[24,100,24,105],[24,106,24,111],[24,112,24,117],[24,118,24,123],[24,124,24,129],[24,130,24,135],[41,154,41,159],[41,160,41,165],[41,166,41,171],[30,184,30,189],[25,166,25,171],[25,172,25,177],[25,178,25,183],[25,184,25,189],[24,190,24,195],[24,196,24,201],[24,202,24,207],[24,208,24,213],[24,214,25,220],[24,221,25,228],[25,28,25,33],[25,34,25,39],[25,40,25,45],[25,46,25,51],[25,52,25,57],[25,58,25,63],[25,64,25,69],[25,70,25,75],[25,76,25,81],[25,82,25,87],[25,88,25,93],[25,94,25,99],[25,100,25,105],[25,106,25,111],[25,112,25,117],[25,118,25,123],[25,124,25,129],[25,130,25,135],[24,136,24,141],[24,142,24,147],[30,172,30,177],[30,178,30,183],[25,190,25,195],[25,196,25,201],[25,202,25,207],[25,208,25,213],[26,5,31,22],[26,0,31,4],[30,23,31,27],[30,28,30,33],[30,34,30,39],[30,40,30,45],[30,46,30,51],[30,52,30,57],[30,58,30,63],[30,64,30,69],[30,70,30,75],[30,76,30,81],[30,82,30,87],[30,88,30,93],[30,94,30,99],[30,100,30,105],[30,106,30,111],[30,112,30,117],[30,118,30,123],[30,124,30,129],[25,136,25,141],[25,142,25,147],[25,148,25,153],[25,154,25,159],[25,160,25,165],[31,172,31,177],[31,166,31,171],[41,184,41,189],[30,190,30,195],[30,196,30,201],[30,202,30,207],[30,208,30,213],[30,214,31,220],[30,221,31,228],[31,28,31,33],[31,34,31,39],[31,40,31,45],[31,46,31,51],[31,52,31,57],[31,58,31,63],[31,64,31,69],[31,70,31,75],[31,76,31,81],[31,82,31,87],[31,88,31,93],[31,94,31,99],[31,100,31,105],[31,106,31,111],[31,112,31,117],[31,118,31,123],[31,124,31,129],[30,130,30,135],[30,136,30,141],[30,142,30,147],[30,148,30,153],[30,154,30,159],[30,160,30,165],[30,166,30,171],[35,46,35,51],[42,124,42,129],[43,124,43,129],[31,184,31,189],[31,190,31,195],[31,196,31,201],[31,202,31,207],[31,208,31,213],[38,0,43,4],[38,5,43,22],[42,23,43,27],[42,28,42,33],[42,34,42,39],[42,40,42,45],[42,46,42,51],[42,52,42,57],[42,58,42,63],[42,64,42,69],[42,70,42,75],[42,76,42,81],[42,82,42,87],[42,88,42,93],[42,94,42,99],[42,100,42,105],[42,106,42,111],[42,112,42,117],[42,118,42,123],[31,130,31,135],[31,136,31,141],[31,142,31,147],[31,148,31,153],[31,154,31,159],[31,160,31,165],[42,178,42,183],[42,184,42,189],[42,190,42,195],[42,196,42,201],[42,202,42,207],[42,208,42,213],[42,214,43,220],[42,221,43,228],[42,130,42,135],[42,136,42,141],[42,142,42,147],[42,148,42,153],[42,154,42,159],[42,160,42,165],[42,166,42,171],[42,172,42,177],[32,196,32,201],[32,202,32,207],[32,208,32,213],[34,172,34,177],[43,148,43,153],[43,154,43,159],[43,160,43,165],[32,184,32,189],[32,190,32,195],[36,172,36,177],[36,178,36,183],[36,130,36,135],[36,136,36,141],[36,142,36,147],[37,184,37,189],[33,178,33,183],[43,28,43,33],[43,34,43,39],[43,40,43,45],[43,46,43,51],[43,52,43,57],[43,58,43,63],[43,64,43,69],[43,70,43,75],[43,76,43,81],[43,82,43,87],[43,88,43,93],[43,94,43,99],[43,100,43,105],[43,106,43,111],[43,112,43,117],[43,118,43,123],[49,142,49,147],[43,130,43,135],[43,136,43,141],[43,142,43,147],[44,112,44,117],[45,130,45,135],[45,136,45,141],[49,148,49,153],[49,154,49,159],[49,160,49,165],[49,166,49,171],[49,172,49,177],[49,178,49,183],[48,184,48,189],[48,190,48,195],[49,184,49,189],[49,190,49,195],[45,28,45,33],[45,34,45,39],[45,40,45,45],[45,46,45,51],[45,52,45,57],[45,58,45,63],[45,64,45,69],[45,70,45,75],[45,76,45,81],[45,82,45,87],[45,88,45,93],[45,94,45,99],[45,100,45,105],[45,106,45,111],[45,112,45,117],[45,118,45,123],[45,124,45,129],[48,172,48,177],[48,178,48,183],[45,178,45,183],[47,124,47,129],[47,130,47,135],[48,23,49,27],[48,28,48,33],[48,34,48,39],[48,40,48,45],[48,46,48,51],[48,52,48,57],[48,58,48,63],[48,64,48,69],[48,70,48,75],[48,76,48,81],[48,82,48,87],[48,88,48,93],[48,94,48,99],[48,100,48,105],[48,106,48,111],[48,112,48,117],[48,118,48,123],[48,214,49,220],[48,221,49,228],[49,28,49,33],[49,34,49,39],[49,40,49,45],[49,46,49,51],[49,52,49,57],[49,58,49,63],[49,64,49,69],[49,70,49,75],[49,76,49,81],[49,82,49,87],[49,88,49,93],[49,94,49,99],[49,100,49,105],[49,106,49,111],[49,112,49,117],[49,118,49,123],[49,124,49,129],[48,130,48,135],[48,136,48,141],[48,142,48,147],[48,148,48,153],[48,154,48,159],[48,124,48,129],[49,196,49,201],[48,160,48,165],[48,166,48,171],[49,202,49,207],[49,208,49,213],[49,130,49,135],[49,136,49,141],[47,196,47,201],[47,202,47,207],[47,208,47,213],[45,196,45,201],[45,202,45,207],[45,208,45,213],[33,196,33,201],[33,202,33,207],[33,208,33,213],[36,190,36,195],[37,190,37,195],[37,196,37,201],[45,184,45,189],[45,190,45,195],[34,184,34,189],[34,190,34,195],[35,184,35,189],[33,184,33,189],[33,190,33,195],[35,196,35,201],[35,202,35,207],[35,208,35,213],[34,196,34,201],[34,202,34,207],[34,208,34,213],[43,184,43,189],[43,190,43,195],[43,196,43,201],[43,202,43,207],[38,190,38,195],[38,196,38,201],[38,202,38,207],[44,172,44,177],[44,178,44,183],[44,184,44,189],[44,190,44,195],[44,196,44,201],[44,202,44,207],[44,208,44,213],[32,178,32,183],[37,178,37,183],[32,118,32,123],[47,190,47,195],[47,136,47,141],[47,142,47,147],[47,148,47,153],[47,154,47,159],[47,160,47,165],[47,166,47,171],[47,172,47,177],[47,178,47,183],[47,184,47,189],[44,118,44,123],[44,124,44,129],[44,130,44,135],[44,136,44,141],[44,142,44,147],[44,148,44,153],[44,154,44,159],[44,160,44,165],[44,166,44,171],[43,178,43,183],[35,178,35,183],[35,190,35,195],[35,52,35,57],[35,58,35,63],[35,64,35,69],[35,70,35,75],[35,76,35,81],[32,124,32,129],[32,130,32,135],[32,136,32,141],[32,142,32,147],[32,148,32,153],[32,154,32,159],[32,160,32,165],[32,166,32,171],[32,172,32,177],[33,118,33,123],[33,124,33,129],[32,88,32,93],[32,94,32,99],[32,100,32,105],[32,106,32,111],[32,112,32,117],[35,160,35,165],[35,166,35,171],[35,172,35,177],[32,58,32,63],[32,64,32,69],[32,70,32,75],[32,76,32,81],[32,82,32,87],[35,124,35,129],[33,112,33,117],[35,94,35,99],[32,0,37,4],[32,5,37,22],[32,23,33,27],[33,28,33,33],[33,34,33,39],[33,40,33,45],[33,46,33,51],[33,52,33,57],[33,58,33,63],[33,64,33,69],[33,70,33,75],[33,76,33,81],[33,82,33,87],[33,88,33,93],[33,94,33,99],[33,100,33,105],[33,106,33,111],[35,28,35,33],[32,28,32,33],[32,34,32,39],[32,40,32,45],[32,46,32,51],[32,52,32,57],[35,34,35,39],[35,40,35,45],[36,34,36,39],[36,40,36,45],[36,46,36,51],[36,52,36,57],[36,58,36,63],[36,64,36,69],[36,70,36,75],[36,184,36,189],[35,130,35,135],[33,130,33,135],[33,136,33,141],[33,142,33,147],[33,148,33,153],[33,154,33,159],[33,160,33,165],[33,166,33,171],[33,172,33,177],[36,124,36,129],[36,76,36,81],[36,82,36,87],[36,88,36,93],[36,94,36,99],[36,100,36,105],[36,106,36,111],[36,112,36,117],[36,118,36,123],[36,148,36,153],[36,154,36,159],[35,82,35,87],[37,142,37,147],[37,148,37,153],[37,154,37,159],[37,160,37,165],[37,166,37,171],[37,172,37,177],[35,142,35,147],[35,148,35,153],[35,154,35,159],[37,88,37,93],[37,94,37,99],[37,100,37,105],[37,106,37,111],[37,112,37,117],[37,118,37,123],[37,130,37,135],[37,136,37,141],[37,124,37,129],[36,160,36,165],[36,166,36,171],[35,88,35,93],[35,100,35,105],[35,106,35,111],[35,112,35,117],[35,118,35,123],[35,136,35,141],[46,23,47,27],[46,28,46,33],[46,34,46,39],[36,196,36,201],[36,202,36,207],[36,208,36,213],[46,112,46,117],[40,124,40,129],[47,28,47,33],[47,34,47,39],[47,40,47,45],[47,46,47,51],[47,52,47,57],[47,58,47,63],[47,64,47,69],[47,70,47,75],[47,76,47,81],[47,82,47,87],[47,106,47,111],[47,112,47,117],[47,118,47,123],[36,23,37,27],[36,28,36,33],[37,34,37,39],[37,40,37,45],[37,46,37,51],[37,52,37,57],[37,58,37,63],[37,64,37,69],[37,70,37,75],[37,76,37,81],[37,82,37,87],[44,0,49,4],[44,5,49,22],[44,23,45,27],[44,28,44,33],[44,34,44,39],[44,40,44,45],[44,46,44,51],[44,52,44,57],[44,58,44,63],[44,64,44,69],[44,70,44,75],[44,76,44,81],[44,82,44,87],[44,88,44,93],[44,94,44,99],[44,100,44,105],[44,106,44,111],[47,88,47,93],[47,94,47,99],[47,100,47,105],[46,40,46,45],[46,46,46,51],[46,52,46,57],[46,58,46,63],[46,64,46,69],[46,70,46,75],[46,76,46,81],[46,82,46,87],[46,88,46,93],[46,94,46,99],[46,100,46,105],[46,106,46,111],[50,64,50,69],[50,70,50,75],[50,76,50,81],[50,82,50,87],[50,88,50,93],[50,94,50,99],[50,100,50,105],[50,106,50,111],[50,112,50,117],[50,0,55,4],[50,5,55,22],[50,23,51,27],[50,28,50,33],[50,34,50,39],[50,40,50,45],[50,46,50,51],[50,52,50,57],[50,58,50,63],[52,23,53,27],[52,28,52,33],[52,34,52,39],[52,40,52,45],[52,46,52,51],[52,52,52,57],[52,58,52,63],[53,28,53,33],[53,34,53,39],[53,40,53,45],[53,46,53,51],[53,52,53,57],[53,58,53,63],[53,64,53,69],[51,28,51,33],[51,34,51,39],[51,40,51,45],[51,46,51,51],[51,52,51,57],[51,58,51,63],[51,64,51,69],[51,70,51,75],[51,76,51,81],[51,82,51,87],[51,88,51,93],[51,94,51,99],[51,100,51,105],[51,106,51,111],[51,112,51,117],[51,118,51,123]],"merged_total":2548,"flags":["merged_cut"]}
[null,null,null,null,null,null,null,null,null,null,null,null,null,null,null,null,null,null,null,null,null,null,null,null,null,null,null,null,null,null,null,null,null,null,null,null,null,null,null,null,null,null,null,null,null,null,null,null,null,null,null,null,null,null,null,null,null,null,null,null,null,null,null,null,null,null,null,null,null,null,null,null,null,null,null,null,null,null,null,null,null,null,null,null,null,null,null,null,null,null,null,null,null,null,null,null,null,null,null,null,null,null,null,null,null,null,null,null,null,null,null,null,null,null,null,null,null,null,null,null,null,null,null,null,null,null,null,null,null,null,null,null,null,null,null,null,null,null,null,null,null,null,null,null,null,null,null,null,null,null,null,null,null,null,null,null,null,null,null,null,null,null,null,null,null,null,null,null,null,null,null,null,null,null,null,null,null,null,null,null,null,null,null,null,null,null,null,null,null,null,null,null,null,null,null,null,null,null,null,null,null,null,null,null,null,null,null,null,null,null,null,null,null,null,null,null,null,null,null,null,null,null,null,null,null,null,null,null,null,null,null,null,null,null,null,null,null,null,null,null,null,"СЕГОДНЯ",null,null,null,null,null,null,null,null,"на январь 2020 года",null,1]
[null,null,null,null,null,null,null,null,null,null,null,null,null,null,null,null,null,null,null,null,null,null,null,null,null,null,null,null,null,null,null,null,null,null,null,null,null,null,null,null,null,null,null,null,null,null,null,null,null,null,null,null,null,null,null,null,null,null,null,null,null,null,null,null,null,null,null,null,null,null,null,null,null,null,null,null,null,null,null,null,null,null,null,null,null,null,null,null,null,null,null,null,null,null,null,null,null,null,null,null,null,null,null,null,null,null,null,null,null,null,null,null,null,null,null,null,null,null,null,null,null,null,null,null,null,null,null,null,null,null,null,null,null,null,null,null,null,null,null,null,null,null,null,null,null,null,null,null,null,null,null,null,null,null,null,null,null,null,null,null,null,null,null,null,null,null,null,null,null,null,null,null,null,null,null,null,null,null,null,null,null,null,null,null,null,null,null,null,null,null,null,null,null,null,null,null,null,null,null,null,null,null,null,null,null,null,null,null,null,null,null,null,null,null,null,null,null,null,null,null,null,null,null,null,null,null,null,null,null,null,null,null,null,null,null,null,null,null,null,null,null,{"$f":"TODAY()","v":"2020-05-05"},null,null,null,null,null,null,null,null,"на февраль 2020 года",null,2]
[null,null,null,null,null,null,null,null,null,null,null,null,null,null,null,null,null,null,null,null,null,null,null,null,null,null,null,null,null,null,null,null,null,null,null,null,null,null,null,null,null,null,null,null,null,null,null,null,null,null,null,null,null,null,null,null,null,null,null,null,null,null,null,null,null,null,null,null,null,null,null,null,null,null,null,null,null,null,null,null,null,null,null,null,null,null,null,null,null,null,null,null,null,null,null,null,null,null,null,null,null,null,null,null,null,null,null,null,null,null,null,null,null,null,null,null,null,null,null,null,null,null,null,null,null,null,null,null,null,null,null,null,null,null,null,null,null,null,null,null,null,null,null,null,null,null,null,null,null,null,null,null,null,null,null,null,null,null,null,null,null,null,null,null,null,null,null,null,null,null,null,null,null,null,null,null,null,null,null,null,null,null,null,null,null,null,null,null,null,null,null,null,null,null,null,null,null,null,null,null,null,null,null,null,null,null,null,null,null,null,null,null,null,null,null,null,null,null,null,null,null,null,null,null,null,null,null,null,null,null,null,null,null,null,null,null,null,null,null,null,null,{"$f":"TEXT(HZ2,\"дддд\")","v":"суббота"},null,null,null,null,null,null,null,null,"на март 2020 года",null,3]
[null,null,null,null,null,null,null,null,null,null,null,null,null,null,null,null,null,null,null,null,null,null,null,null,null,null,null,null,null,null,null,null,null,null,null,null,null,null,null,null,null,null,null,null,null,null,null,null,null,null,null,null,null,null,null,null,null,null,null,null,null,null,null,null,null,null,null,null,null,null,null,null,null,null,null,null,null,null,null,null,null,null,null,null,null,null,null,null,null,null,null,null,null,null,null,null,null,null,null,null,null,null,null,null,null,null,null,null,null,null,null,null,null,null,null,null,null,null,null,null,null,null,null,null,null,null,null,null,null,null,null,null,null,null,null,null,null,null,null,null,null,null,null,null,null,null,null,null,null,null,null,null,null,null,null,null,null,null,null,null,null,null,null,null,null,null,null,null,null,null,null,null,null,null,null,null,null,null,null,null,null,null,null,null,null,null,null,null,null,null,null,null,null,null,null,null,null,null,null,null,null,null,null,null,null,null,null,null,null,null,null,null,null,null,null,null,null,null,null,null,null,null,null,null,null,null,null,null,null,null,null,null,null,null,null,null,null,null,null,null,null,{"$f":"WEEKNUM(IH2,2)&\"-ая неделя\"","v":"19-ая неделя"},null,null,null,null,null,null,null,null,"на апрель 2020 года",null,4]
[null,null,null,null,null,null,null,null,{"$f":"IF(OR(#REF!<D3,AND(#REF!<D2,#REF!=D3)),$CN$19,IF(OR(#REF!>D3,AND(#REF!>D2,#REF!=D3)),0,DAY(A2)))","v":{"$error":"#REF!"}},null,null,null,null,null,null,null,null,null,null,null,null,null,null,null,null,null,null,null,null,null,null,null,null,null,null,null,null,null,null,null,null,null,null,null,null,null,null,null,null,null,null,null,null,null,null,null,null,null,null,null,null,null,null,null,null,null,null,null,null,null,null,null,null,null,null,null,null,null,null,null,null,null,null,null,null,null,null,null,null,null,null,null,null,null,null,null,null,null,null,null,null,null,null,null,null,null,null,null,null,null,null,null,null,null,null,null,null,null,null,null,null,null,null,null,null,null,null,null,null,null,null,null,null,null,null,null,null,null,null,null,null,null,null,null,null,null,null,null,null,null,null,null,null,null,null,null,null,null,null,null,null,null,null,null,null,null,null,null,null,null,null,null,null,null,null,null,null,null,null,null,null,null,null,null,null,null,null,null,null,null,null,null,null,null,null,null,null,null,null,null,null,null,null,null,null,null,null,null,null,null,null,null,null,null,null,null,null,null,null,null,null,null,null,null,null,null,null,null,null,null,null,null,null,null,null,null,null,null,null,null,null,{"$f":"IF(OR(#REF!<IC3,AND(#REF!<IC2,#REF!=IC3)),$CN$19,IF(OR(#REF!>IC3,AND(#REF!>IC2,#REF!=IC3)),0,DAY(HZ2)))","v":{"$error":"#REF!"}},null,null,null,null,null,null,null,null,"на май 2020 года",null,5]
[null,null,null,null,null,null,null,null,null,null,null,null,null,null,null,null,null,null,null,null,null,null,null,null,null,null,null,null,null,null,null,null,null,null,null,null,null,null,null,null,null,null,null,null,null,null,null,null,null,null,null,null,null,null,null,null,null,null,null,null,null,null,null,null,null,null,null,null,null,null,null,null,null,null,null,null,null,null,null,null,null,null,null,null,null,null,null,null,null,null,null,null,null,null,null,null,null,null,null,null,null,null,null,null,null,null,null,null,null,null,null,null,null,null,null,null,null,null,null,null,null,null,null,null,null,null,null,null,null,null,null,null,null,null,null,null,null,null,null,null,null,null,null,null,null,null,null,null,null,null,null,null,null,null,null,null,null,null,null,null,null,null,null,null,null,null,null,null,null,null,null,null,null,null,null,null,null,null,null,null,null,null,null,null,null,null,null,null,null,null,null,null,null,null,null,null,null,null,null,null,null,null,null,null,null,null,null,null,null,null,null,null,null,null,null,null,null,null,null,null,null,null,null,null,null,null,null,null,null,null,null,null,null,null,null,null,null,null,null,null,"время",null,null,null,null,null,null,null,null,null,"на июнь 2020 года",null,6]
[null,null,null,null,null,null,null,null,null,null,null,null,null,null,null,null,null,null,null,null,null,null,null,null,null,null,null,null,null,null,null,null,null,null,null,null,null,null,null,null,null,null,null,null,null,null,null,null,null,null,null,null,null,null,null,null,null,null,null,null,null,null,null,null,null,null,null,null,null,null,null,null,null,null,null,null,null,null,null,null,null,null,null,null,null,null,null,null,null,null,null,null,null,null,null,null,null,null,null,null,null,null,null,null,null,null,null,null,null,null,null,null,null,null,null,null,null,null,null,null,null,null,null,null,null,null,null,null,null,null,null,null,null,null,null,null,null,null,null,null,null,null,null,null,null,null,null,null,null,null,null,null,null,null,null,null,null,null,null,null,null,null,null,null,null,null,null,null,null,null,null,null,null,null,null,null,null,null,null,null,null,null,null,null,null,null,null,null,null,null,null,null,null,null,null,null,null,null,null,null,null,null,null,null,null,null,null,null,1,null,null,null,null,null,null,null,null,null,null,null,null,null,null,null,null,null,null,null,null,null,null,null,null,null,null,"количество дней месяца",null,null,{"$f":"DAY(EOMONTH(A17,0))","v":31},null,null,null,null,null,null,null,null,null,null,null,"на июль 2020 года",null,7]
[null,null,null,null,null,null,null,null,null,null,null,null,null,null,null,null,null,null,null,null,null,null,null,null,null,null,null,null,null,null,null,null,null,null,null,null,null,null,null,null,null,null,null,null,null,null,null,null,null,null,null,null,null,null,null,null,null,null,null,null,null,null,null,null,null,null,null,null,null,null,null,null,null,null,null,null,null,null,null,null,null,null,null,null,null,null,null,null,null,null,null,null,null,null,null,null,null,null,null,null,null,null,null,null,null,null,null,null,null,null,null,null,null,null,null,null,null,null,null,null,null,null,null,null,null,null,null,null,null,null,null,null,null,null,null,null,null,null,null,null,null,null,null,null,null,null,null,null,null,null,null,null,null,null,null,null,null,null,null,null,null,null,null,null,null,null,null,null,null,null,null,null,null,null,null,null,null,null,null,null,null,null,null,null,null,null,null,null,null,null,null,null,null,null,null,null,null,null,null,null,null,null,null,null,null,null,null,null,2,null,null,null,null,null,null,null,null,null,null,null,null,null,null,null,null,null,null,null,null,null,null,null,null,null,null,"месяц",null,null,{"$f":"MONTH(A17)","v":5},null,0,null,null,null,null,null,null,null,null,null,"на август 2020 года",null,8]
[null,null,null,null,null,null,null,null,null,null,null,null,null,null,null,null,null,null,null,null,null,null,null,null,null,null,null,null,null,null,null,null,null,null,null,null,null,null,null,null,null,null,null,null,null,null,null,null,null,null,null,null,null,null,null,null,null,null,null,null,null,null,null,null,null,null,null,null,null,null,null,null,null,null,null,null,null,null,null,null,null,null,null,null,null,null,null,null,null,null,null,null,null,null,null,null,null,null,null,null,null,null,null,null,null,null,null,null,null,null,null,null,null,null,null,null,null,null,null,null,null,null,null,null,null,null,null,null,null,null,null,null,null,null,null,null,null,null,null,null,null,null,null,null,null,null,null,null,null,null,null,null,null,null,null,null,null,null,null,null,null,null,null,null,null,null,null,null,null,null,null,null,null,null,null,null,null,null,null,null,null,null,null,null,null,null,null,null,null,null,null,null,null,null,null,null,null,null,null,null,null,null,null,null,null,null,null,null,null,null,null,null,null,null,null,null,null,null,null,null,null,null,null,null,null,null,null,null,null,null,null,null,null,null,null,"год",null,null,{"$f":"YEAR(A17)","v":2020},null,2.0833333333333332E-2,null,null,null,null,null,null,null,null,null,"на сентябрь 2020 года",null,9]
[null,null,null,null,null,null,null,null,null,null,null,null,null,null,null,null,null,null,null,null,null,null,null,null,null,null,null,null,null,null,null,null,null,null,null,null,null,null,null,null,null,null,null,null,null,null,null,null,null,null,null,null,null,null,null,null,null,null,null,null,null,null,null,null,null,null,null,null,null,null,null,null,null,null,null,null,null,null,null,null,null,null,null,null,null,null,null,null,null,null,null,null,null,null,null,null,null,null,null,null,null,null,null,null,null,null,null,null,null,null,null,null,null,null,null,null,null,null,null,null,null,null,null,null,null,null,null,null,null,null,null,null,null,null,null,null,null,null,null,null,null,null,null,null,null,null,null,null,null,null,null,null,null,null,null,null,null,null,null,null,null,null,null,null,null,null,null,null,null,null,null,null,null,null,null,null,null,null,null,null,null,null,null,null,null,null,null,null,null,null,"УТВЕРЖДАЮ",null,null,null,null,null,null,null,null,null,null,null,null,null,null,null,null,null,null,null,null,null,null,null,null,null,null,null,null,null,null,null,null,null,null,null,null,null,null,null,null,null,null,null,null,null,null,null,null,null,6.25E-2,null,null,null,null,null,null,null,null,null,"на октябрь 2020 года",null,10]
[null,null,null,null,null,null,null,null,null,null,null,null,null,null,null,null,null,null,null,null,null,null,null,null,null,null,null,null,null,null,null,null,null,null,null,null,null,null,null,null,null,null,null,null,null,null,null,null,null,null,null,null,null,null,null,null,null,null,null,null,null,null,null,null,null,null,null,null,null,null,null,null,null,null,null,null,null,null,null,null,null,null,null,null,null,null,null,null,null,null,null,null,null,null,null,null,null,null,null,null,null,null,null,null,null,null,null,null,null,null,null,null,null,null,null,null,null,null,null,null,null,null,null,null,null,null,null,null,null,null,null,null,null,null,null,null,null,null,null,null,null,null,null,null,null,null,null,null,null,null,null,null,null,null,null,null,null,null,null,null,null,null,null,null,null,null,null,null,null,null,null,null,null,null,null,null,null,null,null,null,null,null,null,null,null,null,null,null,null,null," ",null,null,null,null,null,null,null,null,null,null,null,null,null,null,null,null,null,null,null,null,null,null,null,null,null,null,null,null,null,null,null,null,null,null,null,null,null,null,null,null,null,null,null,null,"0бед",null,null,4.1666666666666664E-2,null,0.41666666666666669,null,null,null,null,null,null,null,null,null,"на ноябрь 2020 года",null,11]
[null,null,null,null,null,null,null,null,null,null,null,null,null,null,null,null,null,null,null,null,null,null,null,null,null,null,null,null,null,null,null,null,null,null,null,null,null,null,null,null,null,null,null,null,null,null,null,null,null,null,null,null,null,null,null,null,null,null,null,null,null,null,null,null,null,null,null,null,null,null,null,null,null,null,null,null,null,null,null,null,null,null,null,null,null,null,null,null,null,null,null,null,null,null,null,null,null,null,null,null,null,null,null,null,null,null,null,null,null,null,null,null,null,null,null,null,null,null,null,null,null,null,null,null,null,null,null,null,null,null,null,null,null,null,null,null,null,null,null,null,null,null,null,null,null,null,null,null,null,null,null,null,null,null,null,null,null,null,null,null,null,null,null,null,null,null,null,null,null,null,null,null,null,null,null,null,null,null,null,null,null,null,null,null,null,null,null,null,null,null,"_______________С. А. Сорокина",null,null,null,null,null,null,null,null,null,null,null,null,null,null,null,null,null,null,null,null,null,null,null,null,null,null,null,null,null,null,null,null,null,null,null,null,null,null,null,null,null,null,null,null,null,null,null,null,null,0.45833333333333331,null,null,null,null,null,null,null,null,null,"на декабрь 2020 года",null,12]
[null,null,null,null,null,null,null,null,null,null,null,null,null,null,null,null,null,null,null,null,null,null,null,null,null,null,null,null,null,null,null,null,null,null,null,null,null,null,null,null,null,null,null,null,null,null,null,null,null,null,null,null,null,null,null,null,null,null,null,null,null,null,null,null,null,null,null,null,null,null,null,null,null,null,null,null,null,null,null,null,null,null,null,null,null,null,null,null,null,null,null,null,null,null,null,null,null,null,null,null,null,null,null,null,null,null,null,null,null,null,null,null,null,null,null,null,null,null,null,null,null,null,null,null,null,null,null,null,null,null,null,null,null,null,null,null,null,null,null,null,null,null,null,null,null,null,null,null,null,null,null,null,null,null,null,null,null,null,null,null,null,null,null,null,null,null,null,null,null,null,null,null,null,null,null,null,null,null,null,null,null,null,null,null,null,null,null,null,null,null,"« 10 »     февраля    2020г.",null,null,null,null,null,null,null,null,null,null,"апреля",null,null,null,null,null,null,null,null,null,null,null,null,null,null,null,null,null,null,null,null,null,null,null,null,null,null,null,null,null,null,null,null,null,null,null,null,null,null,0.125]
[null,null,null,null,null,null,null,null,null,null,null,null,null,null,null,null,null,null,null,null,null,null,null,null,null,null,null,null,null,null,null,null,null,null,null,null,null,null,null,null,null,null,null,null,null,null,null,null,null,null,null,null,null,null,null,null,null,null,null,null,null,null,null,null,null,null,null,null,null,null,null,null,null,null,null,null,null,null,null,null,null,null,null,null,null,null,null,null,null,null,null,null,null,null,null,null,null,null,null,null,null,null,null,null,null,null,null,null,null,null,null,null,null,null,null,null,null,null,null,null,null,null,null,null,null,null,null,null,null,null,null,null,null,null,null,null,null,null,null,null,null,null,null,null,null,null,null,null,null,null,null,null,null,null,null,null,null,null,null,null,null,null,null,null,null,null,null,null,null,null,null,null,null,null,null,null,null,null,null,null,null,null,null,null,null,null,null,null,null,null,null,null,null,null,null,null,null,null,null,null,null,null,null,null,null,null,null,null,null,null,null,null,null,null,null,null,null,null,null,null,null,null,null,null,null,null,null,null,null,null,null,null,null,null,null,null,null,null,null,null,0.14583333333333334,null,null,null,null,null,null,null,null,null,"Слезинский В.Е.,  управляющий участка",null,null,null,null,null,1]
["ГРАФИК",null,null,null,null,null,null,null,null,null,null,null,null,null,null,null,null,null,null,null,null,null,null,null,null,null,null,null,null,null,null,null,null,null,null,null,null,null,null,null,null,null,null,null,null,null,null,null,null,null,null,null,null,null,null,null,null,null,null,null,null,null,null,null,null,null,null,null,null,null,null,null,null,null,null,null,null,null,null,null,null,null,null,null,null,null,null,null,null,null,null,null,null,null,null,null,null,null,null,null,null,null,null,null,null,null,null,null,null,null,null,null,null,null,null,null,null,null,null,null,null,null,null,null,null,null,null,null,null,null,null,null,null,null,null,null,null,null,null,null,null,null,null,null,null,null,null,null,null,null,null,null,null,null,null,null,null,null,null,null,null,null,null,null,null,null,null,null,null,null,null,null,null,null,null,null,null,null,null,null,null,null,null,null,null,null,null,null,null,null,null,null,null,null,null,null,null,null,null,null,null,null,null,null,null,null,null,null,null,null,null,null,null,null,null,null,null,null,null,null,null,null,null,null,null,null,null,null,null,null,null,null,null,null,null,null,null,null,null,null,0.16666666666666666,null,null,null,null,null,null,null,null,null,"Медведев А.П., слесарь-ремонтник",null,null,null,null,null,0.5]
["УЧЕТА ИСПОЛЬЗОВАНИЯ РАБОЧЕГО ВРЕМЕНИ ОБСЛУЖИВАЮЩЕГО ПЕРСОНАЛА",null,null,null,null,null,null,null,null,null,null,null,null,null,null,null,null,null,null,null,null,null,null,null,null,null,null,null,null,null,null,null,null,null,null,null,null,null,null,null,null,null,null,null,null,null,null,null,null,null,null,null,null,null,null,null,null,null,null,null,null,null,null,null,null,null,null,null,null,null,null,null,null,null,null,null,null,null,null,null,null,null,null,null,null,null,null,null,null,null,null,null,null,null,null,null,null,null,null,null,null,null,null,null,null,null,null,null,null,null,null,null,null,null,null,null,null,null,null,null,null,null,null,null,null,null,null,null,null,null,null,null,null,null,null,null,null,null,null,null,null,null,null,null,null,null,null,null,null,null,null,null,null,null,null,null,null,null,null,null,null,null,null,null,null,null,null,null,null,null,null,null,null,null,null,null,null,null,null,null,null,null,null,null,null,null,null,null,null,null,null,null,null,null,null,null,null,null,null,null,null,null,null,null,null,null,null,null,null,null,null,null,null,null,null,null,null,null,null,null,null,null,null,null,null,null,null,null,null,null,null,null,null,null,null,null,null,null,null,null,0.1875,null,null,null,null,null,null,null,null,null,"Береговой Г.П., электрик",null,null,null,null,null,0.25]
["2020-05-01",null,null,null,null,null,null,null,null,null,null,null,null,null,null,null,null,null,null,null,null,null,null,null,null,null,null,null,null,null,null,null,null,null,null,null,null,null,null,null,null,null,null,null,null,null,null,null,null,null,null,null,null,null,null,null,null,null,null,null,null,null,null,null,null,null,null,null,null,null,null,null,null,null,null,null,null,null,null,null,null,null,null,null,null,null,null,null,null,null,null,null,null,null,null,null,null,null,null,null,null,null,null,null,null,null,null,null,null,null,null,null,null,null,null,null,null,null,null,null,null,null,null,null,null,null,null,null,null,null,null,null,null,null,null,null,null,null,null,null,null,null,null,null,null,null,null,null,null,null,null,null,null,null,null,null,null,null,null,null,null,null,null,null,null,null,null,null,null,null,null,null,null,null,null,null,null,null,null,null,null,null,null,null,null,null,null,null,null,null,null,null,null,null,null,null,null,null,null,null,null,null,null,null,null,null,null,null,null,null,null,null,null,null,null,null,null,null,null,null,null,null,null,null,null,null,null,null,null,null,null,null,null,null,null,null,null,null,null,null,0.20833333333333334,null,null,null,null,null,null,null,null,null,"Воротынцева В.Н., кассир билетный"]
[null,null,null,null,null,null,null,null,null,null,null,null,null,null,null,null,null,null,null,null,null,null,null,null,null,null,null,null,null,null,null,null,null,null,null,null,null,null,null,null,null,null,null,null,null,null,null,null,null,null,null,null,null,null,null,null,null,null,null,null,null,null,null,null,null,null,null,null,null,null,null,null,null,null,null,null,null,null,null,null,null,null,null,null,null,null,null,null,null,null,null,null,null,null,null,null,null,null,null,null,null,null,null,null,null,null,null,null,null,null,null,null,null,null,null,null,null,null,null,null,null,null,null,null,null,null,null,null,null,null,null,null,null,null,null,null,null,null,null,null,null,null,null,null,null,null,null,null,null,null,null,null,null,null,null,null,null,null,null,null,null,null,null,null,null,null,null,null,null,null,null,null,null,null,null,null,null,null,null,null,null,null,null,null,null,null,null,null,null,null,null,null,null,null,null,null,null,null,null,null,null,null,null,null,null,null,null,null,null,null,null,null,null,null,null,null,null,null,null,null,null,null,null,null,null,null,null,null,null,null,null,null,null,null,null,null,null,null,null,null,0.22916666666666666,null,null,null,null,null,null,null,null,null,"Окорочкова О.Т., кассир билетный"]
["№ п/п",null,null,null,null,"Фамилия Инициалы",null,null,null,null,null,null,null,null,null,null,null,null,null,null,null,null,null,"Ставка",null,null,null,null,1,null,null,null,null,null,2,null,null,null,null,null,3,null,null,null,null,null,4,null,null,null,null,null,5,null,null,null,null,null,6,null,null,null,null,null,7,null,null,null,null,null,8,null,null,null,null,null,9,null,null,null,null,null,10,null,null,null,null,null,11,null,null,null,null,null,12,null,null,null,null,null,13,null,null,null,null,null,14,null,null,null,null,null,15,null,null,null,null,null,16,null,null,null,null,null,17,null,null,null,null,null,18,null,null,null,null,null,19,null,null,null,null,null,20,null,null,null,null,null,21,null,null,null,null,null,22,null,null,null,null,null,23,null,null,null,null,null,24,null,null,null,null,null,25,null,null,null,null,null,26,null,null,null,null,null,27,null,null,null,null,null,28,null,null,null,null,null,{"$f":"IF(29<=$IE$7,29,\"-\")","v":29},null,null,null,null,null,{"$f":"IF(30<=$IE$7,30,\"-\")","v":30},null,null,null,null,null,{"$f":"IF(31<=$IE$7,31,\"-\")","v":31},null,null,null,null,null,"ВСЕГО",null,null,null,null,null,null,null,null,null,null,null,null,null,null,null,null,null,null,null,null,null,null,null,null,null,0.25,null,null,null,null,null,null,null,null,null,"Пермякова Т.М., контролёр-посадчик аттракциона"]
[null,null,null,null,null,null,null,null,null,null,null,null,null,null,null,null,null,null,null,null,null,null,null,null,null,null,null,null,null,null,null,null,null,null,null,null,null,null,null,null,null,null,null,null,null,null,null,null,null,null,null,null,null,null,null,null,null,null,null,null,null,null,null,null,null,null,null,null,null,null,null,null,null,null,null,null,null,null,null,null,null,null,null,null,null,null,null,null,null,null,null,null,null,null,null,null,null,null,null,null,null,null,null,null,null,null,null,null,null,null,null,null,null,null,null,null,null,null,null,null,null,null,null,null,null,null,null,null,null,null,null,null,null,null,null,null,null,null,null,null,null,null,null,null,null,null,null,null,null,null,null,null,null,null,null,null,null,null,null,null,null,null,null,null,null,null,null,null,null,null,null,null,null,null,null,null,null,null,null,null,null,null,null,null,null,null,null,null,null,null,null,null,null,null,null,null,null,null,null,null,null,null,null,null,null,null,null,null,null,null,null,null,null,null,"дней",null,null,null,null,null,null,null,null,null,null,null,null,null,null,null,null,null,"часов",null,null,null,null,null,null,null,0.27083333333333331,null,null,null,null,null,null,null,null,null,"Алексеева Р.И., котролёр-посадчик аттракциона"]
[1,null,null,null,null,"Слезинский В.Е  управляющий участка",null,null,null,null,null,null,null,null,null,null,null,null,null,null,null,null,null,1,null,null,null,null,"В",null,null,null,null,null,0.375,null,null,null,null,null,0.375,null,null,null,null,null,0.375,null,null,null,null,null,0.41666666666666669,null,null,null,null,null,"В",null,null,null,null,null,0.375,null,null,null,null,null,0.375,null,null,null,null,null,"В",null,null,null,null,null,0.375,null,null,null,null,null,0.375,null,null,null,null,null,0.41666666666666669,null,null,null,null,null,"В",null,null,null,null,null,0.375,null,null,null,null,null,0.375,null,null,null,null,null,0.375,null,null,null,null,null,0.375,null,null,null,null,null,0.375,null,null,null,null,null,0.41666666666666669,null,null,null,null,null,"В",null,null,null,null,null,0.375,null,null,null,null,null,0.375,null,null,null,null,null,0.375,null,null,null,null,null,0.375,null,null,null,null,null,0.375,null,null,null,null,null,0.41666666666666669,null,null,null,null,null,"В",null,null,null,null,null,0.375,null,null,null,null,null,0.375,null,null,null,null,null,0.375,null,null,null,null,null,0.375,null,null,null,null,null,{"$f":"COUNT(AC21:HF21)","v":25},null,null,null,null,null,null,null,null,null,null,null,null,null,null,null,null,null,{"$f":"SUM(IFERROR(AC22:HF22-AC21:HF21-AC23:HF23,0))","v":5.6250000000000009},null,null,null,null,null,null,null,4.1666666666666664E-2,null,null,null,null,null,null,null,null,null,"Перминов К.И., дежурный зала"]
[null,null,null,null,null,null,null,null,null,null,null,null,null,null,null,null,null,null,null,null,null,null,null,null,null,null,null,null,"В",null,null,null,null,null,0.83333333333333337,null,null,null,null,null,0.83333333333333337,null,null,null,null,null,0.83333333333333337,null,null,null,null,null,0.625,null,null,null,null,null,"В",null,null,null,null,null,0.83333333333333337,null,null,null,null,null,0.83333333333333337,null,null,null,null,null,"В",null,null,null,null,null,0.83333333333333337,null,null,null,null,null,0.83333333333333337,null,null,null,null,null,0.625,null,null,null,null,null,"В",null,null,null,null,null,0.83333333333333337,null,null,null,null,null,0.83333333333333337,null,null,null,null,null,0.83333333333333337,null,null,null,null,null,0.83333333333333337,null,null,null,null,null,0.83333333333333337,null,null,null,null,null,0.625,null,null,null,null,null,"В",null,null,null,null,null,0.83333333333333337,null,null,null,null,null,0.83333333333333337,null,null,null,null,null,0.83333333333333337,null,null,null,null,null,0.83333333333333337,null,null,null,null,null,0.83333333333333337,null,null,null,null,null,0.625,null,null,null,null,null,"В",null,null,null,null,null,0.83333333333333337,null,null,null,null,null,0.83333333333333337,null,null,null,null,null,0.83333333333333337,null,null,null,null,null,0.83333333333333337,null,null,null,null,null,null,null,null,null,null,null,null,null,null,null,null,null,null,null,null,null,null,null,null,null,null,null,null,null,null,null,null,null,null,null,null,null,null,null,null,null,"Перминов К.И., кассир"]
[null,null,null,null,null,null,null,null,null,null,null,null,null,null,null,null,null,null,null,null,null,null,null,"обед",null,null,null,null,null,null,null,null,null,null,"06:00:00",null,null,null,null,null,"06:00:00",null,null,null,null,null,"06:00:00",null,null,null,null,null,"01:00:00",null,null,null,null,null," ",null,null,null,null,null,"06:00:00",null,null,null,null,null,"06:00:00",null,null,null,null,null," ",null,null,null,null,null,"06:00:00",null,null,null,null,null,"06:00:00",null,null,null,null,null,"01:00:00",null,null,null,null,null," ",null,null,null,null,null,"05:00:00",null,null,null,null,null,"05:00:00",null,null,null,null,null,"05:00:00",null,null,null,null,null,"05:00:00",null,null,null,null,null,"05:00:00",null,null,null,null,null,"01:00:00",null,null,null,null,null," ",null,null,null,null,null,"05:00:00",null,null,null,null,null,"05:00:00",null,null,null,null,null,"05:00:00",null,null,null,null,null,"05:00:00",null,null,null,null,null,"05:00:00",null,null,null,null,null,"01:00:00",null,null,null,null,null," ",null,null,null,null,null,"05:00:00",null,null,null,null,null,"05:00:00",null,null,null,null,null,"05:00:00",null,null,null,null,null,"05:00:00",null,null,null,null,null,null,null,null,null,null,null,null,null,null,null,null,null,null,null,null,null,null,null,null,null,null,null,null,null,null,null,null,null,null,null,null,null,null,null,null,null,"Бутелин Ю.Н., сторож"]
[null,null,null,null,null,null,null,null,null,null,null,null,null,null,null,null,null,null,null,null,null,null,null,null,null,null,null,null,null,null,null,null,null,null,null,null,null,null,null,null,null,null,null,null,null,null,null,null,null,null,null,null,null,null,null,null,null,null,null,null,null,null,null,null,null,null,null,null,null,null,null,null,null,null,null,null,null,null,null,null,null,null,null,null,null,null,null,null,null,null,null,null,null,null,null,null,null,null,null,null,null,null,null,null,null,null,null,null,null,null,null,null,null,null,null,null,null,null,null,null,null,null,null,null,null,null,null,null,null,null,null,null,null,null,null,null,null,null,null,null,null,null,null,null,null,null,null,null,null,null,null,null,null,null,null,null,null,null,null,null,null,null,null,null,null,null,null,null,null,null,null,null,null,null,null,null,null,null,null,null,null,null,null,null,null,null,null,null,null,null,null,null,null,null,null,null,null,null,null,null,null,null,null,null,null,null,null,null,null,null,null,null,null,null,null,null,null,null,null,null,null,null,null,null,null,null,null,null,null,null,null,null,null,null,null,null,null,null,null,null,null,null,null,null,null,null,null,null,null,null,"Бутелин Ю.Н., контролёр-посадчик"]
[null,null,null,null,null,null,null,null,null,null,null,null,null,null,null,null,null,null,null,null,null,null,null,"пр",null,null,null,null,null,null,null,null,null,null,null,null,null,null,null,null,null,null,null,null,null,null,null,null,null,null,null,null,null,null,null,null,null,null,null,null,null,null,null,null,null,null,null,null,null,null,null,null,null,null,null,null,null,null,null,null,null,null,null,null,null,null,null,null,null,null,null,null,null,null,null,null,null,null,null,null,null,null,null,null,null,null,null,null,null,null,null,null,null,null,null,null,null,null,null,null,null,null,null,null,null,null,null,null,null,null,null,null,null,null,null,null,null,null,null,null,null,null,null,null,null,null,null,null,null,null,null,null,null,null,null,null,null,null,null,null,null,null,null,null,null,null,null,null,null,null,null,null,null,null,null,null,null,null,null,null,null,null,null,null,null,null,null,null,null,null,null,null,null,null,null,null,null,null,null,null,null,null,null,null,null,null,null,null,null,null,null,null,null,null,null,null,null,null,null,null,null,null,null,null,null,null,null,null,null,null,null,null,null,null,null,null,null,null,null,null,null,null,null,null,null,null,null,null,null,null,"Медведев А.П., сторож"]
[]
[2,null,null,null,null,"Медведев А.П., слесарь-ремонтник",null,null,null,null,null,null,null,null,null,null,null,null,null,null,null,null,null,1,null,null,null,null,"В",null,null,null,null,null,0.375,null,null,null,null,null,0.375,null,null,null,null,null,"В",null,null,null,null,null,"В",null,null,null,null,null,0.375,null,null,null,null,null,0.375,null,null,null,null,null,0.375,null,null,null,null,null,"В",null,null,null,null,null,0.375,null,null,null,null,null,"В",null,null,null,null,null,"В",null,null,null,null,null,"В",null,null,null,null,null,0.375,null,null,null,null,null,0.375,null,null,null,null,null,0.375,null,null,null,null,null,0.375,null,null,null,null,null,"В",null,null,null,null,null,"В",null,null,null,null,null,0.375,null,null,null,null,null,0.375,null,null,null,null,null,0.375,null,null,null,null,null,0.375,null,null,null,null,null,0.375,null,null,null,null,null,"В",null,null,null,null,null,"В",null,null,null,null,null,0.375,null,null,null,null,null,0.375,null,null,null,null,null,0.375,null,null,null,null,null,0.375,null,null,null,null,null,0.375,null,null,null,null,null,{"$f":"COUNT(AC27:HF27)","v":20},null,null,null,null,null,null,null,null,null,null,null,null,null,null,null,null,null,{"$f":"SUM(IFERROR(AC28:HF28-AC27:HF27-AC29:HF29,0))","v":5.6250000000000009}]
[null,null,null,null,null,null,null,null,null,null,null,null,null,null,null,null,null,null,null,null,null,null,null,null,null,null,null,null,"В",null,null,null,null,null,0.79166666666666663,null,null,null,null,null,0.79166666666666663,null,null,null,null,null,"В",null,null,null,null,null,"В",null,null,null,null,null,0.79166666666666663,null,null,null,null,null,0.79166666666666663,null,null,null,null,null,0.79166666666666663,null,null,null,null,null,"В",null,null,null,null,null,0.79166666666666663,null,null,null,null,null,"В",null,null,null,null,null,"В",null,null,null,null,null,"В",null,null,null,null,null,0.79166666666666663,null,null,null,null,null,0.79166666666666663,null,null,null,null,null,0.79166666666666663,null,null,null,null,null,0.79166666666666663,null,null,null,null,null,"В",null,null,null,null,null,"В",null,null,null,null,null,0.79166666666666663,null,null,null,null,null,0.79166666666666663,null,null,null,null,null,0.79166666666666663,null,null,null,null,null,0.79166666666666663,null,null,null,null,null,0.79166666666666663,null,null,null,null,null,"В",null,null,null,null,null,"В",null,null,null,null,null,0.79166666666666663,null,null,null,null,null,0.79166666666666663,null,null,null,null,null,0.79166666666666663,null,null,null,null,null,0.79166666666666663,null,null,null,null,null,0.79166666666666663]
[null,null,null,null,null,null,null,null,null,null,null,null,null,null,null,null,null,null,null,null,null,null,null,"обед",null,null,null,null,null,null,null,null,null,null,"03:00:00",null,null,null,null,null,"03:00:00",null,null,null,null,null," ",null,null,null,null,null," ",null,null,null,null,null,"04:00:00",null,null,null,null,null,"04:00:00",null,null,null,null,null,"04:00:00",null,null,null,null,null," ",null,null,null,null,null,"03:00:00",null,null,null,null,null," ",null,null,null,null,null," ",null,null,null,null,null,"04:00:00",null,null,null,null,null,"04:00:00",null,null,null,null,null,"04:00:00",null,null,null,null,null,"03:00:00",null,null,null,null,null,"03:00:00",null,null,null,null,null," ",null,null,null,null,null," ",null,null,null,null,null,"03:00:00",null,null,null,null,null,"03:00:00",null,null,null,null,null,"03:00:00",null,null,null,null,null,"03:00:00",null,null,null,null,null,"03:00:00",null,null,null,null,null,null,null,null,null,null,null,null,null,null,null,null,null,"03:00:00",null,null,null,null,null,"03:00:00",null,null,null,null,null,"03:00:00",null,null,null,null,null,"03:00:00",null,null,null,null,null,"03:00:00"]
[null,null,null,null,null,null,null,null,null,null,null,null,null,null,null,null,null,null,null,null,null,null,null,null,null,null,null,null,null,null,null,null,null,null,null,null,null,null,null,null,null,null,null,null,null,null,null,null,null,null,null,null,null,null,null,null,null,null,null,null,null,null,null,null,null,null,null,null,null,null,null,null,null,null,null,null,null,null,null,null,null,null,null,null,null,null,null,null,null,null,null,null,null,null,null,null,null,null,null,null,null,null,null,null,null,null,null,null,null,null,null,null,null,null,null,null,null,null,null,null,null,null,null,null,null,null,null,null,null,null,null,null,null,null,null,null," "]
[null,null,null,null,null,null,null,null,null,null,null,null,null,null,null,null,null,null,null,null,null,null,null,"пр"]
[]
[3,null,null,null,null,"Береговой Г.П., электрик",null,null,null,null,null,null,null,null,null,null,null,null,null,null,null,null,null,1,null,null,null,null,"В",null,null,null,null,null,"В",null,null,null,null,null,"В",null,null,null,null,null,"В",null,null,null,null,null,"В",null,null,null,null,null,0.375,null,null,null,null,null,0.375,null,null,null,null,null,0.375,null,null,null,null,null,"В",null,null,null,null,null,"В",null,null,null,null,null,"В",null,null,null,null,null,0.375,null,null,null,null,null,0.375,null,null,null,null,null,0.375,null,null,null,null,null,0.375,null,null,null,null,null,"В",null,null,null,null,null,"В",null,null,null,null,null,0.375,null,null,null,null,null,0.375,null,null,null,null,null,0.375,null,null,null,null,null,0.375,null,null,null,null,null,0.375,null,null,null,null,null,"В",null,null,null,null,null,"В",null,null,null,null,null,0.375,null,null,null,null,null,0.375,null,null,null,null,null,0.375,null,null,null,null,null,0.375,null,null,null,null,null,0.375,null,null,null,null,null,"В",null,null,null,null,null,"В",null,null,null,null,null,{"$f":"COUNT(AC33:HF33)","v":17},null,null,null,null,null,null,null,null,null,null,null,null,null,null,null,null,null,{"$f":"SUM(IFERROR(AC34:HF34-AC33:HF33-AC35:HF35,0))","v":5.6249999999999991}]
[null,null,null,null,null,null,null,null,null,null,null,null,null,null,null,null,null,null,null,null,null,null,null,null,null,null,null,null,"В",null,null,null,null,null,"В",null,null,null,null,null,"В",null,null,null,null,null,"В",null,null,null,null,null,"В",null,null,null,null,null,0.75,null,null,null,null,null,0.75,null,null,null,null,null,0.70833333333333337,null,null,null,null,null,"В",null,null,null,null,null,"В",null,null,null,null,null,"В",null,null,null,null,null,0.75,null,null,null,null,null,0.75,null,null,null,null,null,0.75,null,null,null,null,null,0.75,null,null,null,null,null,"В",null,null,null,null,null,"В",null,null,null,null,null,0.75,null,null,null,null,null,0.75,null,null,null,null,null,0.75,null,null,null,null,null,0.75,null,null,null,null,null,0.75,null,null,null,null,null,"В",null,null,null,null,null,"В",null,null,null,null,null,0.75,null,null,null,null,null,0.75,null,null,null,null,null,0.75,null,null,null,null,null,0.75,null,null,null,null,null,0.75,null,null,null,null,null,"В",null,null,null,null,null,"В"]
[null,null,null,null,null,null,null,null,null,null,null,null,null,null,null,null,null,null,null,null,null,null,null,"обед",null,null,null,null,null,null,null,null,null,null,null,null,null,null,null,null,null,null,null,null,null,null,null,null,null,null,null,null,null,null,null,null,null,null,"01:00:00",null,null,null,null,null,"01:00:00",null,null,null,null,null,"01:00:00",null,null,null,null,null,null,null,null,null,null,null,null,null,null,null,null,null,null,null,null,null,null,null,"01:00:00",null,null,null,null,null,"01:00:00",null,null,null,null,null,"01:00:00",null,null,null,null,null,"01:00:00",null,null,null,null,null,null,null,null,null,null,null,null,null,null,null,null,null,"01:00:00",null,null,null,null,null,"01:00:00",null,null,null,null,null,"01:00:00",null,null,null,null,null,"01:00:00",null,null,null,null,null,"01:00:00",null,null,null,null,null,null,null,null,null,null,null,null,null,null,null,null,null,"01:00:00",null,null,null,null,null,"01:00:00",null,null,null,null,null,"01:00:00",null,null,null,null,null,"01:00:00",null,null,null,null,null,"01:00:00",null,null,null,null,null,null,null,null,null,null,null,null,null,null,null,null,null,null,null,null,null,null,null,null,null,null,null,null,null,null,null,null,null,null,null,null,null,null,null,null,null,null,null,0.3125]
[null,null,null,null,null,null,null,null,null,null,null,null,null,null,null,null,null,null,null,null,null,null,null,null,null,null,null,null,null,null,null,null,null,null,null,null,null,null,null,null,null,null,null,null,null,null,null,null,null,null,null,null,null,null,null,null,null,null,null,null,null,null,null,null,null,null,null,null,null,null,null,null,null,null,null,null,null,null,null,null,null,null,null,null,null,null,null,null,null,null,null,null,null,null,null,null,null,null,null,null,null,null,null,null,null,null,null,null,null,null,null,null,null,null,null,null,null,null,null,null,null,null,null,null,null,null,null,null,null,null,null,null,null,null,null,null,null,null,null,null,null,null,null,null,null,null,null,null,null,null,null,null,null,null,null,null,null,null,null,null,null,null,null,null,null,null,null,null,null,null,null,null,null,null,null,null,null,null,null,null,null,null,null,null,null,null,null,null,null,null,null,null,null,null,null,null,null,null,null,null,null,null,null,null,null,null,null,null,null,null,null,null,null,null,null,null,null,null,null,null,null,null,null,null,null,null,null,null,null,null,null,null,null,null,null,null,null,null,null,null,0.375]
[null,null,null,null,null,null,null,null,null,null,null,null,null,null,null,null,null,null,null,null,null,null,null,"пр",null,null,null,null,null,null,null,null,null,null,null,null,null,null,null,null,null,null,null,null,null,null,null,null,null,null,null,null,null,null,null,null,null,null,null,null,null,null,null,null,null,null,null,null,null,null,null,null,null,null,null,null,null,null,null,null,null,null,null,null,null,null,null,null,null,null,null,null,null,null,null,null,null,null,null,null,null,null,null,null,null,null,null,null,null,null,null,null,null,null,null,null,null,null,null,null,null,null,null,null,null,null,null,null,null,null,null,null,null,null,null,null,null,null,null,null,null,null,null,null,null,null,null,null,null,null,null,null,null,null,null,null,null,null,null,null,null,null,null,null,null,null,null,null,null,null,null,null,null,null,null,null,null,null,null,null,null,null,null,null,null,null,null,null,null,null,null,null,null,null,null,null,null,null,null,null,null,null,null,null,null,null,null,null,null,null,null,null,null,null,null,null,null,null,null,null,null,null,null,null,null,null,null,null,null,null,null,null,null,null,null,null,null,null,null,null,0.48958333333333331]
[null,null,null,null,null,null,null,null,null,null,null,null,null,null,null,null,null,null,null,null,null,null,null,null,null,null,null,null,null,null,null,null,null,null,null,null,null,null,null,null,null,null,null,null,null,null,null,null,null,null,null,null,null,null,null,null,null,null,null,null,null,null,null,null,null,null,null,null,null,null,null,null,null,null,null,null,null,null,null,null,null,null,null,null,null,null,null,null,null,null,null,null,null,null,null,null,null,null,null,null,null,null,null,null,null,null,null,null,null,null,null,null,null,null,null,null,null,null,null,null,null,null,null,null,null,null,null,null,null,null,null,null,null,null,null,null,null,null,null,null,null,null,null,null,null,null,null,null,null,null,null,null,null,null,null,null,null,null,null,null,null,null,null,null,null,null,null,null,null,null,null,null,null,null,null,null,null,null,null,null,null,null,null,null,null,null,null,null,null,null,null,null,null,null,null,null,null,null,null,null,null,null,null,null,null,null,null,null,null,null,null,null,null,null,null,null,null,null,null,null,null,null,null,null,null,null,null,null,null,null,null,null,null,null,null,null,null,null,null,null,0.54166666666666663]
[4,null,null,null,null,"Воротынцева В.Н., кассир билетный",null,null,null,null,null,null,null,null,null,null,null,null,null,null,null,null,null,1,null,null,null,null,null,null,null,null,null,null,null,null,null,null,null,null,0.375,null,null,null,null,null,null,null,null,null,null,null,0.375,null,null,null,null,null,null,null,null,null,null,null,0.375,null,null,null,null,null,null,null,null,null,null,null,null,null,null,null,null,null,null,null,null,null,null,null,0.375,null,null,null,null,null,null,null,null,null,null,null,0.375,null,null,null,null,null,null,null,null,null,null,null,0.375,null,null,null,null,null,null,null,null,null,null,null,0.375,null,null,null,null,null,null,null,null,null,null,null,0.375,null,null,null,null,null,null,null,null,null,null,null,0.375,null,null,null,null,null,null,null,null,null,null,null,0.375,null,null,null,null,null,null,null,null,null,null,null,0.375,null,null,null,null,null,null,null,null,null,null,null,0.375,null,null,null,null,null,null,null,null,null,null,null,0.375,null,null,null,null,null,null,null,null,null,null,null,0.375,null,null,null,null,null,{"$f":"COUNT(AC39:HF39)","v":14},null,null,null,null,null,null,null,null,null,null,null,null,null,null,null,null,null,{"$f":"SUM(IFERROR(AC40:HF40-AC39:HF39-AC41:HF41,0))","v":5.6249999999999991},null,null,null,null,null,null,null,0.70833333333333337]
[null,null,null,null,null,null,null,null,null,null,null,null,null,null,null,null,null,null,null,null,null,null,null,null,null,null,null,null,null,null,null,null,null,null,null,null,null,null,null,null,0.79166666666666663,null,null,null,null,null,null,null,null,null,null,null,0.79166666666666663,null,null,null,null,null,null,null,null,null,null,null,0.79166666666666663,null,null,null,null,null,null,null,null,null,null,null,null,null,null,null,null,null,null,null,null,null,null,null,0.79166666666666663,null,null,null,null,null,null,null,null,null,null,null,0.83333333333333337,null,null,null,null,null,null,null,null,null,null,null,0.83333333333333337,null,null,null,null,null,null,null,null,null,null,null,0.83333333333333337,null,null,null,null,null,null,null,null,null,null,null,0.83333333333333337,null,null,null,null,null,null,null,null,null,null,null,0.83333333333333337,null,null,null,null,null,null,null,null,null,null,null,0.83333333333333337,null,null,null,null,null,null,null,null,null,null,null,0.83333333333333337,null,null,null,null,null,null,null,null,null,null,null,0.83333333333333337,null,null,null,null,null,null,null,null,null,null,null,0.83333333333333337,null,null,null,null,null,null,null,null,null,null,null,0.83333333333333337,null,null,null,null,null,null,null,null,null,null,null,null,null,null,null,null,null,null,null,null,null,null,null,null,null,null,null,null,null,null,null,0.72916666666666663]
[null,null,null,null,null,null,null,null,null,null,null,null,null,null,null,null,null,null,null,null,null,null,null,"обед",null,null,null,null,null,null,null,null,null,null,null,null,null,null,null,null,"01:00:00",null,null,null,null,null,null,null,null,null,null,null,"01:00:00",null,null,null,null,null,null,null,null,null,null,null,"01:00:00",null,null,null,null,null,null,null,null,null,null,null,null,null,null,null,null,null,null,null,null,null,null,null,"01:00:00",null,null,null,null,null,null,null,null,null,null,null,"01:00:00",null,null,null,null,null,null,null,null,null,null,null,"01:00:00",null,null,null,null,null,null,null,null,null,null,null,"01:00:00",null,null,null,null,null,null,null,null,null,null,null,"01:00:00",null,null,null,null,null,null,null,null,null,null,null,"01:00:00",null,null,null,null,null,null,null,null,null,null,null,"01:00:00",null,null,null,null,null,null,null,null,null,null,null,"01:00:00",null,null,null,null,null,null,null,null,null,null,null,"01:00:00",null,null,null,null,null,null,null,null,null,null,null,"01:30:00",null,null,null,null,null,null,null,null,null,null,null,"01:30:00",null,null,null,null,null,null,null,null,null,null,null,null,null,null,null,null,null,null,null,null,null,null,null,null,null,null,null,null,null,null,null,0.79166666666666663]
[null,null,null,null,null,null,null,null,null,null,null,null,null,null,null,null,null,null,null,null,null,null,null,null,null,null,null,null,null,null,null,null,null,null,null,null,null,null,null,null,null,null,null,null,null,null,null,null,null,null,null,null,null,null,null,null,null,null,null,null,null,null,null,null,null,null,null,null,null,null,null,null,null,null,null,null,null,null,null,null,null,null,null,null,null,null,null,null,null,null,null,null,null,null,null,null,null,null,null,null,null,null,null,null,null,null,null,null,null,null,null,null,null,null,null,null,null,null,null,null,null,null,null,null,null,null,null,null,null,null,null,null,null,null,null,null,null,null,null,null,null,null,null,null,null,null,null,null,null,null,null,null,null,null,null,null,null,null,null,null,null,null,null,null,null,null,null,null,null,null,null,null,null,null,null,null,null,null,null,null,null,null,null,null,null,null,null,null,null,null,null,null,null,null,null,null,null,null,null,null,null,null,null,null,null,null,null,null,null,null,null,null,null,null,null,null,null,null,null,null,null,null,null,null,null,null,null,null,null,null,null,null,null,null,null,null,null,null,null,null,0.75]
[null,null,null,null,null,null,null,null,null,null,null,null,null,null,null,null,null,null,null,null,null,null,null,"пр",null,null,null,null,null,null,null,null,null,null,null,null,null,null,null,null,null,null,null,null,null,null,null,null,null,null,null,null,null,null,null,null,null,null,null,null,null,null,null,null,null,null,null,null,null,null,null,null,null,null,null,null,null,null,null,null,null,null,null,null,null,null,null,null,null,null,null,null,null,null,null,null,null,null,null,null,null,null,null,null,null,null,null,null,null,null,null,null,null,null,null,null,null,null,null,null,null,null,null,null,null,null,null,null,null,null,null,null,null,null,null,null,null,null,null,null,null,null,null,null,null,null,null,null,null,null,null,null,null,null,null,null,null,null,null,null,null,null,null,null,null,null,null,null,null,null,null,null,null,null,null,null,null,null,null,null,null,null,null,null,null,null,null,null,null,null,null,null,null,null,null,null,null,null,null,null,null,null,null,null,null,null,null,null,null,null,null,null,null,null,null,null,null,null,null,null,null,null,null,null,null,null,null,null,null,null,null,null,null,null,null,null,null,null,null,null,0.77083333333333337]
[null,null,null,null,null,null,null,null,null,null,null,null,null,null,null,null,null,null,null,null,null,null,null,null,null,null,null,null,null,null,null,null,null,null,null,null,null,null,null,null,null,null,null,null,null,null,null,null,null,null,null,null,null,null,null,null,null,null,null,null,null,null,null,null,null,null,null,null,null,null,null,null,null,null,null,null,null,null,null,null,null,null,null,null,null,null,null,null,null,null,null,null,null,null,null,null,null,null,null,null,null,null,null,null,null,null,null,null,null,null,null,null,null,null,null,null,null,null,null,null,null,null,null,null,null,null,null,null,null,null,null,null,null,null,null,null,null,null,null,null,null,null,null,null,null,null,null,null,null,null,null,null,null,null,null,null,null,null,null,null,null,null,null,null,null,null,null,null,null,null,null,null,null,null,null,null,null,null,null,null,null,null,null,null,null,null,null,null,null,null,null,null,null,null,null,null,null,null,null,null,null,null,null,null,null,null,null,null,null,null,null,null,null,null,null,null,null,null,null,null,null,null,null,null,null,null,null,null,null,null,null,null,null,null,null,null,null,null,null,null,0.625]
[5,null,null,null,null,"Окорочкова О.Т., кассир билетный",null,null,null,null,null,null,null,null,null,null,null,null,null,null,null,null,null,1,null,null,null,null,null,null,null,null,null,null,0.375,null,null,null,null,null,null,null,null,null,null,null,0.375,null,null,null,null,null,null,null,null,null,null,null,0.375,null,null,null,null,null,null,null,null,null,null,null,0.375,null,null,null,null,null,null,null,null,null,null,null,0.375,null,null,null,null,null,null,null,null,null,null,null,0.375,null,null,null,null,null,null,null,null,null,null,null,0.375,null,null,null,null,null,null,null,null,null,null,null,0.375,null,null,null,null,null,null,null,null,null,null,null,0.375,null,null,null,null,null,null,null,null,null,null,null,0.375,null,null,null,null,null,null,null,null,null,null,null,0.375,null,null,null,null,null,null,null,null,null,null,null,0.375,null,null,null,null,null,null,null,null,null,null,null,0.375,null,null,null,null,null,null,null,null,null,null,null,0.375,null,null,null,null,null,null,null,null,null,null,null,0.375,null,null,null,null,null,null,null,null,null,null,null,{"$f":"COUNT(AC45:HF45)","v":15},null,null,null,null,null,null,null,null,null,null,null,null,null,null,null,null,null,{"$f":"SUM(IFERROR(AC46:HF46-AC45:HF45-AC47:HF47,0))","v":5.6249999999999991},null,null,null,null,null,null,null,0.875]
[null,null,null,null,null,null,null,null,null,null,null,null,null,null,null,null,null,null,null,null,null,null,null,null,null,null,null,null,null,null,null,null,null,null,0.79166666666666663,null,null,null,null,null,null,null,null,null,null,null,0.79166666666666663,null,null,null,null,null,null,null,null,null,null,null,0.79166666666666663,null,null,null,null,null,null,null,null,null,null,null,0.79166666666666663,null,null,null,null,null,null,null,null,null,null,null,0.79166666666666663,null,null,null,null,null,null,null,null,null,null,null,0.79166666666666663,null,null,null,null,null,null,null,null,null,null,null,0.79166666666666663,null,null,null,null,null,null,null,null,null,null,null,0.79166666666666663,null,null,null,null,null,null,null,null,null,null,null,0.79166666666666663,null,null,null,null,null,null,null,null,null,null,null,0.79166666666666663,null,null,null,null,null,null,null,null,null,null,null,0.79166666666666663,null,null,null,null,null,null,null,null,null,null,null,0.79166666666666663,null,null,null,null,null,null,null,null,null,null,null,0.79166666666666663,null,null,null,null,null,null,null,null,null,null,null,0.79166666666666663,null,null,null,null,null,null,null,null,null,null,null,0.79166666666666663,null,null,null,null,null,null,null,null,null,null,null,null,null,null,null,null,null,null,null,null,null,null,null,null,null,null,null,null,null,null,null,null,null,null,null,null,null,0.58333333333333337]
[null,null,null,null,null,null,null,null,null,null,null,null,null,null,null,null,null,null,null,null,null,null,null,"обед",null,null,null,null,null,null,null,null,null,null,"01:00:00",null,null,null,null,null,null,null,null,null,null,null,"01:00:00",null,null,null,null,null,null,null,null,null,null,null,"01:00:00",null,null,null,null,null,null,null,null,null,null,null,"01:00:00",null,null,null,null,null,null,null,null,null,null,null,"01:00:00",null,null,null,null,null,null,null,null,null,null,null,"01:00:00",null,null,null,null,null,null,null,null,null,null,null,"01:00:00",null,null,null,null,null,null,null,null,null,null,null,"01:00:00",null,null,null,null,null,null,null,null,null,null,null,"01:00:00",null,null,null,null,null,null,null,null,null,null,null,"01:00:00",null,null,null,null,null,null,null,null,null,null,null,"01:00:00",null,null,null,null,null,null,null,null,null,null,null,"01:00:00",null,null,null,null,null,null,null,null,null,null,null,"01:00:00",null,null,null,null,null,null,null,null,null,null,null,"01:00:00",null,null,null,null,null,null,null,null,null,null,null,"01:00:00",null,null,null,null,null,null,null,null,null,null,null,null,null,null,null,null,null,null,null,null,null,null,null,null,null,null,null,null,null,null,null,null,null,null,null,null,null,0.83333333333333337]
[null,null,null,null,null,null,null,null,null,null,null,null,null,null,null,null,null,null,null,null,null,null,null,null,null,null,null,null,null,null,null,null,null,null,null,null,null,null,null,null,null,null,null,null,null,null,null,null,null,null,null,null,null,null,null,null,null,null,null,null,null,null,null,null,null,null,null,null,null,null,null,null,null,null,null,null,null,null,null,null,null,null,null,null,null,null,null,null,null,null,null,null,null,null,null,null,null,null,null,null,null,null,null,null,null,null,null,null,null,null,null,null,null,null,null,null,null,null,null,null,null,null,null,null,null,null,null,null,null,null,null,null,null,null,null,null,null,null,null,null,null,null,null,null,null,null,null,null,null,null,null,null,null,null,null,null,null,null,null,null,null,null,null,null,null,null,null,null,null,null,null,null,null,null,null,null,null,null,null,null,null,null,null,null,null,null,null,null,null,null,null,null,null,null,null,null,null,null,null,null,null,null,null,null,null,null,null,null,null,null,null,null,null,null,null,null,null,null,null,null,null,null,null,null,null,null,null,null,null,null,null,null,null,null,null,null,null,null,null,null,0.66666666666666663]
[null,null,null,null,null,null,null,null,null,null,null,null,null,null,null,null,null,null,null,null,null,null,null,"пр",null,null,null,null,null,null,null,null,null,null,null,null,null,null,null,null,null,null,null,null,null,null,null,null,null,null,null,null,null,null,null,null,null,null,null,null,null,null,null,null,null,null,null,null,null,null,null,null,null,null,null,null,null,null,null,null,null,null,null,null,null,null,null,null,null,null,null,null,null,null,null,null,null,null,null,null,null,null,null,null,null,null,null,null,null,null,null,null,null,null,null,null,null,null,null,null,null,null,null,null,null,null,null,null,null,null,null,null,null,null,null,null,null,null,null,null,null,null,null,null,null,null,null,null,null,null,null,null,null,null,null,null,null,null,null,null,null,null,null,null,null,null,null,null,null,null,null,null,null,null,null,null,null,null,null,null,null,null,null,null,null,null,null,null,null,null,null,null,null,null,null,null,null,null,null,null,null,null,null,null,null,null,null,null,null,null,null,null,null,null,null,null,null,null,null,null,null,null,null,null,null,null,null,null,null,null,null,null,null,null,null,null,null,null,null,null,0.9375]
[null,null,null,null,null,null,null,null,null,null,null,null,null,null,null,null,null,null,null,null,null,null,null,null,null,null,null,null,null,null,null,null,null,null,null,null,null,null,null,null,null,null,null,null,null,null,null,null,null,null,null,null,null,null,null,null,null,null,null,null,null,null,null,null,null,null,null,null,null,null,null,null,null,null,null,null,null,null,null,null,null,null,null,null,null,null,null,null,null,null,null,null,null,null,null,null,null,null,null,null,null,null,null,null,null,null,null,null,null,null,null,null,null,null,null,null,null,null,null,null,null,null,null,null,null,null,null,null,null,null,null,null,null,null,null,null,null,null,null,null,null,null,null,null,null,null,null,null,null,null,null,null,null,null,null,null,null,null,null,null,null,null,null,null,null,null,null,null,null,null,null,null,null,null,null,null,null,null,null,null,null,null,null,null,null,null,null,null,null,null,null,null,null,null,null,null,null,null,null,null,null,null,null,null,null,null,null,null,null,null,null,null,null,null,null,null,null,null,null,null,null,null,null,null,null,null,null,null,null,null,null,null,null,null,null,null,null,null,null,null,0.95833333333333337]
[6,null,null,null,null,"Пермякова Т.М., контролёр-посадчик аттракциона",null,null,null,null,null,null,null,null,null,null,null,null,null,null,null,null,null,1,null,null,null,null,null,null,null,null,null,null,null,null,null,null,null,null,0.375,null,null,null,null,null,null,null,null,null,null,null,0.375,null,null,null,null,null,null,null,null,null,null,null,0.375,null,null,null,null,null,null,null,null,null,null,null,null,null,null,null,null,null,null,null,null,null,null,null,0.375,null,null,null,null,null,null,null,null,null,null,null,0.375,null,null,null,null,null,null,null,null,null,null,null,0.375,null,null,null,null,null,null,null,null,null,null,null,0.375,null,null,null,null,null,null,null,null,null,null,null,0.375,null,null,null,null,null,null,null,null,null,null,null,0.375,null,null,null,null,null,null,null,null,null,null,null,0.375,null,null,null,null,null,null,null,null,null,null,null,0.375,null,null,null,null,null,null,null,null,null,null,null,0.375,null,null,null,null,null,null,null,null,null,null,null,0.375,null,null,null,null,null,null,null,null,null,null,null,0.375,null,null,null,null,null,{"$f":"COUNT(AC51:HF51)","v":14},null,null,null,null,null,null,null,null,null,null,null,null,null,null,null,null,null,{"$f":"SUM(IFERROR(AC52:HF52-AC51:HF51-AC53:HF53,0))","v":5.6249999999999991},null,null,null,null,null,null,null,0.97916666666666663]
[null,null,null,null,null,null,null,null,null,null,null,null,null,null,null,null,null,null,null,null,null,null,null,null,null,null,null,null,null,null,null,null,null,null,null,null,null,null,null,null,0.79166666666666663,null,null,null,null,null,null,null,null,null,null,null,0.79166666666666663,null,null,null,null,null,null,null,null,null,null,null,0.79166666666666663,null,null,null,null,null,null,null,null,null,null,null,null,null,null,null,null,null,null,null,null,null,null,null,0.79166666666666663,null,null,null,null,null,null,null,null,null,null,null,0.83333333333333337,null,null,null,null,null,null,null,null,null,null,null,0.83333333333333337,null,null,null,null,null,null,null,null,null,null,null,0.83333333333333337,null,null,null,null,null,null,null,null,null,null,null,0.83333333333333337,null,null,null,null,null,null,null,null,null,null,null,0.83333333333333337,null,null,null,null,null,null,null,null,null,null,null,0.83333333333333337,null,null,null,null,null,null,null,null,null,null,null,0.83333333333333337,null,null,null,null,null,null,null,null,null,null,null,0.83333333333333337,null,null,null,null,null,null,null,null,null,null,null,0.83333333333333337,null,null,null,null,null,null,null,null,null,null,null,0.83333333333333337,null,null,null,null,null,null,null,null,null,null,null,null,null,null,null,null,null,null,null,null,null,null,null,null,null,null,null,null,null,null,null,1]
[null,null,null,null,null,null,null,null,null,null,null,null,null,null,null,null,null,null,null,null,null,null,null,"обед",null,null,null,null,null,null,null,null,null,null,null,null,null,null,null,null,"01:00:00",null,null,null,null,null,null,null,null,null,null,null,"01:00:00",null,null,null,null,null,null,null,null,null,null,null,"01:00:00",null,null,null,null,null,null,null,null,null,null,null,null,null,null,null,null,null,null,null,null,null,null,null,"01:00:00",null,null,null,null,null,null,null,null,null,null,null,"01:00:00",null,null,null,null,null,null,null,null,null,null,null,"01:00:00",null,null,null,null,null,null,null,null,null,null,null,"01:00:00",null,null,null,null,null,null,null,null,null,null,null,"01:00:00",null,null,null,null,null,null,null,null,null,null,null,"01:00:00",null,null,null,null,null,null,null,null,null,null,null,"01:00:00",null,null,null,null,null,null,null,null,null,null,null,"01:00:00",null,null,null,null,null,null,null,null,null,null,null,"01:00:00",null,null,null,null,null,null,null,null,null,null,null,"01:30:00",null,null,null,null,null,null,null,null,null,null,null,"01:30:00"]
[null,null,null,null,null,null,null,null,null,null,null,null,null,null,null,null,null,null,null,null,null,null,null,null,null,null,null,null,null,null,null,null,null,null,null,null,null,null,null,null,null,null,null,null,null,null,null,null,null,null,null,null,null,null,null,null,null,null,null,null,null,null,null,null,null,null,null,null,null,null,null,null,null,null,null,null,null,null,null,null,null,null,null,null,null,null,null,null,null,null,null,null,null,null,null,null,null,null,null,null,null,null,null,null,null,null,null,null,null,null,null,null,null,null,null,null,null,null,null,null,null,null,null,null,null,null,null,null,null,null,null,null,null,null,null,null,null,null,null,null,null,null,null,null,null,null,null,null,null,null,null,null,null,null,null,null,null,null,null,null,null,null,null,null,null,null,null,null,null,null,null,null,null,null,null,null,null,null,null,null,null,null,null,null,null,null,null,null,null,null,null,null,null,null,null,null,null,null,null,null,null,null,null,null,null,null,null,null,null,null,null,null,null,null,null,null,null,null,null,null,null,null,null,null,null,null,null,null,null,null,null,null,null,null,null,null,null,null,null,null,"В"]
[null,null,null,null,null,null,null,null,null,null,null,null,null,null,null,null,null,null,null,null,null,null,null,"пр",null,null,null,null,null,null,null,null,null,null,null,null,null,null,null,null,null,null,null,null,null,null,null,null,null,null,null,null,null,null,null,null,null,null,null,null,null,null,null,null,null,null,null,null,null,null,null,null,null,null,null,null,null,null,null,null,null,null,null,null,null,null,null,null,null,null,null,null,null,null,null,null,null,null,null,null,null,null,null,null,null,null,null,null,null,null,null,null,null,null,null,null,null,null,null,null,null,null,null,null,null,null,null,null,null,null,null,null,null,null,null,null,null,null,null,null,null,null,null,null,null,null,null,null,null,null,null,null,null,null,null,null,null,null,null,null,null,null,null,null,null,null,null,null,null,null,null,null,null,null,null,null,null,null,null,null,null,null,null,null,null,null,null,null,null,null,null,null,null,null,null,null,null,null,null,null,null,null,null,null,null,null,null,null,null,null,null,null,null,null,null,null,null,null,null,null,null,null,null,null,null,null,null,null,null,null,null,null,null,null,null,null,null,null,null,null,"Б"]
[null,null,null,null,null,null,null,null,null,null,null,null,null,null,null,null,null,null,null,null,null,null,null,null,null,null,null,null,null,null,null,null,null,null,null,null,null,null,null,null,null,null,null,null,null,null,null,null,null,null,null,null,null,null,null,null,null,null,null,null,null,null,null,null,null,null,null,null,null,null,null,null,null,null,null,null,null,null,null,null,null,null,null,null,null,null,null,null,null,null,null,null,null,null,null,null,null,null,null,null,null,null,null,null,null,null,null,null,null,null,null,null,null,null,null,null,null,null,null,null,null,null,null,null,null,null,null,null,null,null,null,null,null,null,null,null,null,null,null,null,null,null,null,null,null,null,null,null,null,null,null,null,null,null,null,null,null,null,null,null,null,null,null,null,null,null,null,null,null,null,null,null,null,null,null,null,null,null,null,null,null,null,null,null,null,null,null,null,null,null,null,null,null,null,null,null,null,null,null,null,null,null,null,null,null,null,null,null,null,null,null,null,null,null,null,null,null,null,null,null,null,null,null,null,null,null,null,null,null,null,null,null,null,null,null,null,null,null,null,null,"К"]
[7,null,null,null,null,"Алексеева Р.И., котролёр-посадчик аттракциона",null,null,null,null,null,null,null,null,null,null,null,null,null,null,null,null,null,1,null,null,null,null,null,null,null,null,null,null,0.375,null,null,null,null,null,null,null,null,null,null,null,0.375,null,null,null,null,null,null,null,null,null,null,null,0.375,null,null,null,null,null,null,null,null,null,null,null,0.375,null,null,null,null,null,null,null,null,null,null,null,0.375,null,null,null,null,null,null,null,null,null,null,null,0.375,null,null,null,null,null,null,null,null,null,null,null,0.375,null,null,null,null,null,null,null,null,null,null,null,0.375,null,null,null,null,null,null,null,null,null,null,null,0.375,null,null,null,null,null,null,null,null,null,null,null,0.375,null,null,null,null,null,null,null,null,null,null,null,0.375,null,null,null,null,null,null,null,null,null,null,null,0.375,null,null,null,null,null,null,null,null,null,null,null,0.375,null,null,null,null,null,null,null,null,null,null,null,0.375,null,null,null,null,null,null,null,null,null,null,null,0.375,null,null,null,null,null,null,null,null,null,null,null,{"$f":"COUNT(AC57:HF57)","v":15},null,null,null,null,null,null,null,null,null,null,null,null,null,null,null,null,null,{"$f":"SUM(IFERROR(AC58:HF58-AC57:HF57-AC59:HF59,0))","v":5.6249999999999991},null,null,null,null,null,null,null,"О"]
[null,null,null,null,null,null,null,null,null,null,null,null,null,null,null,null,null,null,null,null,null,null,null,null,null,null,null,null,null,null,null,null,null,null,0.79166666666666663,null,null,null,null,null,null,null,null,null,null,null,0.79166666666666663,null,null,null,null,null,null,null,null,null,null,null,0.79166666666666663,null,null,null,null,null,null,null,null,null,null,null,0.79166666666666663,null,null,null,null,null,null,null,null,null,null,null,0.79166666666666663,null,null,null,null,null,null,null,null,null,null,null,0.79166666666666663,null,null,null,null,null,null,null,null,null,null,null,0.79166666666666663,null,null,null,null,null,null,null,null,null,null,null,0.79166666666666663,null,null,null,null,null,null,null,null,null,null,null,0.79166666666666663,null,null,null,null,null,null,null,null,null,null,null,0.79166666666666663,null,null,null,null,null,null,null,null,null,null,null,0.79166666666666663,null,null,null,null,null,null,null,null,null,null,null,0.79166666666666663,null,null,null,null,null,null,null,null,null,null,null,0.79166666666666663,null,null,null,null,null,null,null,null,null,null,null,0.79166666666666663,null,null,null,null,null,null,null,null,null,null,null,0.79166666666666663,null,null,null,null,null,null,null,null,null,null,null,null,null,null,null,null,null,null,null,null,null,null,null,null,null,null,null,null,null,null,null,null,null,null,null,null,null,"П"]
[null,null,null,null,null,null,null,null,null,null,null,null,null,null,null,null,null,null,null,null,null,null,null,"обед",null,null,null,null,null,null,null,null,null,null,"01:00:00",null,null,null,null,null,null,null,null,null,null,null,"01:00:00",null,null,null,null,null,null,null,null,null,null,null,"01:00:00",null,null,null,null,null,null,null,null,null,null,null,"01:00:00",null,null,null,null,null,null,null,null,null,null,null,"01:00:00",null,null,null,null,null,null,null,null,null,null,null,"01:00:00",null,null,null,null,null,null,null,null,null,null,null,"01:00:00",null,null,null,null,null,null,null,null,null,null,null,"01:00:00",null,null,null,null,null,null,null,null,null,null,null,"01:00:00",null,null,null,null,null,null,null,null,null,null,null,"01:00:00",null,null,null,null,null,null,null,null,null,null,null,"01:00:00",null,null,null,null,null,null,null,null,null,null,null,"01:00:00",null,null,null,null,null,null,null,null,null,null,null,"01:00:00",null,null,null,null,null,null,null,null,null,null,null,"01:00:00",null,null,null,null,null,null,null,null,null,null,null,"01:00:00"]
[null,null,null,null,null,null,null,null,null,null,null,null,null,null,null,null,null,null,null,null,null,null,null,null,null,null,null,null,null,null,null,null,null,null,null,null,null,null,null,null,null,null,null,null,null,null,null,null,null,null,null,null,null,null,null,null,null,null,null,null,null,null,null,null,null,null,null,null,null,null,null,null,null,null,null,null,null,null,null,null,null,null,null,null,null,null,null,null,null,null,null,null,null,null,null,null,null,null,null,null,null,null,null,null,null,null,null,null,null,null,null,null,null,null,null,null,null,null,null,null,null,null,null,null,null,null,null,null,null,null,null,null,null,null,null,null,null,null,null,null,null,null,null,null,null,null,null,null,null,null,null,null,null,null,null,null,null,null,null,null,null,null,null,null,null,null,null,null,null,null,null,null,null,null,null,null,null,null,null,null,null,null,null,null,null,null,null,null,null,null,null,null,null,null,null,null,null,null,null,null,null,null,null,null,null,null,null,null,null,null,null,null,null,null,null,null,null,null,null,null,null,null,null,null,null,null,null,null,null,null,null,null,null,null,null,null,null,null,null,null,"С"]
[null,null,null,null,null,null,null,null,null,null,null,null,null,null,null,null,null,null,null,null,null,null,null,"пр"]
[]
[8,null,null,null,null,"Перминов К.И., дежурный зала",null,null,null,null,null,null,null,null,null,null,null,null,null,null,null,null,null,1,null,null,null,null,"В",null,null,null,null,null,0.375,null,null,null,null,null,0.375,null,null,null,null,null,0.41666666666666669,null,null,null,null,null,"В",null,null,null,null,null,0.375,null,null,null,null,null,0.375,null,null,null,null,null,0.375,null,null,null,null,null,"В",null,null,null,null,null,"В",null,null,null,null,null,"В",null,null,null,null,null,"В",null,null,null,null,null,0.375,null,null,null,null,null,0.375,null,null,null,null,null,0.375,null,null,null,null,null,0.375,null,null,null,null,null,0.375,null,null,null,null,null,0.41666666666666669,null,null,null,null,null,"В",null,null,null,null,null,0.375,null,null,null,null,null,0.375,null,null,null,null,null,0.375,null,null,null,null,null,0.375,null,null,null,null,null,0.375,null,null,null,null,null,0.41666666666666669,null,null,null,null,null,"В",null,null,null,null,null,0.375,null,null,null,null,null,0.375,null,null,null,null,null,0.375,null,null,null,null,null,0.375,null,null,null,null,null,0.375,null,null,null,null,null,{"$f":"COUNT(AC63:HF63)","v":23},null,null,null,null,null,null,null,null,null,null,null,null,null,null,null,null,null,{"$f":"SUM(IFERROR(AC64:HF64-AC63:HF63-AC65:HF65,0))","v":5.6249999999999991}]
[null,null,null,null,null,null,null,null,null,null,null,null,null,null,null,null,null,null,null,null,null,null,null,null,null,null,null,null,"В",null,null,null,null,null,0.79166666666666663,null,null,null,null,null,0.79166666666666663,null,null,null,null,null,0.66666666666666663,null,null,null,null,null,"В",null,null,null,null,null,0.79166666666666663,null,null,null,null,null,0.79166666666666663,null,null,null,null,null,0.79166666666666663,null,null,null,null,null,"В",null,null,null,null,null,"В",null,null,null,null,null,"В",null,null,null,null,null,"В",null,null,null,null,null,0.79166666666666663,null,null,null,null,null,0.79166666666666663,null,null,null,null,null,0.79166666666666663,null,null,null,null,null,0.79166666666666663,null,null,null,null,null,0.79166666666666663,null,null,null,null,null,0.66666666666666663,null,null,null,null,null,"В",null,null,null,null,null,0.79166666666666663,null,null,null,null,null,0.79166666666666663,null,null,null,null,null,0.79166666666666663,null,null,null,null,null,0.79166666666666663,null,null,null,null,null,0.79166666666666663,null,null,null,null,null,0.66666666666666663,null,null,null,null,null,"В",null,null,null,null,null,0.79166666666666663,null,null,null,null,null,0.79166666666666663,null,null,null,null,null,0.79166666666666663,null,null,null,null,null,0.79166666666666663,null,null,null,null,null,0.79166666666666663]
[null,null,null,null,null,null,null,null,null,null,null,null,null,null,null,null,null,null,null,null,null,null,null,"обед",null,null,null,null,null,null,null,null,null,null,"04:00:00",null,null,null,null,null,"04:00:00",null,null,null,null,null,"01:00:00",null,null,null,null,null,null,null,null,null,null,null,"04:00:00",null,null,null,null,null,"04:00:00",null,null,null,null,null,"04:00:00",null,null,null,null,null,null,null,null,null,null,null,null,null,null,null,null,null," ",null,null,null,null,null,null,null,null,null,null,null,"04:00:00",null,null,null,null,null,"04:00:00",null,null,null,null,null,"04:00:00",null,null,null,null,null,"04:00:00",null,null,null,null,null,"04:00:00",null,null,null,null,null,"01:00:00",null,null,null,null,null,null,null,null,null,null,null,"04:00:00",null,null,null,null,null,"04:00:00",null,null,null,null,null,"04:00:00",null,null,null,null,null,"04:00:00",null,null,null,null,null,"04:00:00",null,null,null,null,null,"01:00:00",null,null,null,null,null,null,null,null,null,null,null,"04:00:00",null,null,null,null,null,"04:00:00",null,null,null,null,null,"04:00:00",null,null,null,null,null,"04:00:00",null,null,null,null,null,"04:00:00"]
[]
[null,null,null,null,null,null,null,null,null,null,null,null,null,null,null,null,null,null,null,null,null,null,null,"пр"]
[]
[9,null,null,null,null,"Перминов К.И., кассир",null,null,null,null,null,null,null,null,null,null,null,null,null,null,null,null,null,0.25,null,null,null,null,null,null,null,null,null,null,0.375,null,null,null,null,null,0.375,null,null,null,null,null,0.375,null,null,null,null,null,null,null,null,null,null,null,0.375,null,null,null,null,null,0.375,null,null,null,null,null,0.375,null,null,null,null,null,null,null,null,null,null,null,null,null,null,null,null,null,null,null,null,null,null,null,null,null,null,null,null,null,0.375,null,null,null,null,null,0.375,null,null,null,null,null,0.375,null,null,null,null,null,0.375,null,null,null,null,null,0.375,null,null,null,null,null,0.375,null,null,null,null,null,null,null,null,null,null,null,0.375,null,null,null,null,null,0.375,null,null,null,null,null,0.375,null,null,null,null,null,0.375,null,null,null,null,null,0.375,null,null,null,null,null,0.375,null,null,null,null,null,null,null,null,null,null,null,0.375,null,null,null,null,null,0.375,null,null,null,null,null,0.375,null,null,null,null,null,0.375,null,null,null,null,null,0.375,null,null,null,null,null,{"$f":"COUNT(AC69:HF69)","v":23},null,null,null,null,null,null,null,null,null,null,null,null,null,null,null,null,null,{"$f":"SUM(IFERROR(AC70:HF70-AC69:HF69-AC71:HF71,0))","v":1.4062499999999996}]
[null,null,null,null,null,null,null,null,null,null,null,null,null,null,null,null,null,null,null,null,null,null,null,null,null,null,null,null,null,null,null,null,null,null,0.41666666666666669,null,null,null,null,null,0.41666666666666669,null,null,null,null,null,0.41666666666666669,null,null,null,null,null,null,null,null,null,null,null,0.41666666666666669,null,null,null,null,null,0.41666666666666669,null,null,null,null,null,0.41666666666666669,null,null,null,null,null,null,null,null,null,null,null,null,null,null,null,null,null,null,null,null,null,null,null,null,null,null,null,null,null,0.41666666666666669,null,null,null,null,null,0.41666666666666669,null,null,null,null,null,0.41666666666666669,null,null,null,null,null,0.41666666666666669,null,null,null,null,null,0.41666666666666669,null,null,null,null,null,0.41666666666666669,null,null,null,null,null,null,null,null,null,null,null,0.41666666666666669,null,null,null,null,null,0.45833333333333331,null,null,null,null,null,0.45833333333333331,null,null,null,null,null,0.45833333333333331,null,null,null,null,null,0.45833333333333331,null,null,null,null,null,0.45833333333333331,null,null,null,null,null,null,null,null,null,null,null,0.45833333333333331,null,null,null,null,null,0.45833333333333331,null,null,null,null,null,0.45833333333333331,null,null,null,null,null,0.45833333333333331,null,null,null,null,null,0.48958333333333331]
[null,null,null,null,null,null,null,null,null,null,null,null,null,null,null,null,null,null,null,null,null,null,null,"обед"]
[]
[null,null,null,null,null,null,null,null,null,null,null,null,null,null,null,null,null,null,null,null,null,null,null,"пр"]
[]
[10,null,null,null,null,"Бутелин Ю.Н., сторож",null,null,null,null,null,null,null,null,null,null,null,null,null,null,null,null,null,1,null,null,null,null,"В",null,null,null,null,null,0.83333333333333337,null,null,null,null,null,"В",null,null,null,null,null,"В",null,null,null,null,null,0.83333333333333337,null,null,null,null,null,"В",null,null,null,null,null,"В",null,null,null,null,null,0.83333333333333337,null,null,null,null,null,"В",null,null,null,null,null,"В",null,null,null,null,null,0.83333333333333337,null,null,null,null,null,"В",null,null,null,null,null,"В",null,null,null,null,null,0.83333333333333337,null,null,null,null,null,"В",null,null,null,null,null,"В",null,null,null,null,null,0.79166666666666663,null,null,null,null,null,"В",null,null,null,null,null,"В",null,null,null,null,null,0.79166666666666663,null,null,null,null,null,"В",null,null,null,null,null,"В",null,null,null,null,null,0.79166666666666663,null,null,null,null,null,"В",null,null,null,null,null,"В",null,null,null,null,null,0.79166666666666663,null,null,null,null,null,"В",null,null,null,null,null,"В",null,null,null,null,null,0.79166666666666663,null,null,null,null,null,"В",null,null,null,null,null,"В",null,null,null,null,null,{"$f":"COUNT(AC75:HF75)","v":10},null,null,null,null,null,null,null,null,null,null,null,null,null,null,null,null,null,{"$f":"SUM(IF(ISNUMBER(AC75:HF75),AC76:HF76-AC75:HF75+(AC76:HF76<AC75:HF75),))*24","v":134.99999999999997}]
[null,null,null,null,null,null,null,null,null,null,null,null,null,null,null,null,null,null,null,null,null,null,null,null,null,null,null,null,"В",null,null,null,null,null,0.375,null,null,null,null,null,"В",null,null,null,null,null,"В",null,null,null,null,null,0.375,null,null,null,null,null,"В",null,null,null,null,null,"В",null,null,null,null,null,0.375,null,null,null,null,null,"В",null,null,null,null,null,"В",null,null,null,null,null,0.375,null,null,null,null,null,"В",null,null,null,null,null,"В",null,null,null,null,null,0.375,null,null,null,null,null,"В",null,null,null,null,null,"В",null,null,null,null,null,0.375,null,null,null,null,null,"В",null,null,null,null,null,"В",null,null,null,null,null,0.375,null,null,null,null,null,"В",null,null,null,null,null,"В",null,null,null,null,null,0.375,null,null,null,null,null,"В",null,null,null,null,null,"В",null,null,null,null,null,0.375,null,null,null,null,null,"В",null,null,null,null,null,"В",null,null,null,null,null,0.375,null,null,null,null,null,"В",null,null,null,null,null,"В"]
[null,null,null,null,null,null,null,null,null,null,null,null,null,null,null,null,null,null,null,null,null,null,null,null,null,null,null,null,null,null,null,null,null,null,13,null,null,null,null,null,null,null,null,null,null,null,null,null,null,null,null,null,13,null,null,null,null,null,null,null,null,null,null,null,null,null,null,null,null,null,13,null,null,null,null,null,null,null,null,null,null,null,null,null,null,null,null,null,13,null,null,null,null,null,null,null,null,null,null,null,null,null,null,null,null,null,13,null,null,null,null,null,null,null,null,null,null,null,null,null,null,null,null,null,14,null,null,null,null,null,null,null,null,null,null,null,null,null,null,null,null,null,14,null,null,null,null,null,null,null,null,null,null,null,null,null,null,null,null,null,14,null,null,null,null,null,null,null,null,null,null,null,null,null,null,null,null,null,14,null,null,null,null,null,null,null,null,null,null,null,null,null,null,null,null,null,14,null,null,null,null,null,null,null,null,null,null,null,null,null,null,null,null,null,null,null,null,null,null,null,null,null,null,null,null,null,null,null,null,null,null,null,{"$f":"SUM(AC77:HF77)","v":135}]
[]
[null,null,null,null,null,null,null,null,null,null,null,null,null,null,null,null,null,null,null,null,null,null,null,"НОЧЬ",null,null,null,null,null,null,null,null,null,null,{"$f":"(MIN(AI76,6/24)-MIN(AI75,6/24)+MAX(AI76,22/24)-MAX(AI75,22/24))*24+(AI76<AI75)*8","v":8},null,null,null,null,null,null,null,null,null,null,null,null,null,null,null,null,null,{"$f":"(MIN(BA76,6/24)-MIN(BA75,6/24)+MAX(BA76,22/24)-MAX(BA75,22/24))*24+(BA76<BA75)*8","v":8},null,null,null,null,null,null,null,null,null,null,null,null,null,null,null,null,null,{"$f":"(MIN(BS76,6/24)-MIN(BS75,6/24)+MAX(BS76,22/24)-MAX(BS75,22/24))*24+(BS76<BS75)*8","v":8},null,null,null,null,null,null,null,null,null,null,null,null,null,null,null,null,null,{"$f":"(MIN(CK76,6/24)-MIN(CK75,6/24)+MAX(CK76,22/24)-MAX(CK75,22/24))*24+(CK76<CK75)*8","v":8},null,null,null,null,null,null,null,null,null,null,null,null,null,null,null,null,null,{"$f":"(MIN(DC76,6/24)-MIN(DC75,6/24)+MAX(DC76,22/24)-MAX(DC75,22/24))*24+(DC76<DC75)*8","v":8},null,null,null,null,null,null,null,null,null,null,null,null,null,null,null,null,null,{"$f":"(MIN(DU76,6/24)-MIN(DU75,6/24)+MAX(DU76,22/24)-MAX(DU75,22/24))*24+(DU76<DU75)*8","v":8},null,null,null,null,null,null,null,null,null,null,null,null,null,null,null,null,null,{"$f":"(MIN(EM76,6/24)-MIN(EM75,6/24)+MAX(EM76,22/24)-MAX(EM75,22/24))*24+(EM76<EM75)*8","v":8},null,null,null,null,null,null,null,null,null,null,null,null,null,null,null,null,null,{"$f":"(MIN(FE76,6/24)-MIN(FE75,6/24)+MAX(FE76,22/24)-MAX(FE75,22/24))*24+(FE76<FE75)*8","v":8},null,null,null,null,null,null,null,null,null,null,null,null,null,null,null,null,null,{"$f":"(MIN(FW76,6/24)-MIN(FW75,6/24)+MAX(FW76,22/24)-MAX(FW75,22/24))*24+(FW76<FW75)*8","v":8},null,null,null,null,null,null,null,null,null,null,null,null,null,null,null,null,null,{"$f":"(MIN(GO76,6/24)-MIN(GO75,6/24)+MAX(GO76,22/24)-MAX(GO75,22/24))*24+(GO76<GO75)*8","v":8},null,null,null,null,null,null,null,null,null,null,null,null,null,null,null,null,null,null,null,null,null,null,null,null,null,null,null,null,null,null,null,null,null,null,null,{"$f":"SUM(AC79:HF79)","v":80}]
[]
[null,null,null,null,null,null,null,null,null,null,null,null,null,null,null,null,null,null,null,null,null,null,null,"пр",null,null,null,null,null,null,null,null,null,null,null,null,null,null,null,null,null,null,null,null,null,null,null,null,null,null,null,null,null,null,null,null,null,null,null,null,null,null,null,null,null,null,null,null,null,null,9,null,null,null,null,null,null,null,null,null,null,null,null,null,null,null,null,null,null,null,null,null,null,null,null,null,null,null,null,null,null,null,null,null,null,null,null,null,null,null,null,null,null,null,null,null,null,null,null,null,null,null,null,null,null,null,null,null,null,null,null,null,null,null,null,null,null,null,null,null,null,null,null,null,null,null,null,null,null,null,null,null,null,null,null,null,null,null,null,null,null,null,null,null,null,null,null,null,null,null,null,null,null,null,null,null,null,null,null,null,null,null,null,null,null,null,null,null,null,null,null,null,null,null,null,null,null,null,null,null,null,null,null,null,null,null,null,null,null,null,null,null,null,null,null,null,null,null,null,null,null,null,null,null,null,null,null,null,null,null,null,null,{"$f":"SUM(AC81:HF81)","v":9}]
[]
[11,null,null,null,null,"Бутелин Ю.Н., контролёр-посадчик",null,null,null,null,null,null,null,null,null,null,null,null,null,null,null,null,null,0.25,null,null,null,null,null,null,null,null,null,null,3,null,null,null,null,null,null,null,null,null,null,null,null,null,null,null,null,null,3,null,null,null,null,null,null,null,null,null,null,null,null,null,null,null,null,null,3,null,null,null,null,null,null,null,null,null,null,null,null,null,null,null,null,null,3,null,null,null,null,null,null,null,null,null,null,null,null,null,null,null,null,null,3,null,null,null,null,null,null,null,null,null,null,null,null,null,null,null,null,null,3,null,null,null,null,null,null,null,null,null,null,null,null,null,null,null,null,null,4,null,null,null,null,null,null,null,null,null,null,null,null,null,null,null,null,null,4,null,null,null,null,null,null,null,null,null,null,null,null,null,null,null,null,null,4,null,null,null,null,null,null,null,null,null,null,null,null,null,null,null,null,null,3.45,null,null,null,null,null,null,null,null,null,null,null,null,null,null,null,null,null,{"$f":"COUNT(AC83:HF83)","v":10},null,null,null,null,null,null,null,null,null,null,null,null,null,null,null,null,null,{"$f":"SUM(AC83:HF83)","v":33.450000000000003}]
[]
[]
[]
[null,null,null,null,null,null,null,null,null,null,null,null,null,null,null,null,null,null,null,null,null,null,null,"пр",null,null,null,null,null,null,null,null,null,null,null,null,null,null,null,null,null,null,null,null,null,null,null,null,null,null,null,null,null,null,null,null,null,null,null,null,null,null,null,null,null,null,null,null,null,null,3,null,null,null,null,null,null,null,null,null,null,null,null,null,null,null,null,null,null,null,null,null,null,null,null,null,null,null,null,null,null,null,null,null,null,null,null,null,null,null,null,null,null,null,null,null,null,null,null,null,null,null,null,null,null,null,null,null,null,null,null,null,null,null,null,null,null,null,null,null,null,null,null,null,null,null,null,null,null,null,null,null,null,null,null,null,null,null,null,null,null,null,null,null,null,null,null,null,null,null,null,null,null,null,null,null,null,null,null,null,null,null,null,null,null,null,null,null,null,null,null,null,null,null,null,null,null,null,null,null,null,null,null,null,null,null,null,null,null,null,null,null,null,null,null,null,null,null,null,null,null,null,null,null,null,null,null,null,null,null,null,null,{"$f":"SUM(AC87:HF87)","v":3}]
[]
[12,null,null,null,null,"Медведев А.П., сторож",null,null,null,null,null,null,null,null,null,null,null,null,null,null,null,null,null,1,null,null,null,null,null,null,null,null,null,null,null,null,null,null,null,null,2.0833333333333332E-2,null,null,null,null,null,null,null,null,null,null,null,null,null,null,null,null,null,2.0833333333333332E-2,null,null,null,null,null,null,null,null,null,null,null,null,null,null,null,null,null,2.0833333333333332E-2,null,null,null,null,null,null,null,null,null,null,null,null,null,null,null,null,null,2.0833333333333332E-2,null,null,null,null,null,null,null,null,null,null,null,null,null,null,null,null,null,2.0833333333333332E-2,null,null,null,null,null,null,null,null,null,null,null,null,null,null,null,null,null,2.0833333333333332E-2,null,null,null,null,null,null,null,null,null,null,null,null,null,null,null,null,null,2.0833333333333332E-2,null,null,null,null,null,null,null,null,null,null,null,null,null,null,null,null,null,6.25E-2,null,null,null,null,null,null,null,null,null,null,null,null,null,null,null,null,null,6.25E-2,null,null,null,null,null,null,null,null,null,null,null,null,null,null,null,null,null,4.1666666666666664E-2,null,null,null,null,null,null,null,null,null,null,null,{"$f":"COUNT(AC89:HF89)","v":10},null,null,null,null,null,null,null,null,null,null,null,null,null,null,null,null,null,{"$f":"SUM(IFERROR(AC90:HF90-AC89:HF89-AC91:HF91,0))","v":2.8125000000000004}]
[null,null,null,null,null,null,null,null,null,null,null,null,null,null,null,null,null,null,null,null,null,null,null,null,null,null,null,null,null,null,null,null,null,null,null,null,null,null,null,null,0.3125,null,null,null,null,null,null,null,null,null,null,null,null,null,null,null,null,null,0.3125,null,null,null,null,null,null,null,null,null,null,null,null,null,null,null,null,null,0.3125,null,null,null,null,null,null,null,null,null,null,null,null,null,null,null,null,null,0.3125,null,null,null,null,null,null,null,null,null,null,null,null,null,null,null,null,null,0.3125,null,null,null,null,null,null,null,null,null,null,null,null,null,null,null,null,null,0.3125,null,null,null,null,null,null,null,null,null,null,null,null,null,null,null,null,null,0.3125,null,null,null,null,null,null,null,null,null,null,null,null,null,null,null,null,null,0.3125,null,null,null,null,null,null,null,null,null,null,null,null,null,null,null,null,null,0.3125,null,null,null,null,null,null,null,null,null,null,null,null,null,null,null,null,null,0.3125]
[null,null,null,null,null,null,null,null,null,null,null,null,null,null,null,null,null,null,null,null,null,null,null,"обед"]
[]
[null,null,null,null,null,null,null,null,null,null,null,null,null,null,null,null,null,null,null,null,null,null,null,"НОЧЬ",null,null,null,null,null,null,null,null,null,null,null,null,null,null,null,null,{"$f":"(MIN(AO90,6/24)-MIN(AO89,6/24)+MAX(AO90,22/24)-MAX(AO89,22/24))*24+(AO90<AO89)*8","v":5.4999999999999991},null,null,null,null,null,null,null,null,null,null,null,null,null,null,null,null,null,{"$f":"(MIN(BG90,6/24)-MIN(BG89,6/24)+MAX(BG90,22/24)-MAX(BG89,22/24))*24+(BG90<BG89)*8","v":5.4999999999999991},null,null,null,null,null,null,null,null,null,null,null,null,null,null,null,null,null,{"$f":"(MIN(BY90,6/24)-MIN(BY89,6/24)+MAX(BY90,22/24)-MAX(BY89,22/24))*24+(BY90<BY89)*8","v":5.4999999999999991},null,null,null,null,null,null,null,null,null,null,null,null,null,null,null,null,null,{"$f":"(MIN(CQ90,6/24)-MIN(CQ89,6/24)+MAX(CQ90,22/24)-MAX(CQ89,22/24))*24+(CQ90<CQ89)*8","v":5.4999999999999991},null,null,null,null,null,null,null,null,null,null,null,null,null,null,null,null,null,{"$f":"(MIN(DI90,6/24)-MIN(DI89,6/24)+MAX(DI90,22/24)-MAX(DI89,22/24))*24+(DI90<DI89)*8","v":5.4999999999999991},null,null,null,null,null,null,null,null,null,null,null,null,null,null,null,null,null,{"$f":"(MIN(EA90,6/24)-MIN(EA89,6/24)+MAX(EA90,22/24)-MAX(EA89,22/24))*24+(EA90<EA89)*8","v":5.4999999999999991},null,null,null,null,null,null,null,null,null,null,null,null,null,null,null,null,null,{"$f":"(MIN(ES90,6/24)-MIN(ES89,6/24)+MAX(ES90,22/24)-MAX(ES89,22/24))*24+(ES90<ES89)*8","v":5.4999999999999991},null,null,null,null,null,null,null,null,null,null,null,null,null,null,null,null,null,{"$f":"(MIN(FK90,6/24)-MIN(FK89,6/24)+MAX(FK90,22/24)-MAX(FK89,22/24))*24+(FK90<FK89)*8","v":4.4999999999999973},null,null,null,null,null,null,null,null,null,null,null,null,null,null,null,null,null,{"$f":"(MIN(GC90,6/24)-MIN(GC89,6/24)+MAX(GC90,22/24)-MAX(GC89,22/24))*24+(GC90<GC89)*8","v":4.4999999999999973},null,null,null,null,null,null,null,null,null,null,null,null,null,null,null,null,null,{"$f":"(MIN(GU90,6/24)-MIN(GU89,6/24)+MAX(GU90,22/24)-MAX(GU89,22/24))*24+(GU90<GU89)*8","v":5.0000000000000009},null,null,null,null,null,null,null,null,null,null,null,null,null,null,null,null,null,null,null,null,null,null,null,null,null,null,null,null,null,{"$f":"SUM(AC93:HF93)","v":52.499999999999993}]
[]
[null,null,null,null,null,null,null,null,null,null,null,null,null,null,null,null,null,null,null,null,null,null,null,"пр",null,null,null,null,null,null,null,null,null,null,null,null,null,null,null,null,null,null,null,null,null,null,null,null,null,null,null,null,null,null,null,null,null,null,null,null,null,null,null,null,null,null,null,null,null,null,null,null,null,null,null,null,7,null,null,null,null,null,null,null,null,null,null,null,null,null,null,null,null,null,null,null,null,null,null,null,null,null,null,null,null,null,null,null,null,null,null,null,null,null,null,null,null,null,null,null,null,null,null,null,null,null,null,null,null,null,null,null,null,null,null,null,null,null,null,null,null,null,null,null,null,null,null,null,null,null,null,null,null,null,null,null,null,null,null,null,null,null,null,null,null,null,null,null,null,null,null,null,null,null,null,null,null,null,null,null,null,null,null,null,null,null,null,null,null,null,null,null,null,null,null,null,null,null,null,null,null,null,null,null,null,null,null,null,null,null,null,null,null,null,null,null,null,null,null,null,null,null,null,null,null,null,null,null,null,null,null,null,{"$f":"SUM(AC95:HF95)","v":7}]

{"sheet":"К.П. ИЮНЬ 2020 ","index":1,"n_rows":95,"n_cols":257,"rows_kept":95,"cut":false,"hidden":false,"merged":[[4,241,4,242],[7,0,7,76],[11,210,11,227],[11,235,12,235],[12,211,12,219],[13,250,13,254],[0,241,0,242],[1,0,1,2],[1,241,1,242],[2,0,2,2],[2,241,2,242],[3,0,3,2],[3,241,3,242],[18,88,19,93],[18,94,19,99],[17,250,17,254],[18,0,19,4],[18,5,19,22],[18,23,19,27],[18,28,19,33],[18,34,19,39],[18,40,19,45],[18,46,19,51],[18,52,19,57],[18,58,19,63],[14,0,14,227],[14,250,14,254],[15,0,15,227],[15,250,15,254],[16,0,16,227],[16,250,16,254],[18,208,19,213],[18,214,18,232],[18,250,18,254],[19,214,19,228],[19,250,19,254],[20,0,25,4],[20,5,25,22],[20,23,21,27],[20,28,20,33],[20,34,20,39],[18,172,19,177],[18,178,19,183],[18,184,19,189],[18,190,19,195],[18,196,19,201],[18,202,19,207],[18,136,19,141],[18,142,19,147],[18,148,19,153],[18,154,19,159],[18,160,19,165],[18,166,19,171],[18,100,19,105],[18,106,19,111],[18,112,19,117],[18,118,19,123],[18,124,19,129],[18,130,19,135],[18,64,19,69],[18,70,19,75],[18,76,19,81],[18,82,19,87],[20,112,20,117],[20,118,20,123],[20,124,20,129],[20,130,20,135],[20,136,20,141],[20,142,20,147],[20,76,20,81],[20,82,20,87],[20,88,20,93],[20,94,20,99],[20,100,20,105],[20,106,20,111],[20,40,20,45],[20,46,20,51],[20,52,20,57],[20,58,20,63],[20,64,20,69],[20,70,20,75],[21,76,21,81],[21,82,21,87],[21,88,21,93],[21,94,21,99],[21,100,21,105],[21,106,21,111],[20,221,20,228],[20,250,20,254],[21,28,21,33],[21,34,21,39],[21,40,21,45],[21,46,21,51],[21,52,21,57],[21,58,21,63],[21,64,21,69],[21,70,21,75],[20,184,20,189],[20,190,20,195],[20,196,20,201],[20,202,20,207],[20,208,20,213],[20,214,21,220],[21,184,21,189],[21,190,21,195],[21,196,21,201],[21,202,21,207],[20,148,20,153],[20,154,20,159],[20,160,20,165],[20,166,20,171],[20,172,20,177],[20,178,20,183],[22,118,22,123],[22,124,22,129],[22,130,22,135],[22,136,22,141],[22,70,22,75],[22,76,22,81],[22,82,22,87],[22,88,22,93],[22,94,22,99],[22,100,22,105],[21,208,21,213],[21,250,21,254],[22,23,23,27],[22,28,22,33],[22,34,22,39],[22,40,22,45],[22,46,22,51],[22,52,22,57],[22,58,22,63],[22,64,22,69],[21,148,21,153],[21,154,21,159],[21,160,21,165],[21,166,21,171],[21,172,21,177],[21,178,21,183],[21,112,21,117],[21,118,21,123],[21,124,21,129],[21,130,21,135],[21,136,21,141],[21,142,21,147],[23,130,23,135],[23,136,23,141],[23,70,23,75],[23,76,23,81],[23,82,23,87],[23,88,23,93],[23,94,23,99],[23,100,23,105],[22,214,23,220],[22,221,23,228],[22,250,22,254],[23,28,23,33],[23,34,23,39],[23,40,23,45],[23,46,23,51],[23,52,23,57],[23,58,23,63],[23,64,23,69],[22,178,22,183],[22,184,22,189],[22,190,22,195],[22,196,22,201],[22,202,22,207],[22,208,22,213],[22,142,22,147],[22,148,22,153],[22,154,22,159],[22,160,22,165],[22,166,22,171],[22,172,22,177],[22,106,22,111],[22,112,22,117],[24,76,24,81],[24,82,24,87],[24,88,24,93],[24,94,24,99],[24,100,24,105],[24,106,24,111],[23,250,23,254],[24,23,25,27],[24,28,24,33],[24,34,24,39],[24,40,24,45],[24,46,24,51],[24,52,24,57],[24,58,24,63],[24,64,24,69],[24,70,24,75],[23,178,23,183],[23,184,23,189],[23,190,23,195],[23,196,23,201],[23,202,23,207],[23,208,23,213],[23,142,23,147],[23,148,23,153],[23,154,23,159],[23,160,23,165],[23,166,23,171],[23,172,23,177],[23,106,23,111],[23,112,23,117],[23,118,23,123],[23,124,23,129],[24,221,25,228],[24,250,24,254],[25,28,25,33],[25,34,25,39],[25,40,25,45],[25,46,25,51],[25,52,25,57],[25,58,25,63],[25,64,25,69],[25,70,25,75],[24,184,24,189],[24,190,24,195],[24,196,24,201],[24,202,24,207],[24,208,24,213],[24,214,25,220],[25,184,25,189],[25,190,25,195],[25,196,25,201],[25,202,25,207],[24,148,24,153],[24,154,24,159],[24,160,24,165],[24,166,24,171],[24,172,24,177],[24,178,24,183],[24,112,24,117],[24,118,24,123],[24,124,24,129],[24,130,24,135],[24,136,24,141],[24,142,24,147],[26,76,26,81],[26,82,26,87],[26,88,26,93],[26,94,26,99],[25,208,25,213],[26,0,31,4],[26,5,31,22],[26,23,27,27],[26,28,26,33],[26,34,26,39],[26,40,26,45],[26,46,26,51],[26,52,26,57],[26,58,26,63],[25,148,25,153],[25,154,25,159],[25,160,25,165],[25,166,25,171],[25,172,25,177],[25,178,25,183],[25,112,25,117],[25,118,25,123],[25,124,25,129],[25,130,25,135],[25,136,25,141],[25,142,25,147],[25,76,25,81],[25,82,25,87],[25,88,25,93],[25,94,25,99],[25,100,25,105],[25,106,25,111],[27,100,27,105],[27,106,27,111],[26,208,26,213],[26,214,27,220],[27,28,27,33],[27,34,27,39],[27,40,27,45],[27,46,27,51],[27,52,27,57],[27,58,27,63],[27,64,27,69],[27,70,27,75],[26,172,26,177],[26,178,26,183],[26,184,26,189],[26,190,26,195],[26,196,26,201],[26,202,26,207],[26,136,26,141],[26,142,26,147],[26,148,26,153],[26,154,26,159],[26,160,26,165],[26,166,26,171],[26,100,26,105],[26,106,26,111],[26,112,26,117],[26,118,26,123],[26,124,26,129],[26,130,26,135],[26,64,26,69],[26,70,26,75],[28,52,28,57],[28,58,28,63],[28,64,28,69],[28,70,28,75],[28,76,28,81],[28,82,28,87],[27,184,27,189],[27,190,27,195],[27,196,27,201],[27,202,27,207],[27,208,27,213],[28,23,29,27],[28,28,28,33],[28,34,28,39],[28,40,28,45],[28,46,28,51],[27,148,27,153],[27,154,27,159],[27,160,27,165],[27,166,27,171],[27,172,27,177],[27,178,27,183],[27,112,27,117],[27,118,27,123],[27,124,27,129],[27,130,27,135],[27,136,27,141],[27,142,27,147],[27,76,27,81],[27,82,27,87],[27,88,27,93],[27,94,27,99],[29,70,29,75],[29,76,29,81],[29,82,29,87],[29,88,29,93],[28,196,28,201],[28,202,28,207],[28,208,28,213],[28,214,29,220],[28,221,29,228],[29,28,29,33],[29,34,29,39],[29,40,29,45],[29,46,29,51],[29,52,29,57],[28,160,28,165],[28,166,28,171],[28,172,28,177],[28,178,28,183],[28,184,28,189],[28,190,28,195],[28,124,28,129],[28,130,28,135],[28,136,28,141],[28,142,28,147],[28,148,28,153],[28,154,28,159],[28,88,28,93],[28,94,28,99],[28,100,28,105],[28,106,28,111],[28,112,28,117],[28,118,28,123],[30,94,30,99],[30,100,30,105],[29,202,29,207],[29,208,29,213],[30,23,31,27],[30,28,30,33],[30,34,30,39],[30,40,30,45],[30,46,30,51],[30,52,30,57],[30,58,30,63],[30,64,30,69],[29,166,29,171],[29,172,29,177],[29,178,29,183],[29,184,29,189],[29,190,29,195],[29,196,29,201],[29,130,29,135],[29,136,29,141],[29,142,29,147],[29,148,29,153],[29,154,29,159],[29,160,29,165],[29,94,29,99],[29,100,29,105],[29,106,29,111],[29,112,29,117],[29,118,29,123],[29,124,29,129],[29,58,29,63],[29,64,29,69],[30,214,31,220],[30,221,31,228],[31,28,31,33],[31,34,31,39],[31,40,31,45],[31,46,31,51],[31,52,31,57],[31,58,31,63],[31,64,31,69],[31,70,31,75],[30,178,30,183],[30,184,30,189],[30,190,30,195],[30,196,30,201],[30,202,30,207],[30,208,30,213],[30,142,30,147],[30,148,30,153],[30,154,30,159],[30,160,30,165],[30,166,30,171],[30,172,30,177],[30,106,30,111],[30,112,30,117],[30,118,30,123],[30,124,30,129],[30,130,30,135],[30,136,30,141],[30,70,30,75],[30,76,30,81],[30,82,30,87],[30,88,30,93],[32,0,37,4],[32,5,37,22],[32,23,33,27],[32,28,32,33],[32,34,32,39],[31,148,31,153],[31,154,31,159],[31,160,31,165],[31,166,31,171],[31,172,31,177],[31,178,31,183],[31,112,31,117],[31,118,31,123],[31,124,31,129],[31,130,31,135],[31,136,31,141],[31,142,31,147],[31,76,31,81],[31,82,31,87],[31,88,31,93],[31,94,31,99],[31,100,31,105],[31,106,31,111],[32,76,32,81],[32,82,32,87],[32,88,32,93],[32,94,32,99],[32,100,32,105],[32,106,32,111],[32,40,32,45],[32,46,32,51],[32,52,32,57],[32,58,32,63],[32,64,32,69],[32,70,32,75],[31,184,31,189],[31,190,31,195],[31,196,31,201],[31,202,31,207],[31,208,31,213],[32,184,32,189],[32,190,32,195],[32,196,32,201],[32,202,32,207],[32,208,32,213],[32,214,33,220],[33,208,33,213],[32,148,32,153],[32,154,32,159],[32,160,32,165],[32,166,32,171],[32,172,32,177],[32,178,32,183],[32,112,32,117],[32,118,32,123],[32,124,32,129],[32,130,32,135],[32,136,32,141],[32,142,32,147],[33,178,33,183],[33,184,33,189],[33,190,33,195],[33,196,33,201],[33,202,33,207],[33,166,33,171],[33,100,33,105],[33,106,33,111],[33,112,33,117],[33,118,33,123],[33,124,33,129],[33,130,33,135],[34,106,34,111],[34,112,34,117],[34,118,34,123],[34,124,34,129],[34,58,34,63],[34,64,34,69],[34,70,34,75],[34,76,34,81],[34,82,34,87],[34,88,34,93],[34,23,35,27],[34,28,34,33],[34,34,34,39],[34,40,34,45],[34,46,34,51],[34,52,34,57],[33,172,33,177],[33,64,33,69],[33,70,33,75],[33,76,33,81],[33,82,33,87],[33,88,33,93],[33,94,33,99],[33,28,33,33],[33,34,33,39],[33,40,33,45],[33,46,33,51],[33,52,33,57],[33,58,33,63],[35,124,35,129],[35,130,35,135],[35,64,35,69],[35,70,35,75],[35,76,35,81],[35,82,35,87],[35,88,35,93],[35,94,35,99],[33,136,33,141],[33,142,33,147],[33,148,33,153],[33,154,33,159],[33,160,33,165],[34,202,34,207],[34,208,34,213],[34,214,35,220],[34,221,35,228],[35,28,35,33],[35,34,35,39],[35,40,35,45],[35,46,35,51],[35,52,35,57],[35,58,35,63],[34,166,34,171],[34,172,34,177],[34,178,34,183],[34,184,34,189],[34,190,34,195],[34,196,34,201],[34,130,34,135],[34,136,34,141],[34,142,34,147],[34,148,34,153],[34,154,34,159],[34,160,34,165],[34,94,34,99],[34,100,34,105],[36,76,36,81],[36,82,36,87],[36,88,36,93],[36,94,36,99],[36,100,36,105],[36,106,36,111],[35,208,35,213],[36,23,37,27],[36,28,36,33],[36,34,36,39],[36,40,36,45],[36,46,36,51],[36,52,36,57],[36,58,36,63],[36,64,36,69],[36,70,36,75],[35,172,35,177],[35,178,35,183],[35,184,35,189],[35,190,35,195],[35,196,35,201],[35,202,35,207],[35,136,35,141],[35,142,35,147],[35,148,35,153],[35,154,35,159],[35,160,35,165],[35,166,35,171],[35,100,35,105],[35,106,35,111],[35,112,35,117],[35,118,35,123],[36,221,37,228],[37,28,37,33],[37,34,37,39],[37,40,37,45],[37,46,37,51],[37,52,37,57],[37,58,37,63],[37,64,37,69],[37,70,37,75],[37,76,37,81],[36,184,36,189],[36,190,36,195],[36,196,36,201],[36,202,36,207],[36,208,36,213],[36,214,37,220],[37,190,37,195],[37,196,37,201],[37,202,37,207],[37,208,37,213],[36,148,36,153],[36,154,36,159],[36,160,36,165],[36,166,36,171],[36,172,36,177],[36,178,36,183],[36,112,36,117],[36,118,36,123],[36,124,36,129],[36,130,36,135],[36,136,36,141],[36,142,36,147],[37,154,37,159],[37,160,37,165],[37,166,37,171],[37,172,37,177],[37,178,37,183],[37,184,37,189],[37,118,37,123],[37,124,37,129],[37,130,37,135],[37,136,37,141],[37,142,37,147],[37,148,37,153],[37,82,37,87],[37,88,37,93],[37,94,37,99],[37,100,37,105],[37,106,37,111],[37,112,37,117],[38,82,38,87],[38,88,38,93],[38,94,38,99],[38,100,38,105],[38,106,38,111],[38,112,38,117],[38,46,38,51],[38,52,38,57],[38,58,38,63],[38,64,38,69],[38,70,38,75],[38,76,38,81],[38,0,43,4],[38,5,43,22],[38,23,39,27],[38,28,38,33],[38,34,38,39],[38,40,38,45],[39,28,39,33],[39,34,39,39],[39,40,39,45],[40,23,41,27],[39,82,39,87],[39,88,39,93],[39,94,39,99],[39,100,39,105],[39,106,39,111],[39,112,39,117],[39,46,39,51],[39,52,39,57],[39,58,39,63],[39,64,39,69],[38,190,38,195],[38,196,38,201],[38,202,38,207],[38,208,38,213],[38,214,39,220],[38,221,39,221],[39,190,39,195],[39,196,39,201],[39,202,39,207],[39,208,39,213],[38,154,38,159],[38,160,38,165],[38,166,38,171],[38,172,38,177],[38,178,38,183],[38,184,38,189],[38,118,38,123],[38,124,38,129],[38,130,38,135],[38,136,38,141],[38,142,38,147],[38,148,38,153],[39,172,39,177],[39,178,39,183],[39,184,39,189],[39,118,39,123],[39,124,39,129],[39,130,39,135],[39,136,39,141],[39,142,39,147],[39,148,39,153],[39,160,39,165],[39,70,39,75],[39,76,39,81],[40,124,40,129],[40,130,40,135],[40,64,40,69],[40,70,40,75],[40,76,40,81],[40,82,40,87],[40,88,40,93],[40,94,40,99],[40,28,40,33],[40,34,40,39],[40,40,40,45],[40,46,40,51],[40,52,40,57],[40,58,40,63],[39,154,39,159],[40,118,40,123],[39,166,39,171],[41,70,41,75],[41,76,41,81],[41,82,41,87],[41,88,41,93],[41,94,41,99],[41,100,41,105],[40,208,40,213],[40,214,41,220],[40,221,41,228],[41,28,41,33],[41,34,41,39],[41,40,41,45],[41,46,41,51],[41,52,41,57],[41,58,41,63],[41,64,41,69],[40,172,40,177],[40,178,40,183],[40,184,40,189],[40,190,40,195],[40,196,40,201],[40,202,40,207],[40,136,40,141],[40,142,40,147],[40,148,40,153],[40,154,40,159],[40,160,40,165],[40,166,40,171],[40,100,40,105],[40,106,40,111],[40,112,40,117],[41,178,41,183],[41,184,41,189],[41,190,41,195],[41,196,41,201],[41,202,41,207],[41,208,41,213],[41,142,41,147],[41,148,41,153],[41,154,41,159],[41,160,41,165],[41,166,41,171],[41,172,41,177],[41,106,41,111],[41,112,41,117],[41,118,41,123],[41,124,41,129],[41,130,41,135],[41,136,41,141],[42,112,42,117],[42,118,42,123],[42,124,42,129],[42,58,42,63],[42,64,42,69],[42,70,42,75],[42,76,42,81],[42,82,42,87],[42,88,42,93],[42,23,43,27],[42,28,42,33],[42,34,42,39],[42,40,42,45],[42,46,42,51],[42,52,42,57],[43,118,43,123],[43,124,43,129],[43,130,43,135],[43,64,43,69],[43,70,43,75],[43,76,43,81],[43,82,43,87],[43,88,43,93],[43,94,43,99],[42,202,42,207],[42,208,42,213],[42,214,43,220],[42,221,43,228],[43,28,43,33],[43,34,43,39],[43,40,43,45],[43,46,43,51],[43,52,43,57],[43,58,43,63],[42,166,42,171],[42,172,42,177],[42,178,42,183],[42,184,42,189],[42,190,42,195],[42,196,42,201],[42,130,42,135],[42,136,42,141],[42,142,42,147],[42,148,42,153],[42,154,42,159],[42,160,42,165],[42,94,42,99],[42,100,42,105],[42,106,42,111],[44,130,44,135],[44,64,44,69],[44,70,44,75],[44,76,44,81],[44,82,44,87],[44,88,44,93],[44,94,44,99],[43,208,43,213],[44,0,49,4],[44,5,49,22],[44,23,45,27],[44,28,44,33],[44,34,44,39],[44,40,44,45],[44,46,44,51],[44,52,44,57],[44,58,44,63],[43,172,43,177],[43,178,43,183],[43,184,43,189],[43,190,43,195],[43,196,43,201],[43,202,43,207],[43,136,43,141],[43,142,43,147],[43,148,43,153],[43,154,43,159],[43,160,43,165],[43,166,43,171],[43,100,43,105],[43,106,43,111],[43,112,43,117],[45,82,45,87],[45,88,45,93],[45,94,45,99],[45,100,45,105],[45,106,45,111],[44,208,44,213],[44,214,45,220],[45,28,45,33],[45,34,45,39],[45,40,45,45],[45,46,45,51],[45,52,45,57],[45,58,45,63],[45,64,45,69],[45,70,45,75],[44,172,44,177],[44,178,44,183],[44,184,44,189],[44,190,44,195],[44,196,44,201],[44,202,44,207],[44,136,44,141],[44,142,44,147],[44,148,44,153],[44,154,44,159],[44,160,44,165],[44,166,44,171],[44,100,44,105],[44,106,44,111],[44,112,44,117],[44,118,44,123],[44,124,44,129],[46,106,46,111],[46,112,46,117],[46,118,46,123],[46,52,46,57],[46,58,46,63],[46,64,46,69],[46,70,46,75],[46,76,46,81],[46,82,46,87],[45,184,45,189],[45,190,45,195],[45,196,45,201],[45,202,45,207],[45,208,45,213],[46,23,47,27],[46,28,46,33],[46,34,46,39],[46,40,46,45],[46,46,46,51],[45,148,45,153],[45,154,45,159],[45,160,45,165],[45,166,45,171],[45,172,45,177],[45,178,45,183],[45,112,45,117],[45,118,45,123],[45,124,45,129],[45,130,45,135],[45,136,45,141],[45,142,45,147],[45,76,45,81],[47,124,47,129],[47,58,47,63],[47,64,47,69],[47,70,47,75],[47,76,47,81],[47,82,47,87],[47,88,47,93],[46,196,46,201],[46,202,46,207],[46,208,46,213],[46,214,47,220],[46,221,47,228],[47,28,47,33],[47,34,47,39],[47,40,47,45],[47,46,47,51],[47,52,47,57],[46,160,46,165],[46,166,46,171],[46,172,46,177],[46,178,46,183],[46,184,46,189],[46,190,46,195],[46,124,46,129],[46,130,46,135],[46,136,46,141],[46,142,46,147],[46,148,46,153],[46,154,46,159],[46,88,46,93],[46,94,46,99],[46,100,46,105],[48,76,48,81],[48,82,48,87],[48,88,48,93],[48,94,48,99],[48,100,48,105],[47,202,47,207],[47,208,47,213],[48,23,49,27],[48,28,48,33],[48,34,48,39],[48,40,48,45],[48,46,48,51],[48,52,48,57],[48,58,48,63],[48,64,48,69],[47,166,47,171],[47,172,47,177],[47,178,47,183],[47,184,47,189],[47,190,47,195],[47,196,47,201],[47,130,47,135],[47,136,47,141],[47,142,47,147],[47,148,47,153],[47,154,47,159],[47,160,47,165],[47,94,47,99],[47,100,47,105],[47,106,47,111],[47,112,47,117],[47,118,47,123],[49,94,49,99],[49,100,49,105],[49,106,49,111],[48,214,49,220],[48,221,49,228],[49,28,49,33],[49,34,49,39]],"merged_total":2546,"flags":["merged_cut"]}
[null,null,null,null,null,null,null,null,null,null,null,null,null,null,null,null,null,null,null,null,null,null,null,null,null,null,null,null,null,null,null,null,null,null,null,null,null,null,null,null,null,null,null,null,null,null,null,null,null,null,null,null,null,null,null,null,null,null,null,null,null,null,null,null,null,null,null,null,null,null,null,null,null,null,null,null,null,null,null,null,null,null,null,null,null,null,null,null,null,null,null,null,null,null,null,null,null,null,null,null,null,null,null,null,null,null,null,null,null,null,null,null,null,null,null,null,null,null,null,null,null,null,null,null,null,null,null,null,null,null,null,null,null,null,null,null,null,null,null,null,null,null,null,null,null,null,null,null,null,null,null,null,null,null,null,null,null,null,null,null,null,null,null,null,null,null,null,null,null,null,null,null,null,null,null,null,null,null,null,null,null,null,null,null,null,null,null,null,null,null,null,null,null,null,null,null,null,null,null,null,null,null,null,null,null,null,null,null,null,null,null,null,null,null,null,null,null,null,null,null,null,null,null,null,null,null,null,null,null,null,null,null,null,null,null,null,null,null,null,null,null,"СЕГОДНЯ",null,null,null,null,null,null,null,null,"на январь 2020 года",null,1]
[null,null,null,null,null,null,null,null,null,null,null,null,null,null,null,null,null,null,null,null,null,null,null,null,null,null,null,null,null,null,null,null,null,null,null,null,null,null,null,null,null,null,null,null,null,null,null,null,null,null,null,null,null,null,null,null,null,null,null,null,null,null,null,null,null,null,null,null,null,null,null,null,null,null,null,null,null,null,null,null,null,null,null,null,null,null,null,null,null,null,null,null,null,null,null,null,null,null,null,null,null,null,null,null,null,null,null,null,null,null,null,null,null,null,null,null,null,null,null,null,null,null,null,null,null,null,null,null,null,null,null,null,null,null,null,null,null,null,null,null,null,null,null,null,null,null,null,null,null,null,null,null,null,null,null,null,null,null,null,null,null,null,null,null,null,null,null,null,null,null,null,null,null,null,null,null,null,null,null,null,null,null,null,null,null,null,null,null,null,null,null,null,null,null,null,null,null,null,null,null,null,null,null,null,null,null,null,null,null,null,null,null,null,null,null,null,null,null,null,null,null,null,null,null,null,null,null,null,null,null,null,null,null,null,null,null,null,null,null,null,null,{"$f":"TODAY()","v":"2020-05-05"},null,null,null,null,null,null,null,null,"на февраль 2020 года",null,2]
[null,null,null,null,null,null,null,null,null,null,null,null,null,null,null,null,null,null,null,null,null,null,null,null,null,null,null,null,null,null,null,null,null,null,null,null,null,null,null,null,null,null,null,null,null,null,null,null,null,null,null,null,null,null,null,null,null,null,null,null,null,null,null,null,null,null,null,null,null,null,null,null,null,null,null,null,null,null,null,null,null,null,null,null,null,null,null,null,null,null,null,null,null,null,null,null,null,null,null,null,null,null,null,null,null,null,null,null,null,null,null,null,null,null,null,null,null,null,null,null,null,null,null,null,null,null,null,null,null,null,null,null,null,null,null,null,null,null,null,null,null,null,null,null,null,null,null,null,null,null,null,null,null,null,null,null,null,null,null,null,null,null,null,null,null,null,null,null,null,null,null,null,null,null,null,null,null,null,null,null,null,null,null,null,null,null,null,null,null,null,null,null,null,null,null,null,null,null,null,null,null,null,null,null,null,null,null,null,null,null,null,null,null,null,null,null,null,null,null,null,null,null,null,null,null,null,null,null,null,null,null,null,null,null,null,null,null,null,null,null,null,{"$f":"TEXT(HZ2,\"дддд\")","v":"суббота"},null,null,null,null,null,null,null,null,"на март 2020 года",null,3]
[null,null,null,null,null,null,null,null,null,null,null,null,null,null,null,null,null,null,null,null,null,null,null,null,null,null,null,null,null,null,null,null,null,null,null,null,null,null,null,null,null,null,null,null,null,null,null,null,null,null,null,null,null,null,null,null,null,null,null,null,null,null,null,null,null,null,null,null,null,null,null,null,null,null,null,null,null,null,null,null,null,null,null,null,null,null,null,null,null,null,null,null,null,null,null,null,null,null,null,null,null,null,null,null,null,null,null,null,null,null,null,null,null,null,null,null,null,null,null,null,null,null,null,null,null,null,null,null,null,null,null,null,null,null,null,null,null,null,null,null,null,null,null,null,null,null,null,null,null,null,null,null,null,null,null,null,null,null,null,null,null,null,null,null,null,null,null,null,null,null,null,null,null,null,null,null,null,null,null,null,null,null,null,null,null,null,null,null,null,null,null,null,null,null,null,null,null,null,null,null,null,null,null,null,null,null,null,null,null,null,null,null,null,null,null,null,null,null,null,null,null,null,null,null,null,null,null,null,null,null,null,null,null,null,null,null,null,null,null,null,null,{"$f":"WEEKNUM(IH2,2)&\"-ая неделя\"","v":"19-ая неделя"},null,null,null,null,null,null,null,null,"на апрель 2020 года",null,4]
[null,null,null,null,null,null,null,null,{"$f":"IF(OR(#REF!<D3,AND(#REF!<D2,#REF!=D3)),$CN$19,IF(OR(#REF!>D3,AND(#REF!>D2,#REF!=D3)),0,DAY(A2)))","v":{"$error":"#REF!"}},null,null,null,null,null,null,null,null,null,null,null,null,null,null,null,null,null,null,null,null,null,null,null,null,null,null,null,null,null,null,null,null,null,null,null,null,null,null,null,null,null,null,null,null,null,null,null,null,null,null,null,null,null,null,null,null,null,null,null,null,null,null,null,null,null,null,null,null,null,null,null,null,null,null,null,null,null,null,null,null,null,null,null,null,null,null,null,null,null,null,null,null,null,null,null,null,null,null,null,null,null,null,null,null,null,null,null,null,null,null,null,null,null,null,null,null,null,null,null,null,null,null,null,null,null,null,null,null,null,null,null,null,null,null,null,null,null,null,null,null,null,null,null,null,null,null,null,null,null,null,null,null,null,null,null,null,null,null,null,null,null,null,null,null,null,null,null,null,null,null,null,null,null,null,null,null,null,null,null,null,null,null,null,null,null,null,null,null,null,null,null,null,null,null,null,null,null,null,null,null,null,null,null,null,null,null,null,null,null,null,null,null,null,null,null,null,null,null,null,null,null,null,null,null,null,null,null,null,null,null,null,null,{"$f":"IF(OR(#REF!<IC3,AND(#REF!<IC2,#REF!=IC3)),$CN$19,IF(OR(#REF!>IC3,AND(#REF!>IC2,#REF!=IC3)),0,DAY(HZ2)))","v":{"$error":"#REF!"}},null,null,null,null,null,null,null,null,"на май 2020 года",null,5]
[null,null,null,null,null,null,null,null,null,null,null,null,null,null,null,null,null,null,null,null,null,null,null,null,null,null,null,null,null,null,null,null,null,null,null,null,null,null,null,null,null,null,null,null,null,null,null,null,null,null,null,null,null,null,null,null,null,null,null,null,null,null,null,null,null,null,null,null,null,null,null,null,null,null,null,null,null,null,null,null,null,null,null,null,null,null,null,null,null,null,null,null,null,null,null,null,null,null,null,null,null,null,null,null,null,null,null,null,null,null,null,null,null,null,null,null,null,null,null,null,null,null,null,null,null,null,null,null,null,null,null,null,null,null,null,null,null,null,null,null,null,null,null,null,null,null,null,null,null,null,null,null,null,null,null,null,null,null,null,null,null,null,null,null,null,null,null,null,null,null,null,null,null,null,null,null,null,null,null,null,null,null,null,null,null,null,null,null,null,null,null,null,null,null,null,null,null,null,null,null,null,null,null,null,null,null,null,null,null,null,null,null,null,null,null,null,null,null,null,null,null,null,null,null,null,null,null,null,null,null,null,null,null,null,null,null,null,null,null,null,"время",null,null,null,null,null,null,null,null,null,"на июнь 2020 года",null,6]
[null,null,null,null,null,null,null,null,null,null,null,null,null,null,null,null,null,null,null,null,null,null,null,null,null,null,null,null,null,null,null,null,null,null,null,null,null,null,null,null,null,null,null,null,null,null,null,null,null,null,null,null,null,null,null,null,null,null,null,null,null,null,null,null,null,null,null,null,null,null,null,null,null,null,null,null,null,null,null,null,null,null,null,null,null,null,null,null,null,null,null,null,null,null,null,null,null,null,null,null,null,null,null,null,null,null,null,null,null,null,null,null,null,null,null,null,null,null,null,null,null,null,null,null,null,null,null,null,null,null,null,null,null,null,null,null,null,null,null,null,null,null,null,null,null,null,null,null,null,null,null,null,null,null,null,null,null,null,null,null,null,null,null,null,null,null,null,null,null,null,null,null,null,null,null,null,null,null,null,null,null,null,null,null,null,null,null,null,null,null,null,null,null,null,null,null,null,null,null,null,null,null,null,null,null,null,null,null,1,null,null,null,null,null,null,null,null,null,null,null,null,null,null,null,null,null,null,null,null,null,null,null,null,null,null,"количество дней месяца",null,null,30,null,null,null,null,null,null,null,null,null,null,null,"на июль 2020 года",null,7]
[null,null,null,null,null,null,null,null,null,null,null,null,null,null,null,null,null,null,null,null,null,null,null,null,null,null,null,null,null,null,null,null,null,null,null,null,null,null,null,null,null,null,null,null,null,null,null,null,null,null,null,null,null,null,null,null,null,null,null,null,null,null,null,null,null,null,null,null,null,null,null,null,null,null,null,null,null,null,null,null,null,null,null,null,null,null,null,null,null,null,null,null,null,null,null,null,null,null,null,null,null,null,null,null,null,null,null,null,null,null,null,null,null,null,null,null,null,null,null,null,null,null,null,null,null,null,null,null,null,null,null,null,null,null,null,null,null,null,null,null,null,null,null,null,null,null,null,null,null,null,null,null,null,null,null,null,null,null,null,null,null,null,null,null,null,null,null,null,null,null,null,null,null,null,null,null,null,null,null,null,null,null,null,null,null,null,null,null,null,null,null,null,null,null,null,null,null,null,null,null,null,null,null,null,null,null,null,null,2,null,null,null,null,null,null,null,null,null,null,null,null,null,null,null,null,null,null,null,null,null,null,null,null,null,null,"месяц",null,null,6,null,0,null,136,17,null,"я",null,null,null,null,"на август 2020 года",null,8]
[null,null,null,null,null,null,null,null,null,null,null,null,null,null,null,null,null,null,null,null,null,null,null,null,null,null,null,null,null,null,null,null,null,null,null,null,null,null,null,null,null,null,null,null,null,null,null,null,null,null,null,null,null,null,null,null,null,null,null,null,null,null,null,null,null,null,null,null,null,null,null,null,null,null,null,null,null,null,null,null,null,null,null,null,null,null,null,null,null,null,null,null,null,null,null,null,null,null,null,null,null,null,null,null,null,null,null,null,null,null,null,null,null,null,null,null,null,null,null,null,null,null,null,null,null,null,null,null,null,null,null,null,null,null,null,null,null,null,null,null,null,null,null,null,null,null,null,null,null,null,null,null,null,null,null,null,null,null,null,null,null,null,null,null,null,null,null,null,null,null,null,null,null,null,null,null,null,null,null,null,null,null,null,null,null,null,null,null,null,null,null,null,null,null,null,null,null,null,null,null,null,null,null,null,null,null,null,null,null,null,null,null,null,null,null,null,null,null,null,null,null,null,null,null,null,null,null,null,null,null,null,null,null,null,null,"год",null,null,{"$f":"YEAR(A17)","v":2020},null,2.0833333333333332E-2,null,152,19,null,"ф",null,null,null,null,"на сентябрь 2020 года",null,9]
[null,null,null,null,null,null,null,null,null,null,null,null,null,null,null,null,null,null,null,null,null,null,null,null,null,null,null,null,null,null,null,null,null,null,null,null,null,null,null,null,null,null,null,null,null,null,null,null,null,null,null,null,null,null,null,null,null,null,null,null,null,null,null,null,null,null,null,null,null,null,null,null,null,null,null,null,null,null,null,null,null,null,null,null,null,null,null,null,null,null,null,null,null,null,null,null,null,null,null,null,null,null,null,null,null,null,null,null,null,null,null,null,null,null,null,null,null,null,null,null,null,null,null,null,null,null,null,null,null,null,null,null,null,null,null,null,null,null,null,null,null,null,null,null,null,null,null,null,null,null,null,null,null,null,null,null,null,null,null,null,null,null,null,null,null,null,null,null,null,null,null,null,null,null,null,null,null,null,null,null,null,null,null,null,null,null,null,null,null,null,"УТВЕРЖДАЮ",null,null,null,null,null,null,null,null,null,null,null,null,null,null,null,null,null,null,null,null,null,null,null,null,null,null,null,null,null,null,null,null,null,null,null,null,null,null,null,null,null,null,null,null,null,null,null,null,null,6.25E-2,null,168,21,null,"м",null,null,null,null,"на октябрь 2020 года",null,10]
[null,null,null,null,null,null,null,null,null,null,null,null,null,null,null,null,null,null,null,null,null,null,null,null,null,null,null,null,null,null,null,null,null,null,null,null,null,null,null,null,null,null,null,null,null,null,null,null,null,null,null,null,null,null,null,null,null,null,null,null,null,null,null,null,null,null,null,null,null,null,null,null,null,null,null,null,null,null,null,null,null,null,null,null,null,null,null,null,null,null,null,null,null,null,null,null,null,null,null,null,null,null,null,null,null,null,null,null,null,null,null,null,null,null,null,null,null,null,null,null,null,null,null,null,null,null,null,null,null,null,null,null,null,null,null,null,null,null,null,null,null,null,null,null,null,null,null,null,null,null,null,null,null,null,null,null,null,null,null,null,null,null,null,null,null,null,null,null,null,null,null,null,null,null,null,null,null,null,null,null,null,null,null,null,null,null,null,null,null,null," ",null,null,null,null,null,null,null,null,null,null,null,null,null,null,null,null,null,null,null,null,null,null,null,null,null,null,null,null,null,null,null,null,null,null,null,null,null,null,null,null,null,null,null,null,"0бед",null,null,4.1666666666666664E-2,null,0.41666666666666669,null,175,22,null,"а",null,null,null,null,"на ноябрь 2020 года",null,11]
[null,null,null,null,null,null,null,null,null,null,null,null,null,null,null,null,null,null,null,null,null,null,null,null,null,null,null,null,null,null,null,null,null,null,null,null,null,null,null,null,null,null,null,null,null,null,null,null,null,null,null,null,null,null,null,null,null,null,null,null,null,null,null,null,null,null,null,null,null,null,null,null,null,null,null,null,null,null,null,null,null,null,null,null,null,null,null,null,null,null,null,null,null,null,null,null,null,null,null,null,null,null,null,null,null,null,null,null,null,null,null,null,null,null,null,null,null,null,null,null,null,null,null,null,null,null,null,null,null,null,null,null,null,null,null,null,null,null,null,null,null,null,null,null,null,null,null,null,null,null,null,null,null,null,null,null,null,null,null,null,null,null,null,null,null,null,null,null,null,null,null,null,null,null,null,null,null,null,null,null,null,null,null,null,null,null,null,null,null,null,"_______________С. А. Сорокина",null,null,null,null,null,null,null,null,null,null,null,null,null,null,null,null,null,null,null,null,null,null,null,null,null,null,null,null,null,null,null,null,null,null,null,null,null,null,null,null,null,null,null,null,null,null,null,null,null,0.45833333333333331,null,135,17,null,"май",null,null,null,null,"на декабрь 2020 года",null,12]
[null,null,null,null,null,null,null,null,null,null,null,null,null,null,null,null,null,null,null,null,null,null,null,null,null,null,null,null,null,null,null,null,null,null,null,null,null,null,null,null,null,null,null,null,null,null,null,null,null,null,null,null,null,null,null,null,null,null,null,null,null,null,null,null,null,null,null,null,null,null,null,null,null,null,null,null,null,null,null,null,null,null,null,null,null,null,null,null,null,null,null,null,null,null,null,null,null,null,null,null,null,null,null,null,null,null,null,null,null,null,null,null,null,null,null,null,null,null,null,null,null,null,null,null,null,null,null,null,null,null,null,null,null,null,null,null,null,null,null,null,null,null,null,null,null,null,null,null,null,null,null,null,null,null,null,null,null,null,null,null,null,null,null,null,null,null,null,null,null,null,null,null,null,null,null,null,null,null,null,null,null,null,null,null,null,null,null,null,null,null,"« 10 »     февраля    2020г.",null,null,null,null,null,null,null,null,null,null,"апреля",null,null,null,null,null,null,null,null,null,null,null,null,null,null,null,null,null,null,null,null,null,null,null,null,null,null,null,null,null,null,null,null,null,null,null,null,null,null,0.125,null,167,21,null,"июнь"]
[null,null,null,null,null,null,null,null,null,null,null,null,null,null,null,null,null,null,null,null,null,null,null,null,null,null,null,null,null,null,null,null,null,null,null,null,null,null,null,null,null,null,null,null,null,null,null,null,null,null,null,null,null,null,null,null,null,null,null,null,null,null,null,null,null,null,null,null,null,null,null,null,null,null,null,null,null,null,null,null,null,null,null,null,null,null,null,null,null,null,null,null,null,null,null,null,null,null,null,null,null,null,null,null,null,null,null,null,null,null,null,null,null,null,null,null,null,null,null,null,null,null,null,null,null,null,null,null,null,null,null,null,null,null,null,null,null,null,null,null,null,null,null,null,null,null,null,null,null,null,null,null,null,null,null,null,null,null,null,null,null,null,null,null,null,null,null,null,null,null,null,null,null,null,null,null,null,null,null,null,null,null,null,null,null,null,null,null,null,null,null,null,null,null,null,null,null,null,null,null,null,null,null,null,null,null,null,null,null,null,null,null,null,null,null,null,null,null,null,null,null,null,null,null,null,null,null,null,null,null,null,null,null,null,null,null,null,null,null,null,0.14583333333333334,null,184,23,null,"июль",null,null,null,null,"Слезинский В.Е.,  управляющий участка",null,null,null,null,null,1]
["ГРАФИК",null,null,null,null,null,null,null,null,null,null,null,null,null,null,null,null,null,null,null,null,null,null,null,null,null,null,null,null,null,null,null,null,null,null,null,null,null,null,null,null,null,null,null,null,null,null,null,null,null,null,null,null,null,null,null,null,null,null,null,null,null,null,null,null,null,null,null,null,null,null,null,null,null,null,null,null,null,null,null,null,null,null,null,null,null,null,null,null,null,null,null,null,null,null,null,null,null,null,null,null,null,null,null,null,null,null,null,null,null,null,null,null,null,null,null,null,null,null,null,null,null,null,null,null,null,null,null,null,null,null,null,null,null,null,null,null,null,null,null,null,null,null,null,null,null,null,null,null,null,null,null,null,null,null,null,null,null,null,null,null,null,null,null,null,null,null,null,null,null,null,null,null,null,null,null,null,null,null,null,null,null,null,null,null,null,null,null,null,null,null,null,null,null,null,null,null,null,null,null,null,null,null,null,null,null,null,null,null,null,null,null,null,null,null,null,null,null,null,null,null,null,null,null,null,null,null,null,null,null,null,null,null,null,null,null,null,null,null,null,0.16666666666666666,null,168,21,null,"август",null,null,null,null,"Медведев А.П., слесарь-ремонтник",null,null,null,null,null,0.5]
["УЧЕТА ИСПОЛЬЗОВАНИЯ РАБОЧЕГО ВРЕМЕНИ ОБСЛУЖИВАЮЩЕГО ПЕРСОНАЛА",null,null,null,null,null,null,null,null,null,null,null,null,null,null,null,null,null,null,null,null,null,null,null,null,null,null,null,null,null,null,null,null,null,null,null,null,null,null,null,null,null,null,null,null,null,null,null,null,null,null,null,null,null,null,null,null,null,null,null,null,null,null,null,null,null,null,null,null,null,null,null,null,null,null,null,null,null,null,null,null,null,null,null,null,null,null,null,null,null,null,null,null,null,null,null,null,null,null,null,null,null,null,null,null,null,null,null,null,null,null,null,null,null,null,null,null,null,null,null,null,null,null,null,null,null,null,null,null,null,null,null,null,null,null,null,null,null,null,null,null,null,null,null,null,null,null,null,null,null,null,null,null,null,null,null,null,null,null,null,null,null,null,null,null,null,null,null,null,null,null,null,null,null,null,null,null,null,null,null,null,null,null,null,null,null,null,null,null,null,null,null,null,null,null,null,null,null,null,null,null,null,null,null,null,null,null,null,null,null,null,null,null,null,null,null,null,null,null,null,null,null,null,null,null,null,null,null,null,null,null,null,null,null,null,null,null,null,null,null,0.1875,null,176,22,null,null,null,null,null,null,"Береговой Г.П., электрик",null,null,null,null,null,0.25]
["2020-06-01",null,null,null,null,null,null,null,null,null,null,null,null,null,null,null,null,null,null,null,null,null,null,null,null,null,null,null,null,null,null,null,null,null,null,null,null,null,null,null,null,null,null,null,null,null,null,null,null,null,null,null,null,null,null,null,null,null,null,null,null,null,null,null,null,null,null,null,null,null,null,null,null,null,null,null,null,null,null,null,null,null,null,null,null,null,null,null,null,null,null,null,null,null,null,null,null,null,null,null,null,null,null,null,null,null,null,null,null,null,null,null,null,null,null,null,null,null,null,null,null,null,null,null,null,null,null,null,null,null,null,null,null,null,null,null,null,null,null,null,null,null,null,null,null,null,null,null,null,null,null,null,null,null,null,null,null,null,null,null,null,null,null,null,null,null,null,null,null,null,null,null,null,null,null,null,null,null,null,null,null,null,null,null,null,null,null,null,null,null,null,null,null,null,null,null,null,null,null,null,null,null,null,null,null,null,null,null,null,null,null,null,null,null,null,null,null,null,null,null,null,null,null,null,null,null,null,null,null,null,null,null,"июнь",null,null,null,null,null,null,null,0.20833333333333334,null,176,22,null,null,null,null,null,null,"Воротынцева В.Н., кассир билетный"]
[null,null,null,null,null,null,null,null,null,null,null,null,null,null,null,null,null,null,null,null,null,null,null,null,null,null,null,null,null,null,null,null,null,null,null,null,null,null,null,null,null,null,null,null,null,null,null,null,null,null,null,null,null,null,null,null,null,null,null,null,null,null,null,null,null,null,null,null,null,null,null,null,null,null,null,null,null,null,null,null,null,null,null,null,null,null,null,null,null,null,null,null,null,null,null,null,null,null,null,null,null,null,null,null,null,null,null,null,null,null,null,null,null,null,null,null,null,null,null,null,null,null,null,null,null,null,null,null,null,null,null,null,null,null,null,null,null,null,null,null,null,null,null,null,null,null,null,null,null,null,null,null,null,null,null,null,null,null,null,null,null,null,null,null,null,null,null,null,null,null,null,null,null,null,null,null,null,null,null,null,null,null,null,null,null,null,null,null,null,null,null,null,null,null,null,null,null,null,null,null,null,null,null,null,null,null,null,null,null,null,null,null,null,null,null,null,null,null,null,null,null,null,null,null,null,null,null,null,null,null,null,null,null,null,null,null,null,null,null,null,0.22916666666666666,null,159,20,null,null,null,null,null,null,"Окорочкова О.Т., кассир билетный"]
["№ п/п",null,null,null,null,"Фамилия Инициалы",null,null,null,null,null,null,null,null,null,null,null,null,null,null,null,null,null,"Ставка",null,null,null,null,1,null,null,null,null,null,2,null,null,null,null,null,3,null,null,null,null,null,4,null,null,null,null,null,5,null,null,null,null,null,6,null,null,null,null,null,7,null,null,null,null,null,8,null,null,null,null,null,9,null,null,null,null,null,10,null,null,null,null,null,11,null,null,null,null,null,12,null,null,null,null,null,13,null,null,null,null,null,14,null,null,null,null,null,15,null,null,null,null,null,16,null,null,null,null,null,17,null,null,null,null,null,18,null,null,null,null,null,19,null,null,null,null,null,20,null,null,null,null,null,21,null,null,null,null,null,22,null,null,null,null,null,23,null,null,null,null,null,24,null,null,null,null,null,25,null,null,null,null,null,26,null,null,null,null,null,27,null,null,null,null,null,28,null,null,null,null,null,{"$f":"IF(29<=$IE$7,29,\"-\")","v":29},null,null,null,null,null,{"$f":"IF(30<=$IE$7,30,\"-\")","v":30},null,null,null,null,null,{"$f":"IF(31<=$IE$7,31,\"-\")","v":"-"},null,null,null,null,null,"ВСЕГО",null,null,null,null,null,null,null,null,null,null,null,null,null,null,null,null,null,null,"дней по произв. Кал.","часов по произв. Кал. ",null,null,17,null,null,0.25,null,183,23,null,null,null,null,null,null,"Пермякова Т.М., контролёр-посадчик аттракциона"]
[null,null,null,null,null,null,null,null,null,null,null,null,null,null,null,null,null,null,null,null,null,null,null,null,null,null,null,null,null,null,null,null,null,null,null,null,null,null,null,null,null,null,null,null,null,null,null,null,null,null,null,null,null,null,null,null,null,null,null,null,null,null,null,null,null,null,null,null,null,null,null,null,null,null,null,null,null,null,null,null,null,null,null,null,null,null,null,null,null,null,null,null,null,null,null,null,null,null,null,null,null,null,null,null,null,null,null,null,null,null,null,null,null,null,null,null,null,null,null,null,null,null,null,null,null,null,null,null,null,null,null,null,null,null,null,null,null,null,null,null,null,null,null,null,null,null,null,null,null,null,null,null,null,null,null,null,null,null,null,null,null,null,null,null,null,null,null,null,null,null,null,null,null,null,null,null,null,null,null,null,null,null,null,null,null,null,null,null,null,null,null,null,null,null,null,null,null,null,null,null,null,null,null,null,null,null,null,null,null,null,null,null,null,null,"дней",null,null,null,null,null,null,null,null,null,null,null,null,null,null,null,null,null,"часов",null,null,null,null,19,null,null,0.27083333333333331,null,null,null,null,null,null,null,null,null,"Алексеева Р.И., котролёр-посадчик аттракциона"]
[1,null,null,null,null,"Слезинский В.Е  управляющий участка",null,null,null,null,null,null,null,null,null,null,null,null,null,null,null,null,null,1,null,null,null,null,0.375,null,null,null,null,null,0.41666666666666669,null,null,null,null,null,"В",null,null,null,null,null,0.375,null,null,null,null,null,0.375,null,null,null,null,null,0.375,null,null,null,null,null,0.375,null,null,null,null,null,0.375,null,null,null,null,null,0.41666666666666669,null,null,null,null,null,"В",null,null,null,null,null,0.375,null,null,null,null,null,"В",null,null,null,null,null,0.375,null,null,null,null,null,0.375,null,null,null,null,null,0.375,null,null,null,null,null,0.41666666666666669,null,null,null,null,null,"В",null,null,null,null,null,0.375,null,null,null,null,null,0.375,null,null,null,null,null,0.375,null,null,null,null,null,0.375,null,null,null,null,null,0.375,null,null,null,null,null,0.41666666666666669,null,null,null,null,null,"В",null,null,null,null,null,0.375,null,null,null,null,null,0.375,null,null,null,null,null,0.375,null,null,null,null,null,0.375,null,null,null,null,null,0.375,null,null,null,null,null,0.41666666666666669,null,null,null,null,null,null,null,null,null,null,null,{"$f":"COUNT(AC21:HF21)","v":25},null,null,null,null,null,null,null,null,null,null,null,null,null,null,null,null,null,{"$f":"SUM(IFERROR(AC22:HF22-AC21:HF21-AC23:HF23,0))","v":6.9583333333333357},{"$f":"VLOOKUP($HY$17,#REF!,3,TRUE)","v":{"$error":"#REF!"}},{"$f":"INDEX(#REF!,MATCH($HY$17,#REF!,0))","v":{"$error":"#REF!"}},null,null,21,null,null,4.1666666666666664E-2,null,null,null,null,null,null,null,null,null,"Перминов К.И., дежурный зала"]
[null,null,null,null,null,null,null,null,null,null,null,null,null,null,null,null,null,null,null,null,null,null,null,null,null,null,null,null,0.79166666666666663,null,null,null,null,null,0.66666666666666663,null,null,null,null,null,"В",null,null,null,null,null,0.79166666666666663,null,null,null,null,null,0.79166666666666663,null,null,null,null,null,0.83333333333333337,null,null,null,null,null,0.83333333333333337,null,null,null,null,null,0.79166666666666663,null,null,null,null,null,0.66666666666666663,null,null,null,null,null,"В",null,null,null,null,null,0.79166666666666663,null,null,null,null,null,"В",null,null,null,null,null,0.83333333333333337,null,null,null,null,null,0.83333333333333337,null,null,null,null,null,0.83333333333333337,null,null,null,null,null,0.66666666666666663,null,null,null,null,null,"В",null,null,null,null,null,0.83333333333333337,null,null,null,null,null,0.83333333333333337,null,null,null,null,null,0.83333333333333337,null,null,null,null,null,0.83333333333333337,null,null,null,null,null,0.83333333333333337,null,null,null,null,null,0.66666666666666663,null,null,null,null,null,"В",null,null,null,null,null,0.83333333333333337,null,null,null,null,null,0.83333333333333337,null,null,null,null,null,0.83333333333333337,null,null,null,null,null,0.83333333333333337,null,null,null,null,null,0.83333333333333337,null,null,null,null,null,0.66666666666666663,null,null,null,null,null,null,null,null,null,null,null,null,null,null,null,null,null,null,null,null,null,null,null,null,null,null,null,null,null,null,null,null,null,null,22,null,null,0.33333333333333331,null,null,null,null,null,null,null,null,null,"Перминов К.И., кассир"]
[null,null,null,null,null,null,null,null,null,null,null,null,null,null,null,null,null,null,null,null,null,null,null,"обед",null,null,null,null,"03:00:00",null,null,null,null,null,"01:00:00",null,null,null,null,null,null,null,null,null,null,null,"03:00:00",null,null,null,null,null,"03:00:00",null,null,null,null,null,"03:00:00",null,null,null,null,null,"03:00:00",null,null,null,null,null,"03:00:00",null,null,null,null,null,"01:00:00",null,null,null,null,null,null,null,null,null,null,null,"04:00:00",null,null,null,null,null,null,null,null,null,null,null,"03:00:00",null,null,null,null,null,"04:00:00",null,null,null,null,null,"04:00:00",null,null,null,null,null,"01:00:00",null,null,null,null,null,null,null,null,null,null,null,"04:00:00",null,null,null,null,null,"04:00:00",null,null,null,null,null,"04:00:00",null,null,null,null,null,"04:00:00",null,null,null,null,null,"04:00:00",null,null,null,null,null,"01:00:00",null,null,null,null,null,null,null,null,null,null,null,"04:00:00",null,null,null,null,null,"04:00:00",null,null,null,null,null,"04:00:00",null,null,null,null,null,"04:00:00",null,null,null,null,null,"04:00:00",null,null,null,null,null,"01:00:00",null,null,null,null,null,null,null,null,null,null,null,null,null,null,null,null,null,null,null,null,null,null,null,null,null,null,null,null,null,null,null,null,null,null,17,null,null,null,null,null,null,null,null,null,null,null,null,"Бутелин Ю.Н., сторож"]
[null,null,null,null,null,null,null,null,null,null,null,null,null,null,null,null,null,null,null,null,null,null,null,null,null,null,null,null,null,null,null,null,null,null,null,null,null,null,null,null,null,null,null,null,null,null,null,null,null,null,null,null,null,null,null,null,null,null,null,null,null,null,null,null,null,null,null,null,null,null,null,null,null,null,null,null,null,null,null,null,null,null,null,null,null,null,null,null,null,null,null,null,null,null,null,null,null,null,null,null,null,null,null,null,null,null,null,null,null,null,null,null,null,null,null,null,null,null,null,null,null,null,null,null,null,null,null,null,null,null,null,null,null,null,null,null,null,null,null,null,null,null,null,null,null,null,null,null,null,null,null,null,null,null,null,null,null,null,null,null,null,null,null,null,null,null,null,null,null,null,null,null,null,null,null,null,null,null,null,null,null,null,null,null,null,null,null,null,null,null,null,null,null,null,null,null,null,null,null,null,null,null,null,null,null,null,null,null,null,null,null,null,null,null,null,null,null,null,null,null,null,null,null,null,null,null,null,null,null,null,null,null,null,null,null,null,null,21,null,null,null,null,null,null,null,null,null,null,null,null,"Бутелин Ю.Н., контролёр-посадчик"]
[null,null,null,null,null,null,null,null,null,null,null,null,null,null,null,null,null,null,null,null,null,null,null,"пр",null,null,null,null,null,null,null,null,null,null,null,null,null,null,null,null,null,null,null,null,null,null,null,null,null,null,null,null,null,null,null,null,null,null,null,null,null,null,null,null,null,null,null,null,null,null,null,null,null,null,null,null,null,null,null,null,null,null,null,null,null,null,null,null,null,null,null,null,null,null,null,null,null,null,null,null,null,null,null,null,null,null,null,null,null,null,null,null,null,null,null,null,null,null,null,null,null,null,null,null,null,null,null,null,null,null,null,null,null,null,null,null,null,null,null,null,null,null,null,null,null,null,null,null,null,null,null,null,null,null,null,null,null,null,null,null,null,null,null,null,null,null,null,null,null,null,null,null,null,null,null,null,null,null,null,null,null,null,null,null,null,null,null,null,null,null,null,null,null,null,null,null,null,null,null,null,null,null,null,null,null,null,null,null,null,null,null,null,null,null,null,null,null,null,null,null,null,null,null,null,null,null,null,null,null,null,null,null,null,null,null,null,null,23,null,null,null,null,null,null,null,null,null,null,null,null,"Медведев А.П., сторож"]
[null,null,null,null,null,null,null,null,null,null,null,null,null,null,null,null,null,null,null,null,null,null,null,null,null,null,null,null,null,null,null,null,null,null,null,null,null,null,null,null,null,null,null,null,null,null,null,null,null,null,null,null,null,null,null,null,null,null,null,null,null,null,null,null,null,null,null,null,null,null,null,null,null,null,null,null,null,null,null,null,null,null,null,null,null,null,null,null,null,null,null,null,null,null,null,null,null,null,null,null,null,null,null,null,null,null,null,null,null,null,null,null,null,null,null,null,null,null,null,null,null,null,null,null,null,null,null,null,null,null,null,null,null,null,null,null,null,null,null,null,null,null,null,null,null,null,null,null,null,null,null,null,null,null,null,null,null,null,null,null,null,null,null,null,null,null,null,null,null,null,null,null,null,null,null,null,null,null,null,null,null,null,null,null,null,null,null,null,null,null,null,null,null,null,null,null,null,null,null,null,null,null,null,null,null,null,null,null,null,null,null,null,null,null,null,null,null,null,null,null,null,null,null,null,null,null,null,null,null,null,null,null,null,null,null,null,null,21]
[2,null,null,null,null,"Медведев А.П., слесарь-ремонтник",null,null,null,null,null,null,null,null,null,null,null,null,null,null,null,null,null,1,null,null,null,null,"В",null,null,null,null,null,"В",null,null,null,null,null,0.375,null,null,null,null,null,0.375,null,null,null,null,null,0.375,null,null,null,null,null,0.375,null,null,null,null,null,0.375,null,null,null,null,null,"В",null,null,null,null,null,"В",null,null,null,null,null,0.375,null,null,null,null,null,0.375,null,null,null,null,null,"В",null,null,null,null,null,0.375,null,null,null,null,null,0.375,null,null,null,null,null,"В",null,null,null,null,null,"В",null,null,null,null,null,0.375,null,null,null,null,null,0.375,null,null,null,null,null,0.375,null,null,null,null,null,0.375,null,null,null,null,null,0.375,null,null,null,null,null,"В",null,null,null,null,null,"В",null,null,null,null,null,0.375,null,null,null,null,null,0.375,null,null,null,null,null,0.375,null,null,null,null,null,0.375,null,null,null,null,null,0.375,null,null,null,null,null,"В",null,null,null,null,null,"В",null,null,null,null,null,null,null,null,null,null,null,{"$f":"COUNT(AC27:HF27)","v":19},null,null,null,null,null,null,null,null,null,null,null,null,null,null,null,null,null,{"$f":"SUM(IFERROR(AC28:HF28-AC27:HF27-AC29:HF29,0))","v":6.958333333333333},{"$f":"VLOOKUP($HY$17,#REF!,3,TRUE)","v":{"$error":"#REF!"}},{"$f":"INDEX(#REF!,MATCH($HY$17,#REF!,0))","v":{"$error":"#REF!"}},null,null,22]
[null,null,null,null,null,null,null,null,null,null,null,null,null,null,null,null,null,null,null,null,null,null,null,null,null,null,null,null,"В",null,null,null,null,null,"В",null,null,null,null,null,0.83333333333333337,null,null,null,null,null,0.83333333333333337,null,null,null,null,null,0.83333333333333337,null,null,null,null,null,0.83333333333333337,null,null,null,null,null,0.83333333333333337,null,null,null,null,null,"В",null,null,null,null,null,"В",null,null,null,null,null,0.83333333333333337,null,null,null,null,null,0.83333333333333337,null,null,null,null,null,"В",null,null,null,null,null,0.83333333333333337,null,null,null,null,null,0.83333333333333337,null,null,null,null,null,"В",null,null,null,null,null,"В",null,null,null,null,null,0.83333333333333337,null,null,null,null,null,0.83333333333333337,null,null,null,null,null,0.83333333333333337,null,null,null,null,null,0.83333333333333337,null,null,null,null,null,0.83333333333333337,null,null,null,null,null,"В",null,null,null,null,null,"В",null,null,null,null,null,0.83333333333333337,null,null,null,null,null,0.83333333333333337,null,null,null,null,null,0.83333333333333337,null,null,null,null,null,0.83333333333333337,null,null,null,null,null,0.83333333333333337,null,null,null,null,null,"В",null,null,null,null,null,"В",null,null,null,null,null,null,null,null,null,null,null,null,null,null,null,null,null,null,null,null,null,null,null,null,null,null,null,null,null,null,null,null,null,null,22]
[null,null,null,null,null,null,null,null,null,null,null,null,null,null,null,null,null,null,null,null,null,null,null,"обед",null,null,null,null,null,null,null,null,null,null,null,null,null,null,null,null,"02:00:00",null,null,null,null,null,"02:00:00",null,null,null,null,null,"02:00:00",null,null,null,null,null,"02:00:00",null,null,null,null,null,"02:00:00",null,null,null,null,null,null,null,null,null,null,null,null,null,null,null,null,null,"02:00:00",null,null,null,null,null,"02:00:00",null,null,null,null,null,null,null,null,null,null,null,"02:00:00",null,null,null,null,null,"02:00:00",null,null,null,null,null,null,null,null,null,null,null,null,null,null,null,null,null,"02:00:00",null,null,null,null,null,"02:00:00",null,null,null,null,null,"02:00:00",null,null,null,null,null,"02:00:00",null,null,null,null,null,"02:00:00",null,null,null,null,null,null,null,null,null,null,null,null,null,null,null,null,null,"02:00:00",null,null,null,null,null,"03:00:00",null,null,null,null,null,"03:00:00",null,null,null,null,null,"03:00:00",null,null,null,null,null,"03:00:00",null,null,null,null,null,null,null,null,null,null,null,null,null,null,null,null,null,null,null,null,null,null,null,null,null,null,null,null,null,null,null,null,null,null,null,null,null,null,null,null,null,null,null,null,null,null,20]
[null,null,null,null,null,null,null,null,null,null,null,null,null,null,null,null,null,null,null,null,null,null,null,null,null,null,null,null,null,null,null,null,null,null,null,null,null,null,null,null,null,null,null,null,null,null,null,null,null,null,null,null,null,null,null,null,null,null,null,null,null,null,null,null,null,null,null,null,null,null,null,null,null,null,null,null,null,null,null,null,null,null,null,null,null,null,null,null,null,null,null,null,null,null,null,null,null,null,null,null,null,null,null,null,null,null,null,null,null,null,null,null,null,null,null,null,null,null,null,null,null,null,null,null,null,null,null,null,null,null,null,null,null,null,null,null,null,null,null,null,null,null,null,null,null,null,null,null,null,null,null,null,null,null,null,null,null,null,null,null,null,null,null,null,null,null,null,null,null,null,null,null,null,null,null,null,null,null,null,null,null,null,null,null,null,null,null,null,null,null,null,null,null,null,null,null,null,null,null,null,null,null,null,null,null,null,null,null,null,null,null,null,null,null,null,null,null,null,null,null,null,null,null,null,null,null,null,null,null,null,null,null,null,null,null,null,null,23]
[null,null,null,null,null,null,null,null,null,null,null,null,null,null,null,null,null,null,null,null,null,null,null,"пр",null,null,null,null,null,null,null,null,null,null,null,null,null,null,null,null,null,null,null,null,null,null,null,null,null,null,null,null,null,null,null,null,null,null,null,null,null,null,null,null,null,null,null,null,null,null,null,null,null,null,null,null,null,null,null,null,null,null,null,null,null,null,null,null,null,null,null,null,null,null,null,null,null,null,null,null,null,null,null,null,null,null,null,null,null,null,null,null,null,null,null,null,null,null,null,null,null,null,null,null,null,null,null,null,null,null,null,null,null,null,null,null,null,null,null,null,null,null,null,null,null,null,null,null,null,null,null,null,null,null,null,null,null,null,null,null,null,null,null,null,null,null,null,null,null,null,null,null,null,null,null,null,null,null,null,null,null,null,null,null,null,null,null,null,null,null,null,null,null,null,null,null,null,null,null,null,null,null,null,null,null,null,null,null,null,null,null,null,null,null,null,null,null,null,null,null,null,null,null,null,null,null,null,null,null,null,null,null,null,null,null,null,null,null,null,null,0.66666666666666663]
[null,null,null,null,null,null,null,null,null,null,null,null,null,null,null,null,null,null,null,null,null,null,null,null,null,null,null,null,null,null,null,null,null,null,null,null,null,null,null,null,null,null,null,null,null,null,null,null,null,null,null,null,null,null,null,null,null,null,null,null,null,null,null,null,null,null,null,null,null,null,null,null,null,null,null,null,null,null,null,null,null,null,null,null,null,null,null,null,null,null,null,null,null,null,null,null,null,null,null,null,null,null,null,null,null,null,null,null,null,null,null,null,null,null,null,null,null,null,null,null,null,null,null,null,null,null,null,null,null,null,null,null,null,null,null,null,null,null,null,null,null,null,null,null,null,null,null,null,null,null,null,null,null,null,null,null,null,null,null,null,null,null,null,null,null,null,null,null,null,null,null,null,null,null,null,null,null,null,null,null,null,null,null,null,null,null,null,null,null,null,null,null,null,null,null,null,null,null,null,null,null,null,null,null,null,null,null,null,null,null,null,null,null,null,null,null,null,null,null,null,null,null,null,null,null,null,null,null,null,null,null,null,null,null,null,null,null,null,null,null,0.66666666666666663]
[3,null,null,null,null,"Береговой Г.П., электрик",null,null,null,null,null,null,null,null,null,null,null,null,null,null,null,null,null,1,null,null,null,null,0.375,null,null,null,null,null,0.375,null,null,null,null,null,0.375,null,null,null,null,null,0.375,null,null,null,null,null,0.375,null,null,null,null,null,"В",null,null,null,null,null,"В",null,null,null,null,null,0.375,null,null,null,null,null,0.375,null,null,null,null,null,0.375,null,null,null,null,null,0.375,null,null,null,null,null,"В",null,null,null,null,null,"В",null,null,null,null,null,"В",null,null,null,null,null,0.375,null,null,null,null,null,0.375,null,null,null,null,null,0.375,null,null,null,null,null,0.375,null,null,null,null,null,0.375,null,null,null,null,null,"В",null,null,null,null,null,"В",null,null,null,null,null,0.375,null,null,null,null,null,0.375,null,null,null,null,null,0.375,null,null,null,null,null,0.375,null,null,null,null,null,0.375,null,null,null,null,null,"В",null,null,null,null,null,"В",null,null,null,null,null,0.375,null,null,null,null,null,0.375,null,null,null,null,null,null,null,null,null,null,null,{"$f":"COUNT(AC33:HF33)","v":21},null,null,null,null,null,null,null,null,null,null,null,null,null,null,null,null,null,{"$f":"SUM(IFERROR(AC34:HF34-AC33:HF33-AC35:HF35,0))","v":6.9583333333333313},{"$f":"VLOOKUP($HY$17,#REF!,3,TRUE)","v":{"$error":"#REF!"}},{"$f":"INDEX(#REF!,MATCH($HY$17,#REF!,0))","v":{"$error":"#REF!"}},null,null,null,null,null,0.70833333333333337]
[null,null,null,null,null,null,null,null,null,null,null,null,null,null,null,null,null,null,null,null,null,null,null,null,null,null,null,null,0.75,null,null,null,null,null,0.75,null,null,null,null,null,0.75,null,null,null,null,null,0.75,null,null,null,null,null,0.75,null,null,null,null,null,"В",null,null,null,null,null,"В",null,null,null,null,null,0.75,null,null,null,null,null,0.75,null,null,null,null,null,0.75,null,null,null,null,null,0.70833333333333337,null,null,null,null,null,"В",null,null,null,null,null,"В",null,null,null,null,null,"В",null,null,null,null,null,0.75,null,null,null,null,null,0.75,null,null,null,null,null,0.75,null,null,null,null,null,0.75,null,null,null,null,null,0.75,null,null,null,null,null,"В",null,null,null,null,null,"В",null,null,null,null,null,0.75,null,null,null,null,null,0.75,null,null,null,null,null,0.75,null,null,null,null,null,0.75,null,null,null,null,null,0.75,null,null,null,null,null,"В",null,null,null,null,null,"В",null,null,null,null,null,0.75,null,null,null,null,null,0.75,null,null,null,null,null,null,null,null,null,null,null,null,null,null,null,null,null,null,null,null,null,null,null,null,null,null,null,null,null,null,null,null,null,null,null,null,null,0.44791666666666669]
[null,null,null,null,null,null,null,null,null,null,null,null,null,null,null,null,null,null,null,null,null,null,null,"обед",null,null,null,null,"01:00:00",null,null,null,null,null,"01:00:00",null,null,null,null,null,"01:00:00",null,null,null,null,null,"01:00:00",null,null,null,null,null,"01:00:00",null,null,null,null,null,null,null,null,null,null,null,null,null,null,null,null,null,"01:00:00",null,null,null,null,null,"01:00:00",null,null,null,null,null,"01:00:00",null,null,null,null,null,"01:00:00",null,null,null,null,null,null,null,null,null,null,null,null,null,null,null,null,null,null,null,null,null,null,null,"01:00:00",null,null,null,null,null,"01:00:00",null,null,null,null,null,"01:00:00",null,null,null,null,null,"01:00:00",null,null,null,null,null,"01:00:00",null,null,null,null,null,null,null,null,null,null,null,null,null,null,null,null,null,"01:00:00",null,null,null,null,null,"01:00:00",null,null,null,null,null,"01:00:00",null,null,null,null,null,"01:00:00",null,null,null,null,null,"01:00:00",null,null,null,null,null,null,null,null,null,null,null,null,null,null,null,null,null,"01:00:00",null,null,null,null,null,"01:00:00",null,null,null,null,null,null,null,null,null,null,null,null,null,null,null,null,null,null,null,null,null,null,null,null,null,null,null,null,null,null,null,null,null,null,null,null,null,0.3125]
[null,null,null,null,null,null,null,null,null,null,null,null,null,null,null,null,null,null,null,null,null,null,null,null,null,null,null,null,null,null,null,null,null,null,null,null,null,null,null,null,null,null,null,null,null,null,null,null,null,null,null,null,null,null,null,null,null,null,null,null,null,null,null,null,null,null,null,null,null,null,null,null,null,null,null,null,null,null,null,null,null,null,null,null,null,null,null,null,null,null,null,null,null,null,null,null,null,null,null,null,null,null,null,null,null,null,null,null,null,null,null,null,null,null,null,null,null,null,null,null,null,null,null,null,null,null,null,null,null,null,null,null,null,null,null,null,null,null,null,null,null,null,null,null,null,null,null,null,null,null,null,null,null,null,null,null,null,null,null,null,null,null,null,null,null,null,null,null,null,null,null,null,null,null,null,null,null,null,null,null,null,null,null,null,null,null,null,null,null,null,null,null,null,null,null,null,null,null,null,null,null,null,null,null,null,null,null,null,null,null,null,null,null,null,null,null,null,null,null,null,null,null,null,null,null,null,null,null,null,null,null,null,null,null,null,null,null,null,null,null,0.375]
[null,null,null,null,null,null,null,null,null,null,null,null,null,null,null,null,null,null,null,null,null,null,null,"пр",null,null,null,null,null,null,null,null,null,null,null,null,null,null,null,null,null,null,null,null,null,null,null,null,null,null,null,null,null,null,null,null,null,null,null,null,null,null,null,null,null,null,null,null,null,null,null,null,null,null,null,null,null,null,null,null,null,null,null,null,null,null,null,null,null,null,null,null,null,null,null,null,null,null,null,null,null,null,null,null,null,null,null,null,null,null,null,null,null,null,null,null,null,null,null,null,null,null,null,null,null,null,null,null,null,null,null,null,null,null,null,null,null,null,null,null,null,null,null,null,null,null,null,null,null,null,null,null,null,null,null,null,null,null,null,null,null,null,null,null,null,null,null,null,null,null,null,null,null,null,null,null,null,null,null,null,null,null,null,null,null,null,null,null,null,null,null,null,null,null,null,null,null,null,null,null,null,null,null,null,null,null,null,null,null,null,null,null,null,null,null,null,null,null,null,null,null,null,null,null,null,null,null,null,null,null,null,null,null,null,null,null,null,null,null,null,0.48958333333333331]
[null,null,null,null,null,null,null,null,null,null,null,null,null,null,null,null,null,null,null,null,null,null,null,null,null,null,null,null,null,null,null,null,null,null,null,null,null,null,null,null,null,null,null,null,null,null,null,null,null,null,null,null,null,null,null,null,null,null,null,null,null,null,null,null,null,null,null,null,null,null,null,null,null,null,null,null,null,null,null,null,null,null,null,null,null,null,null,null,null,null,null,null,null,null,null,null,null,null,null,null,null,null,null,null,null,null,null,null,null,null,null,null,null,null,null,null,null,null,null,null,null,null,null,null,null,null,null,null,null,null,null,null,null,null,null,null,null,null,null,null,null,null,null,null,null,null,null,null,null,null,null,null,null,null,null,null,null,null,null,null,null,null,null,null,null,null,null,null,null,null,null,null,null,null,null,null,null,null,null,null,null,null,null,null,null,null,null,null,null,null,null,null,null,null,null,null,null,null,null,null,null,null,null,null,null,null,null,null,null,null,null,null,null,null,null,null,null,null,null,null,null,null,null,null,null,null,null,null,null,null,null,null,null,null,null,null,null,null,null,null,0.54166666666666663]
[4,null,null,null,null,"Воротынцева В.Н., кассир билетный",null,null,null,null,null,null,null,null,null,null,null,null,null,null,null,null,null,1,null,null,null,null,null,null,null,null,null,null,0.375,null,null,null,null,null,null,null,null,null,null,null,0.375,null,null,null,null,null,null,null,null,null,null,null,0.33333333333333331,null,null,null,null,null,null,null,null,null,null,null,0.375,null,null,null,null,null,null,null,null,null,null,null,0.375,null,null,null,null,null,null,null,null,null,null,null,0.375,null,null,null,null,null,null,null,null,null,null,null,0.33333333333333331,null,null,null,null,null,null,null,null,null,null,null,0.375,null,null,null,null,null,null,null,null,null,null,null,0.375,null,null,null,null,null,null,null,null,null,null,null,0.375,null,null,null,null,null,null,null,null,null,null,null,0.375,null,null,null,null,null,null,null,null,null,null,null,0.375,null,null,null,null,null,null,null,null,null,null,null,0.375,null,null,null,null,null,null,null,null,null,null,null,0.375,null,null,null,null,null,null,null,null,null,null,null,0.375,null,null,null,null,null,null,null,null,null,null,null,{"$f":"COUNT(AC39:HF39)","v":15},null,null,null,null,null,null,null,null,null,null,null,null,null,null,null,null,null,{"$f":"SUM(IFERROR(AC40:HF40-AC39:HF39-AC41:HF41,0))","v":6.9583333333333321},{"$f":"VLOOKUP($HY$17,#REF!,3,TRUE)","v":{"$error":"#REF!"}},{"$f":"INDEX(#REF!,MATCH($HY$17,#REF!,0))","v":{"$error":"#REF!"}},null,null,null,null,null,0.70833333333333337]
[null,null,null,null,null,null,null,null,null,null,null,null,null,null,null,null,null,null,null,null,null,null,null,null,null,null,null,null,null,null,null,null,null,null,0.875,null,null,null,null,null,null,null,null,null,null,null,0.875,null,null,null,null,null,null,null,null,null,null,null,0.875,null,null,null,null,null,null,null,null,null,null,null,0.875,null,null,null,null,null,null,null,null,null,null,null,0.875,null,null,null,null,null,null,null,null,null,null,null,0.875,null,null,null,null,null,null,null,null,null,null,null,0.875,null,null,null,null,null,null,null,null,null,null,null,0.875,null,null,null,null,null,null,null,null,null,null,null,0.875,null,null,null,null,null,null,null,null,null,null,null,0.875,null,null,null,null,null,null,null,null,null,null,null,0.875,null,null,null,null,null,null,null,null,null,null,null,0.875,null,null,null,null,null,null,null,null,null,null,null,0.875,null,null,null,null,null,null,null,null,null,null,null,0.875,null,null,null,null,null,null,null,null,null,null,null,0.875,null,null,null,null,null,null,null,null,null,null,null,null,null,null,null,null,null,null,null,null,null,null,null,null,null,null,null,null,null,null,null,null,null,null,null,null,null,0.72916666666666663]
[null,null,null,null,null,null,null,null,null,null,null,null,null,null,null,null,null,null,null,null,null,null,null,"обед",null,null,null,null,null,null,null,null,null,null,"01:00:00",null,null,null,null,null,null,null,null,null,null,null,"01:00:00",null,null,null,null,null,null,null,null,null,null,null,"01:00:00",null,null,null,null,null,null,null,null,null,null,null,"01:00:00",null,null,null,null,null,null,null,null,null,null,null,"01:00:00",null,null,null,null,null,null,null,null,null,null,null,"01:00:00",null,null,null,null,null,null,null,null,null,null,null,"01:00:00",null,null,null,null,null,null,null,null,null,null,null,"01:00:00",null,null,null,null,null,null,null,null,null,null,null,"01:00:00",null,null,null,null,null,null,null,null,null,null,null,"01:00:00",null,null,null,null,null,null,null,null,null,null,null,"01:00:00",null,null,null,null,null,null,null,null,null,null,null,"01:00:00",null,null,null,null,null,null,null,null,null,null,null,"01:00:00",null,null,null,null,null,null,null,null,null,null,null,"01:00:00",null,null,null,null,null,null,null,null,null,null,null,"01:00:00",null,null,null,null,null,null,null,null,null,null,null,null,null,null,null,null,null,null,null,null,null,null,null,null,null,null,null,null,null,null,null,null,null,null,null,null,null,0.79166666666666663]
[null,null,null,null,null,null,null,null,null,null,null,null,null,null,null,null,null,null,null,null,null,null,null,null,null,null,null,null,null,null,null,null,null,null,null,null,null,null,null,null,null,null,null,null,null,null,null,null,null,null,null,null,null,null,null,null,null,null,null,null,null,null,null,null,null,null,null,null,null,null,null,null,null,null,null,null,null,null,null,null,null,null,null,null,null,null,null,null,null,null,null,null,null,null,null,null,null,null,null,null,null,null,null,null,null,null,null,null,null,null,null,null,null,null,null,null,null,null,null,null,null,null,null,null,null,null,null,null,null,null,null,null,null,null,null,null,null,null,null,null,null,null,null,null,null,null,null,null,null,null,null,null,null,null,null,null,null,null,null,null,null,null,null,null,null,null,null,null,null,null,null,null,null,null,null,null,null,null,null,null,null,null,null,null,null,null,null,null,null,null,null,null,null,null,null,null,null,null,null,null,null,null,null,null,null,null,null,null,null,null,null,null,null,null,null,null,null,null,null,null,null,null,null,null,null,null,null,null,null,null,null,null,null,null,null,null,null,null,null,null,0.75]
[null,null,null,null,null,null,null,null,null,null,null,null,null,null,null,null,null,null,null,null,null,null,null,"пр",null,null,null,null,null,null,null,null,null,null,null,null,null,null,null,null,null,null,null,null,null,null,null,null,null,null,null,null,null,null,null,null,null,null,null,null,null,null,null,null,null,null,null,null,null,null,null,null,null,null,null,null,null,null,null,null,null,null,null,null,null,null,null,null,null,null,null,null,null,null,{"$f":"CQ40-CQ39-CQ41","v":0.45833333333333331},null,null,null,null,null,null,null,null,null,null,null,null,null,null,null,null,null,null,null,null,null,null,null,null,null,null,null,null,null,null,null,null,null,null,null,null,null,null,null,null,null,null,null,null,null,null,null,null,null,null,null,null,null,null,null,null,null,null,null,null,null,null,null,null,null,null,null,null,null,null,null,null,null,null,null,null,null,null,null,null,null,null,null,null,null,null,null,null,null,null,null,null,null,null,null,null,null,null,null,null,null,null,null,null,null,null,null,null,null,null,null,null,null,null,null,null,null,null,null,null,null,null,null,null,null,null,null,null,null,null,null,null,null,null,null,null,null,{"$f":"SUM(AG43:HQ44)","v":"11:00:00"},null,null,null,null,null,null,null,0.77083333333333337]
[null,null,null,null,null,null,null,null,null,null,null,null,null,null,null,null,null,null,null,null,null,null,null,null,null,null,null,null,null,null,null,null,null,null,null,null,null,null,null,null,null,null,null,null,null,null,null,null,null,null,null,null,null,null,null,null,null,null,null,null,null,null,null,null,null,null,null,null,null,null,null,null,null,null,null,null,null,null,null,null,null,null,null,null,null,null,null,null,null,null,null,null,null,null,null,null,null,null,null,null,null,null,null,null,null,null,null,null,null,null,null,null,null,null,null,null,null,null,null,null,null,null,null,null,null,null,null,null,null,null,null,null,null,null,null,null,null,null,null,null,null,null,null,null,null,null,null,null,null,null,null,null,null,null,null,null,null,null,null,null,null,null,null,null,null,null,null,null,null,null,null,null,null,null,null,null,null,null,null,null,null,null,null,null,null,null,null,null,null,null,null,null,null,null,null,null,null,null,null,null,null,null,null,null,null,null,null,null,null,null,null,null,null,null,null,null,null,null,null,null,null,null,null,null,null,null,null,null,null,null,null,null,null,null,null,null,null,null,null,null,0.625]
[5,null,null,null,null,"Окорочкова О.Т., кассир билетный",null,null,null,null,null,null,null,null,null,null,null,null,null,null,null,null,null,1,null,null,null,null,0.375,null,null,null,null,null,null,null,null,null,null,null,0.375,null,null,null,null,null,null,null,null,null,null,null,0.375,null,null,null,null,null,null,null,null,null,null,null,0.33333333333333331,null,null,null,null,null,null,null,null,null,null,null,0.375,null,null,null,null,null,null,null,null,null,null,null,0.375,null,null,null,null,null,null,null,null,null,null,null,0.33333333333333331,null,null,null,null,null,null,null,null,null,null,null,0.375,null,null,null,null,null,null,null,null,null,null,null,0.375,null,null,null,null,null,null,null,null,null,null,null,0.375,null,null,null,null,null,null,null,null,null,null,null,0.375,null,null,null,null,null,null,null,null,null,null,null,0.375,null,null,null,null,null,null,null,null,null,null,null,0.375,null,null,null,null,null,null,null,null,null,null,null,0.375,null,null,null,null,null,null,null,null,null,null,null,0.375,null,null,null,null,null,null,null,null,null,null,null,null,null,null,null,null,null,{"$f":"COUNT(AC45:HF45)","v":15},null,null,null,null,null,null,null,null,null,null,null,null,null,null,null,null,null,{"$f":"SUM(IFERROR(AC46:HF46-AC45:HF45-AC47:HF47,0))","v":6.9583333333333321},null,null,null,null,null,null,null,0.875]
[null,null,null,null,null,null,null,null,null,null,null,null,null,null,null,null,null,null,null,null,null,null,null,null,null,null,null,null,0.875,null,null,null,null,null,null,null,null,null,null,null,0.875,null,null,null,null,null,null,null,null,null,null,null,0.875,null,null,null,null,null,null,null,null,null,null,null,0.875,null,null,null,null,null,null,null,null,null,null,null,0.875,null,null,null,null,null,null,null,null,null,null,null,0.875,null,null,null,null,null,null,null,null,null,null,null,0.875,null,null,null,null,null,null,null,null,null,null,null,0.875,null,null,null,null,null,null,null,null,null,null,null,0.875,null,null,null,null,null,null,null,null,null,null,null,0.875,null,null,null,null,null,null,null,null,null,null,null,0.875,null,null,null,null,null,null,null,null,null,null,null,0.875,null,null,null,null,null,null,null,null,null,null,null,0.875,null,null,null,null,null,null,null,null,null,null,null,0.875,null,null,null,null,null,null,null,null,null,null,null,0.875,null,null,null,null,null,null,null,null,null,null,null,null,null,null,null,null,null,null,null,null,null,null,null,null,null,null,null,null,null,null,null,null,null,null,null,null,null,null,null,null,null,null,null,0.58333333333333337]
[null,null,null,null,null,null,null,null,null,null,null,null,null,null,null,null,null,null,null,null,null,null,null,"обед",null,null,null,null,"01:00:00",null,null,null,null,null,null,null,null,null,null,null,"01:00:00",null,null,null,null,null,null,null,null,null,null,null,"01:00:00",null,null,null,null,null,null,null,null,null,null,null,"01:00:00",null,null,null,null,null,null,null,null,null,null,null,"01:00:00",null,null,null,null,null,null,null,null,null,null,null,"01:00:00",null,null,null,null,null,null,null,null,null,null,null,"01:00:00",null,null,null,null,null,null,null,null,null,null,null,"01:00:00",null,null,null,null,null,null,null,null,null,null,null,"01:00:00",null,null,null,null,null,null,null,null,null,null,null,"01:00:00",null,null,null,null,null,null,null,null,null,null,null,"01:00:00",null,null,null,null,null,null,null,null,null,null,null,"01:00:00",null,null,null,null,null,null,null,null,null,null,null,"01:00:00",null,null,null,null,null,null,null,null,null,null,null,"01:00:00",null,null,null,null,null,null,null,null,null,null,null,"01:00:00",null,null,null,null,null,null,null,null,null,null,null,null,null,null,null,null,null,null,null,null,null,null,null,null,null,null,null,null,null,null,null,null,null,null,null,null,null,null,null,null,null,null,null,0.83333333333333337]
[null,null,null,null,null,null,null,null,null,null,null,null,null,null,null,null,null,null,null,null,null,null,null,null,null,null,null,null,null,null,null,null,null,null,null,null,null,null,null,null,null,null,null,null,null,null,null,null,null,null,null,null,null,null,null,null,null,null,null,null,null,null,null,null,null,null,null,null,null,null,null,null,null,null,null,null,null,null,null,null,null,null,null,null,null,null,null,null,null,null,null,null,null,null,null,null,null,null,null,null,null,null,null,null,null,null,null,null,null,null,null,null,null,null,null,null,null,null,null,null,null,null,null,null,null,null,null,null,null,null,null,null,null,null,null,null,null,null,null,null,null,null,null,null,null,null,null,null,null,null,null,null,null,null,null,null,null,null,null,null,null,null,null,null,null,null,null,null,null,null,null,null,null,null,null,null,null,null,null,null,null,null,null,null,null,null,null,null,null,null,null,null,null,null,null,null,null,null,null,null,null,null,null,null,null,null,null,null,null,null,null,null,null,null,null,null,null,null,null,null,null,null,null,null,null,null,null,null,null,null,null,null,null,null,null,null,null,null,null,null,0.66666666666666663]
[null,null,null,null,null,null,null,null,null,null,null,null,null,null,null,null,null,null,null,null,null,null,null,"пр",null,null,null,null,null,null,null,null,null,null,null,null,null,null,null,null,null,null,null,null,null,null,null,null,null,null,null,null,null,null,null,null,null,null,null,null,null,null,null,null,null,null,null,null,null,null,null,null,null,null,null,null,null,null,null,null,null,null,null,null,null,null,null,null,null,null,null,null,null,null,null,null,null,null,null,null,null,null,null,null,null,null,null,null,null,null,null,null,null,null,null,null,null,null,null,null,null,null,null,null,null,null,null,null,null,null,null,null,null,null,null,null,null,null,null,null,null,null,null,null,null,null,null,null,null,null,null,null,null,null,null,null,null,null,null,null,null,null,null,null,null,null,null,null,null,null,null,null,null,null,null,null,null,null,null,null,null,null,null,null,null,null,null,null,null,null,null,null,null,null,null,null,null,null,null,null,null,null,null,null,null,null,null,null,null,null,null,null,null,null,null,null,null,null,null,null,null,null,null,null,null,null,null,null,null,null,null,null,null,null,null,null,null,null,null,null,0.9375]
[null,null,null,null,null,null,null,null,null,null,null,null,null,null,null,null,null,null,null,null,null,null,null,null,null,null,null,null,null,null,null,null,null,null,null,null,null,null,null,null,null,null,null,null,null,null,null,null,null,null,null,null,null,null,null,null,null,null,null,null,null,null,null,null,null,null,null,null,null,null,null,null,null,null,null,null,null,null,null,null,null,null,null,null,null,null,null,null,null,null,null,null,null,null,null,null,null,null,null,null,null,null,null,null,null,null,null,null,null,null,null,null,null,null,null,null,null,null,null,null,null,null,null,null,null,null,null,null,null,null,null,null,null,null,null,null,null,null,null,null,null,null,null,null,null,null,null,null,null,null,null,null,null,null,null,null,null,null,null,null,null,null,null,null,null,null,null,null,null,null,null,null,null,null,null,null,null,null,null,null,null,null,null,null,null,null,null,null,null,null,null,null,null,null,null,null,null,null,null,null,null,null,null,null,null,null,null,null,null,null,null,null,null,null,null,null,null,null,null,null,null,null,null,null,null,null,null,null,null,null,null,null,null,null,null,null,null,null,null,null,0.95833333333333337]
[6,null,null,null,null,"Пермякова Т.М., контролёр-посадчик аттракциона",null,null,null,null,null,null,null,null,null,null,null,null,null,null,null,null,null,1,null,null,null,null,null,null,null,null,null,null,0.375,null,null,null,null,null,null,null,null,null,null,null,0.375,null,null,null,null,null,null,null,null,null,null,null,0.33333333333333331,null,null,null,null,null,null,null,null,null,null,null,0.375,null,null,null,null,null,null,null,null,null,null,null,0.375,null,null,null,null,null,null,null,null,null,null,null,0.375,null,null,null,null,null,null,null,null,null,null,null,0.33333333333333331,null,null,null,null,null,null,null,null,null,null,null,0.375,null,null,null,null,null,null,null,null,null,null,null,0.375,null,null,null,null,null,null,null,null,null,null,null,0.375,null,null,null,null,null,null,null,null,null,null,null,0.375,null,null,null,null,null,null,null,null,null,null,null,0.375,null,null,null,null,null,null,null,null,null,null,null,0.375,null,null,null,null,null,null,null,null,null,null,null,0.375,null,null,null,null,null,null,null,null,null,null,null,0.375,null,null,null,null,null,null,null,null,null,null,null,{"$f":"COUNT(AC51:HF51)","v":15},null,null,null,null,null,null,null,null,null,null,null,null,null,null,null,null,null,{"$f":"SUM(IFERROR(AC52:HF52-AC51:HF51-AC53:HF53,0))","v":6.9583333333333321},null,null,null,null,null,null,null,0.97916666666666663]
[null,null,null,null,null,null,null,null,null,null,null,null,null,null,null,null,null,null,null,null,null,null,null,null,null,null,null,null,null,null,null,null,null,null,0.875,null,null,null,null,null,null,null,null,null,null,null,0.875,null,null,null,null,null,null,null,null,null,null,null,0.875,null,null,null,null,null,null,null,null,null,null,null,0.875,null,null,null,null,null,null,null,null,null,null,null,0.875,null,null,null,null,null,null,null,null,null,null,null,0.875,null,null,null,null,null,null,null,null,null,null,null,0.875,null,null,null,null,null,null,null,null,null,null,null,0.875,null,null,null,null,null,null,null,null,null,null,null,0.875,null,null,null,null,null,null,null,null,null,null,null,0.875,null,null,null,null,null,null,null,null,null,null,null,0.875,null,null,null,null,null,null,null,null,null,null,null,0.875,null,null,null,null,null,null,null,null,null,null,null,0.875,null,null,null,null,null,null,null,null,null,null,null,0.875,null,null,null,null,null,null,null,null,null,null,null,0.875,null,null,null,null,null,null,null,null,null,null,null,null,null,null,null,null,null,null,null,null,null,null,null,null,null,null,null,null,null,null,null,null,null,null,null,null,null,1]
[null,null,null,null,null,null,null,null,null,null,null,null,null,null,null,null,null,null,null,null,null,null,null,"обед",null,null,null,null,null,null,null,null,null,null,"01:00:00",null,null,null,null,null,null,null,null,null,null,null,"01:00:00",null,null,null,null,null,null,null,null,null,null,null,"01:00:00",null,null,null,null,null,null,null,null,null,null,null,"01:00:00",null,null,null,null,null,null,null,null,null,null,null,"01:00:00",null,null,null,null,null,null,null,null,null,null,null,"01:00:00",null,null,null,null,null,null,null,null,null,null,null,"01:00:00",null,null,null,null,null,null,null,null,null,null,null,"01:00:00",null,null,null,null,null,null,null,null,null,null,null,"01:00:00",null,null,null,null,null,null,null,null,null,null,null,"01:00:00",null,null,null,null,null,null,null,null,null,null,null,"01:00:00",null,null,null,null,null,null,null,null,null,null,null,"01:00:00",null,null,null,null,null,null,null,null,null,null,null,"01:00:00",null,null,null,null,null,null,null,null,null,null,null,"01:00:00",null,null,null,null,null,null,null,null,null,null,null,"01:00:00",null,null,null,null,null,null,null,null,null,null,null,null,null,null,null,null,null,null,null,null,null,null,null,null,null,null,null,null,null,null,null,null,null,null,null,null,null,0.91666666666666663]
[null,null,null,null,null,null,null,null,null,null,null,null,null,null,null,null,null,null,null,null,null,null,null,null,null,null,null,null,null,null,null,null,null,null,null,null,null,null,null,null,null,null,null,null,null,null,null,null,null,null,null,null,null,null,null,null,null,null,null,null,null,null,null,null,null,null,null,null,null,null,null,null,null,null,null,null,null,null,null,null,null,null,null,null,null,null,null,null,null,null,null,null,null,null,null,null,null,null,null,null,null,null,null,null,null,null,null,null,null,null,null,null,null,null,null,null,null,null,null,null,null,null,null,null,null,null,null,null,null,null,null,null,null,null,null,null,null,null,null,null,null,null,null,null,null,null,null,null,null,null,null,null,null,null,null,null,null,null,null,null,null,null,null,null,null,null,null,null,null,null,null,null,null,null,null,null,null,null,null,null,null,null,null,null,null,null,null,null,null,null,null,null,null,null,null,null,null,null,null,null,null,null,null,null,null,null,null,null,null,null,null,null,null,null,null,null,null,null,null,null,null,null,null,null,null,null,null,null,null,null,null,null,null,null,null,null,null,null,null,null,"В"]
[null,null,null,null,null,null,null,null,null,null,null,null,null,null,null,null,null,null,null,null,null,null,null,"пр",null,null,null,null,null,null,null,null,null,null,null,null,null,null,null,null,null,null,null,null,null,null,null,null,null,null,null,null,null,null,null,null,null,null,null,null,null,null,null,null,null,null,null,null,null,null,null,null,null,null,null,null,null,null,null,null,null,null,null,null,null,null,null,null,null,null,null,null,null,null,{"$f":"CQ52-CQ51-CQ53","v":0.45833333333333331},null,null,null,null,null,null,null,null,null,null,null,null,null,null,null,null,null,null,null,null,null,null,null,null,null,null,null,null,null,null,null,null,null,null,null,null,null,null,null,null,null,null,null,null,null,null,null,null,null,null,null,null,null,null,null,null,null,null,null,null,null,null,null,null,null,null,null,null,null,null,null,null,null,null,null,null,null,null,null,null,null,null,null,null,null,null,null,null,null,null,null,null,null,null,null,null,null,null,null,null,null,null,null,null,null,null,null,null,null,null,null,null,null,null,null,null,null,null,null,null,null,null,null,null,null,null,null,null,null,null,null,null,null,null,null,null,null,null,null,null,null,null,null,null,null,"Б"]
[null,null,null,null,null,null,null,null,null,null,null,null,null,null,null,null,null,null,null,null,null,null,null,null,null,null,null,null,null,null,null,null,null,null,null,null,null,null,null,null,null,null,null,null,null,null,null,null,null,null,null,null,null,null,null,null,null,null,null,null,null,null,null,null,null,null,null,null,null,null,null,null,null,null,null,null,null,null,null,null,null,null,null,null,null,null,null,null,null,null,null,null,null,null,null,null,null,null,null,null,null,null,null,null,null,null,null,null,null,null,null,null,null,null,null,null,null,null,null,null,null,null,null,null,null,null,null,null,null,null,null,null,null,null,null,null,null,null,null,null,null,null,null,null,null,null,null,null,null,null,null,null,null,null,null,null,null,null,null,null,null,null,null,null,null,null,null,null,null,null,null,null,null,null,null,null,null,null,null,null,null,null,null,null,null,null,null,null,null,null,null,null,null,null,null,null,null,null,null,null,null,null,null,null,null,null,null,null,null,null,null,null,null,null,null,null,null,null,null,null,null,null,null,null,null,null,null,null,null,null,null,null,null,null,null,null,null,null,null,null,"К"]
[7,null,null,null,null,"Алексеева Р.И., котролёр-посадчик аттракциона",null,null,null,null,null,null,null,null,null,null,null,null,null,null,null,null,null,1,null,null,null,null,0.375,null,null,null,null,null,null,null,null,null,null,null,0.375,null,null,null,null,null,null,null,null,null,null,null,0.375,null,null,null,null,null,null,null,null,null,null,null,0.33333333333333331,null,null,null,null,null,null,null,null,null,null,null,0.375,null,null,null,null,null,null,null,null,null,null,null,0.375,null,null,null,null,null,null,null,null,null,null,null,0.33333333333333331,null,null,null,null,null,null,null,null,null,null,null,0.375,null,null,null,null,null,null,null,null,null,null,null,0.375,null,null,null,null,null,null,null,null,null,null,null,0.375,null,null,null,null,null,null,null,null,null,null,null,0.375,null,null,null,null,null,null,null,null,null,null,null,0.375,null,null,null,null,null,null,null,null,null,null,null,0.375,null,null,null,null,null,null,null,null,null,null,null,0.375,null,null,null,null,null,null,null,null,null,null,null,0.375,null,null,null,null,null,null,null,null,null,null,null,null,null,null,null,null,null,{"$f":"COUNT(AC57:HF57)","v":15},null,null,null,null,null,null,null,null,null,null,null,null,null,null,null,null,null,{"$f":"SUM(IFERROR(AC58:HF58-AC57:HF57-AC59:HF59,0))","v":6.9583333333333321},null,null,null,null,null,null,null,"О"]
[null,null,null,null,null,null,null,null,null,null,null,null,null,null,null,null,null,null,null,null,null,null,null,null,null,null,null,null,0.875,null,null,null,null,null,null,null,null,null,null,null,0.875,null,null,null,null,null,null,null,null,null,null,null,0.875,null,null,null,null,null,null,null,null,null,null,null,0.875,null,null,null,null,null,null,null,null,null,null,null,0.875,null,null,null,null,null,null,null,null,null,null,null,0.875,null,null,null,null,null,null,null,null,null,null,null,0.875,null,null,null,null,null,null,null,null,null,null,null,0.875,null,null,null,null,null,null,null,null,null,null,null,0.875,null,null,null,null,null,null,null,null,null,null,null,0.875,null,null,null,null,null,null,null,null,null,null,null,0.875,null,null,null,null,null,null,null,null,null,null,null,0.875,null,null,null,null,null,null,null,null,null,null,null,0.875,null,null,null,null,null,null,null,null,null,null,null,0.875,null,null,null,null,null,null,null,null,null,null,null,0.875,null,null,null,null,null,null,null,null,null,null,null,null,null,null,null,null,null,null,null,null,null,null,null,null,null,null,null,null,null,null,null,null,null,null,null,null,null,null,null,null,null,null,null,"П"]
[null,null,null,null,null,null,null,null,null,null,null,null,null,null,null,null,null,null,null,null,null,null,null,"обед",null,null,null,null,"01:00:00",null,null,null,null,null,null,null,null,null,null,null,"01:00:00",null,null,null,null,null,null,null,null,null,null,null,"01:00:00",null,null,null,null,null,null,null,null,null,null,null,"01:00:00",null,null,null,null,null,null,null,null,null,null,null,"01:00:00",null,null,null,null,null,null,null,null,null,null,null,"01:00:00",null,null,null,null,null,null,null,null,null,null,null,"01:00:00",null,null,null,null,null,null,null,null,null,null,null,"01:00:00",null,null,null,null,null,null,null,null,null,null,null,"01:00:00",null,null,null,null,null,null,null,null,null,null,null,"01:00:00",null,null,null,null,null,null,null,null,null,null,null,"01:00:00",null,null,null,null,null,null,null,null,null,null,null,"01:00:00",null,null,null,null,null,null,null,null,null,null,null,"01:00:00",null,null,null,null,null,null,null,null,null,null,null,"01:00:00",null,null,null,null,null,null,null,null,null,null,null,"01:00:00"]
[null,null,null,null,null,null,null,null,null,null,null,null,null,null,null,null,null,null,null,null,null,null,null,null,null,null,null,null,null,null,null,null,null,null,null,null,null,null,null,null,null,null,null,null,null,null,null,null,null,null,null,null,null,null,null,null,null,null,null,null,null,null,null,null,null,null,null,null,null,null,null,null,null,null,null,null,null,null,null,null,null,null,null,null,null,null,null,null,null,null,null,null,null,null,null,null,null,null,null,null,null,null,null,null,null,null,null,null,null,null,null,null,null,null,null,null,null,null,null,null,null,null,null,null,null,null,null,null,null,null,null,null,null,null,null,null,null,null,null,null,null,null,null,null,null,null,null,null,null,null,null,null,null,null,null,null,null,null,null,null,null,null,null,null,null,null,null,null,null,null,null,null,null,null,null,null,null,null,null,null,null,null,null,null,null,null,null,null,null,null,null,null,null,null,null,null,null,null,null,null,null,null,null,null,null,null,null,null,null,null,null,null,null,null,null,null,null,null,null,null,null,null,null,null,null,null,null,null,null,null,null,null,null,null,null,null,null,null,null,null,"С"]
[null,null,null,null,null,null,null,null,null,null,null,null,null,null,null,null,null,null,null,null,null,null,null,"пр"]
[]
[8,null,null,null,null,"Перминов К.И., дежурный зала",null,null,null,null,null,null,null,null,null,null,null,null,null,null,null,null,null,1,null,null,null,null,0.41666666666666669,null,null,null,null,null,"В",null,null,null,null,null,0.375,null,null,null,null,null,0.375,null,null,null,null,null,0.375,null,null,null,null,null,0.375,null,null,null,null,null,0.375,null,null,null,null,null,0.41666666666666669,null,null,null,null,null,"В",null,null,null,null,null,0.375,null,null,null,null,null,0.41666666666666669,null,null,null,null,null,"В",null,null,null,null,null,0.375,null,null,null,null,null,0.375,null,null,null,null,null,0.41666666666666669,null,null,null,null,null,"В",null,null,null,null,null,0.375,null,null,null,null,null,0.375,null,null,null,null,null,0.375,null,null,null,null,null,0.375,null,null,null,null,null,0.375,null,null,null,null,null,0.41666666666666669,null,null,null,null,null,"В",null,null,null,null,null,0.375,null,null,null,null,null,0.375,null,null,null,null,null,0.375,null,null,null,null,null,0.375,null,null,null,null,null,0.375,null,null,null,null,null,0.41666666666666669,null,null,null,null,null,"В",null,null,null,null,null,null,null,null,null,null,null,{"$f":"COUNT(AC63:HF63)","v":24},null,null,null,null,null,null,null,null,null,null,null,null,null,null,null,null,null,{"$f":"SUM(IFERROR(AC64:HF64-AC63:HF63-AC65:HF65,0))","v":6.9583333333333348}]
[null,null,null,null,null,null,null,null,null,null,null,null,null,null,null,null,null,null,null,null,null,null,null,null,null,null,null,null,0.66666666666666663,null,null,null,null,null,"В",null,null,null,null,null,0.79166666666666663,null,null,null,null,null,0.79166666666666663,null,null,null,null,null,0.79166666666666663,null,null,null,null,null,0.79166666666666663,null,null,null,null,null,0.79166666666666663,null,null,null,null,null,0.66666666666666663,null,null,null,null,null,"В",null,null,null,null,null,0.79166666666666663,null,null,null,null,null,0.66666666666666663,null,null,null,null,null,"В",null,null,null,null,null,0.79166666666666663,null,null,null,null,null,0.79166666666666663,null,null,null,null,null,0.66666666666666663,null,null,null,null,null,"В",null,null,null,null,null,0.79166666666666663,null,null,null,null,null,0.79166666666666663,null,null,null,null,null,0.79166666666666663,null,null,null,null,null,0.79166666666666663,null,null,null,null,null,0.79166666666666663,null,null,null,null,null,0.66666666666666663,null,null,null,null,null,"В",null,null,null,null,null,0.79166666666666663,null,null,null,null,null,0.79166666666666663,null,null,null,null,null,0.79166666666666663,null,null,null,null,null,0.79166666666666663,null,null,null,null,null,0.79166666666666663,null,null,null,null,null,0.66666666666666663,null,null,null,null,null,"В"]
[null,null,null,null,null,null,null,null,null,null,null,null,null,null,null,null,null,null,null,null,null,null,null,"обед",null,null,null,null,"01:00:00",null,null,null,null,null,null,null,null,null,null,null,"02:00:00",null,null,null,null,null,"02:00:00",null,null,null,null,null,"02:00:00",null,null,null,null,null,"02:00:00",null,null,null,null,null,"02:00:00",null,null,null,null,null,"01:00:00",null,null,null,null,null,null,null,null,null,null,null,"02:00:00",null,null,null,null,null,"01:00:00",null,null,null,null,null,null,null,null,null,null,null,"02:00:00",null,null,null,null,null,"02:00:00",null,null,null,null,null,"01:00:00",null,null,null,null,null,null,null,null,null,null,null,"02:00:00",null,null,null,null,null,"02:00:00",null,null,null,null,null,"02:00:00",null,null,null,null,null,"03:00:00",null,null,null,null,null,"03:00:00",null,null,null,null,null,"01:00:00",null,null,null,null,null,null,null,null,null,null,null,"03:00:00",null,null,null,null,null,"03:00:00",null,null,null,null,null,"03:00:00",null,null,null,null,null,"03:00:00",null,null,null,null,null,"03:00:00",null,null,null,null,null,"01:00:00"]
[]
[null,null,null,null,null,null,null,null,null,null,null,null,null,null,null,null,null,null,null,null,null,null,null,"пр"]
[]
[9,null,null,null,null,"Перминов К.И., кассир",null,null,null,null,null,null,null,null,null,null,null,null,null,null,null,null,null,0.25,null,null,null,null,0.375,null,null,null,null,null,null,null,null,null,null,null,0.375,null,null,null,null,null,0.375,null,null,null,null,null,0.375,null,null,null,null,null,0.375,null,null,null,null,null,0.375,null,null,null,null,null,0.375,null,null,null,null,null,null,null,null,null,null,null,0.375,null,null,null,null,null,0.375,null,null,null,null,null,"В",null,null,null,null,null,0.375,null,null,null,null,null,0.375,null,null,null,null,null,0.375,null,null,null,null,null,null,null,null,null,null,null,0.375,null,null,null,null,null,0.375,null,null,null,null,null,0.375,null,null,null,null,null,0.375,null,null,null,null,null,0.375,null,null,null,null,null,0.375,null,null,null,null,null,null,null,null,null,null,null,0.375,null,null,null,null,null,0.375,null,null,null,null,null,0.375,null,null,null,null,null,0.375,null,null,null,null,null,0.375,null,null,null,null,null,0.375,null,null,null,null,null,null,null,null,null,null,null,null,null,null,null,null,null,{"$f":"COUNT(AC69:HF69)","v":24},null,null,null,null,null,null,null,null,null,null,null,null,null,null,null,null,null,{"$f":"SUM(IFERROR(AC70:HF70-AC69:HF69-AC71:HF71,0))","v":1.739583333333333}]
[null,null,null,null,null,null,null,null,null,null,null,null,null,null,null,null,null,null,null,null,null,null,null,null,null,null,null,null,0.45833333333333331,null,null,null,null,null,null,null,null,null,null,null,0.45833333333333331,null,null,null,null,null,0.45833333333333331,null,null,null,null,null,0.45833333333333331,null,null,null,null,null,0.45833333333333331,null,null,null,null,null,0.45833333333333331,null,null,null,null,null,0.45833333333333331,null,null,null,null,null,null,null,null,null,null,null,0.45833333333333331,null,null,null,null,null,0.45833333333333331,null,null,null,null,null,"В",null,null,null,null,null,0.45833333333333331,null,null,null,null,null,0.45833333333333331,null,null,null,null,null,0.45833333333333331,null,null,null,null,null,null,null,null,null,null,null,0.45833333333333331,null,null,null,null,null,0.45833333333333331,null,null,null,null,null,0.45833333333333331,null,null,null,null,null,0.45833333333333331,null,null,null,null,null,0.45833333333333331,null,null,null,null,null,0.41666666666666669,null,null,null,null,null,null,null,null,null,null,null,0.41666666666666669,null,null,null,null,null,0.41666666666666669,null,null,null,null,null,0.41666666666666669,null,null,null,null,null,0.41666666666666669,null,null,null,null,null,0.41666666666666669,null,null,null,null,null,0.44791666666666669]
[null,null,null,null,null,null,null,null,null,null,null,null,null,null,null,null,null,null,null,null,null,null,null,"обед"]
[]
[null,null,null,null,null,null,null,null,null,null,null,null,null,null,null,null,null,null,null,null,null,null,null,"пр"]
[]
[10,null,null,null,null,"Бутелин Ю.Н., сторож",null,null,null,null,null,null,null,null,null,null,null,null,null,null,null,null,null,1,null,null,null,null,0.70833333333333337,null,null,null,null,null,"В",null,null,null,null,null,"В",null,null,null,null,null,0.70833333333333337,null,null,null,null,null,"В",null,null,null,null,null,"В",null,null,null,null,null,0.70833333333333337,null,null,null,null,null,"В",null,null,null,null,null,"В",null,null,null,null,null,0.66666666666666663,null,null,null,null,null,"В",null,null,null,null,null,"В",null,null,null,null,null,0.66666666666666663,null,null,null,null,null,"В",null,null,null,null,null,"В",null,null,null,null,null,0.66666666666666663,null,null,null,null,null,"В",null,null,null,null,null,"В",null,null,null,null,null,0.66666666666666663,null,null,null,null,null,"В",null,null,null,null,null,"В",null,null,null,null,null,0.66666666666666663,null,null,null,null,null,"В",null,null,null,null,null,"В",null,null,null,null,null,0.66666666666666663,null,null,null,null,null,"В",null,null,null,null,null,"В",null,null,null,null,null,0.66666666666666663,null,null,null,null,null,"В",null,null,null,null,null,"В",null,null,null,null,null,null,null,null,null,null,null,{"$f":"COUNT(AC75:HF75)","v":10},null,null,null,null,null,null,null,null,null,null,null,null,null,null,null,null,null,{"$f":"SUM(IF(ISNUMBER(AC75:HF75),AC76:HF76-AC75:HF75+(AC76:HF76<AC75:HF75),))*24","v":166.99999999999997}]
[null,null,null,null,null,null,null,null,null,null,null,null,null,null,null,null,null,null,null,null,null,null,null,null,null,null,null,null,0.375,null,null,null,null,null,"В",null,null,null,null,null,"В",null,null,null,null,null,0.375,null,null,null,null,null,"В",null,null,null,null,null,"В",null,null,null,null,null,0.375,null,null,null,null,null,"В",null,null,null,null,null,"В",null,null,null,null,null,0.375,null,null,null,null,null,"В",null,null,null,null,null,"В",null,null,null,null,null,0.375,null,null,null,null,null,"В",null,null,null,null,null,"В",null,null,null,null,null,0.375,null,null,null,null,null,"В",null,null,null,null,null,"В",null,null,null,null,null,0.375,null,null,null,null,null,"В",null,null,null,null,null,"В",null,null,null,null,null,0.375,null,null,null,null,null,"В",null,null,null,null,null,"В",null,null,null,null,null,0.375,null,null,null,null,null,"В",null,null,null,null,null,"В",null,null,null,null,null,0.375,null,null,null,null,null,"В",null,null,null,null,null,"В"]
[null,null,null,null,null,null,null,null,null,null,null,null,null,null,null,null,null,null,null,null,null,null,null,null,null,null,null,null,null,null,null,null,null,null,null,null,null,null,null,null,null,null,null,null,null,null,null,null,null,null,null,null,null,null,null,null,null,null,null,null,null,null,null,null,null,null,null,null,null,null,null,null,null,null,null,null,null,null,null,null,null,null,null,null,null,null,null,null,null,null,null,null,null,null,null,null,null,null,null,null,null,null,null,null,null,null,null,null,null,null,null,null,null,null,null,null,null,null,null,null,null,null,null,null,null,null,null,null,null,null,null,null,null,null,null,null,null,null,null,null,null,null,null,null,null,null,null,null,null,null,null,null,null,null,null,null,null,null,null,null,null,null,null,null,null,null,null,null,null,null,null,null,null,null,null,null,null,null,null,null,null,null,null,null,null,null,null,null,null,null,null,null,null,null,null,null,null,null,null,null,null,null,null,null,null,null,null,null,null,null,null,null,null,null,null,null,null,null,null,null,null,null,null,null,null,null,null,null,null,null,null,null,{"$f":"SUM(AC77:HF77)","v":0}]
[]
[null,null,null,null,null,null,null,null,null,null,null,null,null,null,null,null,null,null,null,null,null,null,null,"НОЧЬ",null,null,null,null,{"$f":"(MIN(AC76,6/24)-MIN(AC75,6/24)+MAX(AC76,22/24)-MAX(AC75,22/24))*24+(AC76<AC75)*8","v":8},null,null,null,null,null,{"$f":"(MIN(AI76,6/24)-MIN(AI75,6/24)+MAX(AI76,22/24)-MAX(AI75,22/24))*24+(AI76<AI75)*8","v":0},null,null,null,null,null,{"$f":"(MIN(AO76,6/24)-MIN(AO75,6/24)+MAX(AO76,22/24)-MAX(AO75,22/24))*24+(AO76<AO75)*8","v":0},null,null,null,null,null,{"$f":"(MIN(AU76,6/24)-MIN(AU75,6/24)+MAX(AU76,22/24)-MAX(AU75,22/24))*24+(AU76<AU75)*8","v":8},null,null,null,null,null,{"$f":"(MIN(BA76,6/24)-MIN(BA75,6/24)+MAX(BA76,22/24)-MAX(BA75,22/24))*24+(BA76<BA75)*8","v":0},null,null,null,null,null,{"$f":"(MIN(BG76,6/24)-MIN(BG75,6/24)+MAX(BG76,22/24)-MAX(BG75,22/24))*24+(BG76<BG75)*8","v":0},null,null,null,null,null,{"$f":"(MIN(BM76,6/24)-MIN(BM75,6/24)+MAX(BM76,22/24)-MAX(BM75,22/24))*24+(BM76<BM75)*8","v":8},null,null,null,null,null,{"$f":"(MIN(BS76,6/24)-MIN(BS75,6/24)+MAX(BS76,22/24)-MAX(BS75,22/24))*24+(BS76<BS75)*8","v":0},null,null,null,null,null,{"$f":"(MIN(BY76,6/24)-MIN(BY75,6/24)+MAX(BY76,22/24)-MAX(BY75,22/24))*24+(BY76<BY75)*8","v":0},null,null,null,null,null,{"$f":"(MIN(CE76,6/24)-MIN(CE75,6/24)+MAX(CE76,22/24)-MAX(CE75,22/24))*24+(CE76<CE75)*8","v":8},null,null,null,null,null,{"$f":"(MIN(CK76,6/24)-MIN(CK75,6/24)+MAX(CK76,22/24)-MAX(CK75,22/24))*24+(CK76<CK75)*8","v":0},null,null,null,null,null,{"$f":"(MIN(CQ76,6/24)-MIN(CQ75,6/24)+MAX(CQ76,22/24)-MAX(CQ75,22/24))*24+(CQ76<CQ75)*8","v":0},null,null,null,null,null,{"$f":"(MIN(CW76,6/24)-MIN(CW75,6/24)+MAX(CW76,22/24)-MAX(CW75,22/24))*24+(CW76<CW75)*8","v":8},null,null,null,null,null,{"$f":"(MIN(DC76,6/24)-MIN(DC75,6/24)+MAX(DC76,22/24)-MAX(DC75,22/24))*24+(DC76<DC75)*8","v":0},null,null,null,null,null,{"$f":"(MIN(DI76,6/24)-MIN(DI75,6/24)+MAX(DI76,22/24)-MAX(DI75,22/24))*24+(DI76<DI75)*8","v":0},null,null,null,null,null,{"$f":"(MIN(DO76,6/24)-MIN(DO75,6/24)+MAX(DO76,22/24)-MAX(DO75,22/24))*24+(DO76<DO75)*8","v":8},null,null,null,null,null,{"$f":"(MIN(DU76,6/24)-MIN(DU75,6/24)+MAX(DU76,22/24)-MAX(DU75,22/24))*24+(DU76<DU75)*8","v":0},null,null,null,null,null,{"$f":"(MIN(EA76,6/24)-MIN(EA75,6/24)+MAX(EA76,22/24)-MAX(EA75,22/24))*24+(EA76<EA75)*8","v":0},null,null,null,null,null,{"$f":"(MIN(EG76,6/24)-MIN(EG75,6/24)+MAX(EG76,22/24)-MAX(EG75,22/24))*24+(EG76<EG75)*8","v":8},null,null,null,null,null,{"$f":"(MIN(EM76,6/24)-MIN(EM75,6/24)+MAX(EM76,22/24)-MAX(EM75,22/24))*24+(EM76<EM75)*8","v":0},null,null,null,null,null,{"$f":"(MIN(ES76,6/24)-MIN(ES75,6/24)+MAX(ES76,22/24)-MAX(ES75,22/24))*24+(ES76<ES75)*8","v":0},null,null,null,null,null,{"$f":"(MIN(EY76,6/24)-MIN(EY75,6/24)+MAX(EY76,22/24)-MAX(EY75,22/24))*24+(EY76<EY75)*8","v":8},null,null,null,null,null,{"$f":"(MIN(FE76,6/24)-MIN(FE75,6/24)+MAX(FE76,22/24)-MAX(FE75,22/24))*24+(FE76<FE75)*8","v":0},null,null,null,null,null,{"$f":"(MIN(FK76,6/24)-MIN(FK75,6/24)+MAX(FK76,22/24)-MAX(FK75,22/24))*24+(FK76<FK75)*8","v":0},null,null,null,null,null,{"$f":"(MIN(FQ76,6/24)-MIN(FQ75,6/24)+MAX(FQ76,22/24)-MAX(FQ75,22/24))*24+(FQ76<FQ75)*8","v":8},null,null,null,null,null,{"$f":"(MIN(FW76,6/24)-MIN(FW75,6/24)+MAX(FW76,22/24)-MAX(FW75,22/24))*24+(FW76<FW75)*8","v":0},null,null,null,null,null,{"$f":"(MIN(GC76,6/24)-MIN(GC75,6/24)+MAX(GC76,22/24)-MAX(GC75,22/24))*24+(GC76<GC75)*8","v":0},null,null,null,null,null,{"$f":"(MIN(GI76,6/24)-MIN(GI75,6/24)+MAX(GI76,22/24)-MAX(GI75,22/24))*24+(GI76<GI75)*8","v":8},null,null,null,null,null,{"$f":"(MIN(GO76,6/24)-MIN(GO75,6/24)+MAX(GO76,22/24)-MAX(GO75,22/24))*24+(GO76<GO75)*8","v":0},null,null,null,null,null,{"$f":"(MIN(GU76,6/24)-MIN(GU75,6/24)+MAX(GU76,22/24)-MAX(GU75,22/24))*24+(GU76<GU75)*8","v":0},null,null,null,null,null,null,null,null,null,null,null,null,null,null,null,null,null,null,null,null,null,null,null,null,null,null,null,null,null,{"$f":"SUM(AC79:HF79)","v":80}]
[]
[null,null,null,null,null,null,null,null,null,null,null,null,null,null,null,null,null,null,null,null,null,null,null,"пр",null,null,null,null,null,null,null,null,null,null,null,null,null,null,null,null,null,null,null,null,null,null,null,null,null,null,null,null,null,null,null,null,null,null,null,null,null,null,null,null,null,null,null,null,null,null,null,null,null,null,null,null,null,null,null,null,null,null,null,null,null,null,null,null,null,null,null,null,null,null,null,null,null,null,null,null,null,null,null,null,null,null,null,null,null,null,null,null,null,null,null,null,null,null,null,null,null,null,null,null,null,null,null,null,null,null,null,null,null,null,null,null,null,null,null,null,null,null,null,null,null,null,null,null,null,null,null,null,null,null,null,null,null,null,null,null,null,null,null,null,null,null,null,null,null,null,null,null,null,null,null,null,null,null,null,null,null,null,null,null,null,null,null,null,null,null,null,null,null,null,null,null,null,null,null,null,null,null,null,null,null,null,null,null,null,null,null,null,null,null,null,null,null,null,null,null,null,null,null,null,null,null,null,null,null,null,null,null,{"$f":"SUM(AC81:HF81)","v":0}]
[]
[11,null,null,null,null,"Бутелин Ю.Н., контролёр-посадчик",null,null,null,null,null,null,null,null,null,null,null,null,null,null,null,null,null,0.25,null,null,null,null,4,null,null,null,null,null,null,null,null,null,null,null,null,null,null,null,null,null,4,null,null,null,null,null,null,null,null,null,null,null,null,null,null,null,null,null,4,null,null,null,null,null,null,null,null,null,null,null,null,null,null,null,null,null,4,null,null,null,null,null,null,null,null,null,null,null,null,null,null,null,null,null,4,null,null,null,null,null,null,null,null,null,null,null,null,null,null,null,null,null,4,null,null,null,null,null,null,null,null,null,null,null,null,null,null,null,null,null,4,null,null,null,null,null,null,null,null,null,null,null,null,null,null,null,null,null,4,null,null,null,null,null,null,null,null,null,null,null,null,null,null,null,null,null,4,null,null,null,null,null,null,null,null,null,null,null,null,null,null,null,null,null,5.45,null,null,null,null,null,null,null,null,null,null,null,null,null,null,null,null,null,null,null,null,null,null,null,{"$f":"COUNT(AC83:HF83)","v":10},null,null,null,null,null,null,null,null,null,null,null,null,null,null,null,null,null,{"$f":"SUM(AC83:HF83)","v":41.45}]
[]
[]
[]
[null,null,null,null,null,null,null,null,null,null,null,null,null,null,null,null,null,null,null,null,null,null,null,"пр",null,null,null,null,null,null,null,null,null,null,null,null,null,null,null,null,null,null,null,null,null,null,null,null,null,null,null,null,null,null,null,null,null,null,null,null,null,null,null,null,null,null,null,null,null,null,null,null,null,null,null,null,null,null,null,null,null,null,null,null,null,null,null,null,null,null,null,null,null,null,null,null,null,null,null,null,null,null,null,null,null,null,null,null,null,null,null,null,null,null,null,null,null,null,null,null,null,null,null,null,null,null,null,null,null,null,null,null,null,null,null,null,null,null,null,null,null,null,null,null,null,null,null,null,null,null,null,null,null,null,null,null,null,null,null,null,null,null,null,null,null,null,null,null,null,null,null,null,null,null,null,null,null,null,null,null,null,null,null,null,null,null,null,null,null,null,null,null,null,null,null,null,null,null,null,null,null,null,null,null,null,null,null,null,null,null,null,null,null,null,null,null,null,null,null,null,null,null,null,null,null,null,null,null,null,null,null,null,{"$f":"SUM(AC87:HF87)","v":0}]
[]
[12,null,null,null,null,"Медведев А.П., сторож",null,null,null,null,null,null,null,null,null,null,null,null,null,null,null,null,null,1,null,null,null,null,"В",null,null,null,null,null,0.95833333333333337,null,null,null,null,null,"В",null,null,null,null,null,"В",null,null,null,null,null,0.95833333333333337,null,null,null,null,null,"В",null,null,null,null,null,"В",null,null,null,null,null,0.95833333333333337,null,null,null,null,null,"В",null,null,null,null,null,"В",null,null,null,null,null,0.95833333333333337,null,null,null,null,null,"В",null,null,null,null,null,"В",null,null,null,null,null,0.95833333333333337,null,null,null,null,null,"В",null,null,null,null,null,"В",null,null,null,null,null,0.95833333333333337,null,null,null,null,null,"В",null,null,null,null,null,"В",null,null,null,null,null,0.95833333333333337,null,null,null,null,null,"В",null,null,null,null,null,"В",null,null,null,null,null,0.97916666666666663,null,null,null,null,null,"В",null,null,null,null,null,"В",null,null,null,null,null,0.97916666666666663,null,null,null,null,null,"В",null,null,null,null,null,"В",null,null,null,null,null,0.97916666666666663,null,null,null,null,null,"В",null,null,null,null,null,null,null,null,null,null,null,{"$f":"COUNT(AC89:HF89)","v":10},null,null,null,null,null,null,null,null,null,null,null,null,null,null,null,null,null,{"$f":"HG89-SUM(AC89:HF89)+SUM(AC90:HF90)","v":3.4791666666666679}]
[null,null,null,null,null,null,null,null,null,null,null,null,null,null,null,null,null,null,null,null,null,null,null,null,null,null,null,null,"В",null,null,null,null,null,0.3125,null,null,null,null,null,"В",null,null,null,null,null,"В",null,null,null,null,null,0.3125,null,null,null,null,null,"В",null,null,null,null,null,"В",null,null,null,null,null,0.3125,null,null,null,null,null,"В",null,null,null,null,null,"В",null,null,null,null,null,0.3125,null,null,null,null,null,"В",null,null,null,null,null,"В",null,null,null,null,null,0.3125,null,null,null,null,null,"В",null,null,null,null,null,"В",null,null,null,null,null,0.3125,null,null,null,null,null,"В",null,null,null,null,null,"В",null,null,null,null,null,0.3125,null,null,null,null,null,"В",null,null,null,null,null,"В",null,null,null,null,null,0.3125,null,null,null,null,null,"В",null,null,null,null,null,"В",null,null,null,null,null,0.3125,null,null,null,null,null,"В",null,null,null,null,null,"В",null,null,null,null,null,0.3125,null,null,null,null,null,"В"]
[null,null,null,null,null,null,null,null,null,null,null,null,null,null,null,null,null,null,null,null,null,null,null,"обед",null,null,null,null,null,null,null,null,null,null,null,null,null,null,null,null,null,null,null,null,null,null,null,null,null,null,null,null,null,null,null,null,null,null,null,null,null,null,null,null,null,null,null,null,null,null,null,null,null,null,null,null,null,null,null,null,null,null,null,null,null,null,null,null,null,null,null,null,null,null,null,null,null,null,null,null,null,null,null,null,null,null,null,null,null,null,null,null,null,null,null,null,null,null,null,null,null,null,null,null,null,null,null,null,null,null,null,null,null,null,null,null,null,null,null,null,null,null,null,null,null,null,null,null,null,null,null,null,null,null,null,null,null,null,null,null,null,null,null,null,null,null,null,null,null,null,null,null,null,null,null,null,null,null,null,null,null,null,null,null,null,null,null,null,null,null,null,null,null,null,null,null,null,null,null,null,null,null,null,null,null,null,null,null,null,null,null,null,null,null,null,null,null,null,null,null,null,null,null,null,null,null,null,null,null,null,null,null,{"$f":"HG91-SUM(AC91:HF91)+SUM(AC92:HF92)","v":0}]
[]
[null,null,null,null,null,null,null,null,null,null,null,null,null,null,null,null,null,null,null,null,null,null,null,"НОЧЬ",null,null,null,null,{"$f":"(MIN(AC90,6/24)-MIN(AC89,6/24)+MAX(AC90,22/24)-MAX(AC89,22/24))*24+(AC90<AC89)*8","v":0},null,null,null,null,null,{"$f":"(MIN(AI90,6/24)-MIN(AI89,6/24)+MAX(AI90,22/24)-MAX(AI89,22/24))*24+(AI90<AI89)*8","v":6.9999999999999982},null,null,null,null,null,{"$f":"(MIN(AO90,6/24)-MIN(AO89,6/24)+MAX(AO90,22/24)-MAX(AO89,22/24))*24+(AO90<AO89)*8","v":0},null,null,null,null,null,{"$f":"(MIN(AU90,6/24)-MIN(AU89,6/24)+MAX(AU90,22/24)-MAX(AU89,22/24))*24+(AU90<AU89)*8","v":0},null,null,null,null,null,{"$f":"(MIN(BA90,6/24)-MIN(BA89,6/24)+MAX(BA90,22/24)-MAX(BA89,22/24))*24+(BA90<BA89)*8","v":6.9999999999999982},null,null,null,null,null,{"$f":"(MIN(BG90,6/24)-MIN(BG89,6/24)+MAX(BG90,22/24)-MAX(BG89,22/24))*24+(BG90<BG89)*8","v":0},null,null,null,null,null,{"$f":"(MIN(BM90,6/24)-MIN(BM89,6/24)+MAX(BM90,22/24)-MAX(BM89,22/24))*24+(BM90<BM89)*8","v":0},null,null,null,null,null,{"$f":"(MIN(BS90,6/24)-MIN(BS89,6/24)+MAX(BS90,22/24)-MAX(BS89,22/24))*24+(BS90<BS89)*8","v":6.9999999999999982},null,null,null,null,null,{"$f":"(MIN(BY90,6/24)-MIN(BY89,6/24)+MAX(BY90,22/24)-MAX(BY89,22/24))*24+(BY90<BY89)*8","v":0},null,null,null,null,null,{"$f":"(MIN(CE90,6/24)-MIN(CE89,6/24)+MAX(CE90,22/24)-MAX(CE89,22/24))*24+(CE90<CE89)*8","v":0},null,null,null,null,null,{"$f":"(MIN(CK90,6/24)-MIN(CK89,6/24)+MAX(CK90,22/24)-MAX(CK89,22/24))*24+(CK90<CK89)*8","v":6.9999999999999982},null,null,null,null,null,{"$f":"(MIN(CQ90,6/24)-MIN(CQ89,6/24)+MAX(CQ90,22/24)-MAX(CQ89,22/24))*24+(CQ90<CQ89)*8","v":0},null,null,null,null,null,{"$f":"(MIN(CW90,6/24)-MIN(CW89,6/24)+MAX(CW90,22/24)-MAX(CW89,22/24))*24+(CW90<CW89)*8","v":0},null,null,null,null,null,{"$f":"(MIN(DC90,6/24)-MIN(DC89,6/24)+MAX(DC90,22/24)-MAX(DC89,22/24))*24+(DC90<DC89)*8","v":6.9999999999999982},null,null,null,null,null,{"$f":"(MIN(DI90,6/24)-MIN(DI89,6/24)+MAX(DI90,22/24)-MAX(DI89,22/24))*24+(DI90<DI89)*8","v":0},null,null,null,null,null,{"$f":"(MIN(DO90,6/24)-MIN(DO89,6/24)+MAX(DO90,22/24)-MAX(DO89,22/24))*24+(DO90<DO89)*8","v":0},null,null,null,null,null,{"$f":"(MIN(DU90,6/24)-MIN(DU89,6/24)+MAX(DU90,22/24)-MAX(DU89,22/24))*24+(DU90<DU89)*8","v":6.9999999999999982},null,null,null,null,null,{"$f":"(MIN(EA90,6/24)-MIN(EA89,6/24)+MAX(EA90,22/24)-MAX(EA89,22/24))*24+(EA90<EA89)*8","v":0},null,null,null,null,null,{"$f":"(MIN(EG90,6/24)-MIN(EG89,6/24)+MAX(EG90,22/24)-MAX(EG89,22/24))*24+(EG90<EG89)*8","v":0},null,null,null,null,null,{"$f":"(MIN(EM90,6/24)-MIN(EM89,6/24)+MAX(EM90,22/24)-MAX(EM89,22/24))*24+(EM90<EM89)*8","v":6.9999999999999982},null,null,null,null,null,{"$f":"(MIN(ES90,6/24)-MIN(ES89,6/24)+MAX(ES90,22/24)-MAX(ES89,22/24))*24+(ES90<ES89)*8","v":0},null,null,null,null,null,{"$f":"(MIN(EY90,6/24)-MIN(EY89,6/24)+MAX(EY90,22/24)-MAX(EY89,22/24))*24+(EY90<EY89)*8","v":0},null,null,null,null,null,{"$f":"(MIN(FE90,6/24)-MIN(FE89,6/24)+MAX(FE90,22/24)-MAX(FE89,22/24))*24+(FE90<FE89)*8","v":6.5},null,null,null,null,null,{"$f":"(MIN(FK90,6/24)-MIN(FK89,6/24)+MAX(FK90,22/24)-MAX(FK89,22/24))*24+(FK90<FK89)*8","v":0},null,null,null,null,null,{"$f":"(MIN(FQ90,6/24)-MIN(FQ89,6/24)+MAX(FQ90,22/24)-MAX(FQ89,22/24))*24+(FQ90<FQ89)*8","v":0},null,null,null,null,null,{"$f":"(MIN(FW90,6/24)-MIN(FW89,6/24)+MAX(FW90,22/24)-MAX(FW89,22/24))*24+(FW90<FW89)*8","v":6.5},null,null,null,null,null,{"$f":"(MIN(GC90,6/24)-MIN(GC89,6/24)+MAX(GC90,22/24)-MAX(GC89,22/24))*24+(GC90<GC89)*8","v":0},null,null,null,null,null,{"$f":"(MIN(GI90,6/24)-MIN(GI89,6/24)+MAX(GI90,22/24)-MAX(GI89,22/24))*24+(GI90<GI89)*8","v":0},null,null,null,null,null,{"$f":"(MIN(GO90,6/24)-MIN(GO89,6/24)+MAX(GO90,22/24)-MAX(GO89,22/24))*24+(GO90<GO89)*8","v":6.5},null,null,null,null,null,null,null,null,null,null,null,null,null,null,null,null,null,null,null,null,null,null,null,null,null,null,null,null,null,null,null,null,null,null,null,{"$f":"SUM(AC93:HF93)","v":68.5}]
[]
[null,null,null,null,null,null,null,null,null,null,null,null,null,null,null,null,null,null,null,null,null,null,null,"пр",null,null,null,null,null,null,null,null,null,null,null,null,null,null,null,null,null,null,null,null,null,null,null,null,null,null,null,null,null,null,null,null,null,null,null,null,null,null,null,null,null,null,null,null,null,null,null,null,null,null,null,null,null,null,null,null,null,null,null,null,null,null,null,null,null,null,null,null,null,null,null,null,null,null,null,null,null,null,null,null,null,null,null,null,null,null,null,null,null,null,null,null,null,null,null,null,null,null,null,null,null,null,null,null,null,null,null,null,null,null,null,null,null,null,null,null,null,null,null,null,null,null,null,null,null,null,null,null,null,null,null,null,null,null,null,null,null,null,null,null,null,null,null,null,null,null,null,null,null,null,null,null,null,null,null,null,null,null,null,null,null,null,null,null,null,null,null,null,null,null,null,null,null,null,null,null,null,null,null,null,null,null,null,null,null,null,null,null,null,null,null,null,null,null,null,null,null,null,null,null,null,null,null,null,null,null,null,null,{"$f":"SUM(AC95:HF95)","v":0}]

{"sheet":"К.П. СПИСОК СОТРУДНИКОВ","index":2,"n_rows":13,"n_cols":8,"rows_kept":13,"cut":false,"hidden":false,"merged":[[8,2,8,4],[9,2,9,4],[10,2,10,4],[11,2,11,4],[12,2,12,4],[7,2,7,4],[1,0,1,8],[3,2,3,4],[4,2,4,4],[5,2,5,4],[6,2,6,4]]}
[]
["С ГРАФИКОМ РАБОТЫ НА _________________ ОЗНАКОМЛЕН(А)"]
[]
[1,"Слезинский В.Е.",null,null,null,"\"____\"___________2020",null,2020]
[2,"Медведев А.П.",null,null,null,"\"____\"___________2020",null,2020]
[3,"Береговой Г.П.",null,null,null,"\"____\"___________2020",null,2020]
[4,"Воротынцева В.Н.",null,null,null,"\"____\"___________2020",null,2020]
[5,"Окорочкова О.Т.",null,null,null,"\"____\"___________2020",null,2020]
[6,"Пермякова Т.М.",null,null,null,"\"____\"___________2020",null,2020]
[7,"Алексеева Р.И.",null,null,null,"\"____\"___________2020",null,2020]
[8,"Перминов К.И.",null,null,null,"\"____\"___________2020",null,2020]
[9,"Бутелин  Ю.Н. ",null,null,null,"\"____\"___________2020",null,2020]
[10,"Медведев А.П.",null,null,null,"\"____\"___________2020",null,2020]

{"sheet":"И.Б. ИЮНЬ 2020 ","index":3,"n_rows":36,"n_cols":257,"rows_kept":36,"cut":false,"hidden":false,"merged":[[14,250,14,254],[15,0,15,227],[15,250,15,254],[16,0,16,227],[16,250,16,254],[17,250,17,254],[18,0,19,4],[18,5,19,22],[18,23,19,27],[18,28,19,33],[18,34,19,39],[18,40,19,45],[18,46,19,51],[18,52,19,57],[18,58,19,63],[18,208,19,213],[13,250,13,254],[0,241,0,242],[1,0,1,2],[1,241,1,242],[2,0,2,2],[2,241,2,242],[3,0,3,2],[3,241,3,242],[18,64,19,69],[18,70,19,75],[18,76,19,81],[18,82,19,87],[4,241,4,242],[7,0,7,76],[11,210,11,227],[11,235,12,235],[12,211,12,219],[18,88,19,93],[18,94,19,99],[14,0,14,227],[18,166,19,171],[18,100,19,105],[18,106,19,111],[18,112,19,117],[18,118,19,123],[18,124,19,129],[18,130,19,135],[18,136,19,141],[18,142,19,147],[18,148,19,153],[18,154,19,159],[18,160,19,165],[18,172,19,177],[18,178,19,183],[18,184,19,189],[18,190,19,195],[18,196,19,201],[20,184,20,189],[20,190,20,195],[20,196,20,201],[18,214,18,232],[18,250,18,254],[19,214,19,228],[19,250,19,254],[18,202,19,207],[20,154,20,159],[20,160,20,165],[20,166,20,171],[20,172,20,177],[20,178,20,183],[20,124,20,129],[20,130,20,135],[20,136,20,141],[20,142,20,147],[20,148,20,153],[20,94,20,99],[20,100,20,105],[20,106,20,111],[20,112,20,117],[20,118,20,123],[20,202,20,207],[20,208,20,212],[35,73,39,131],[17,24,17,27],[17,28,17,33],[20,28,20,33],[20,34,20,39],[20,40,20,45],[20,46,20,51],[20,52,20,57],[20,58,20,63],[20,64,20,69],[20,70,20,75],[20,76,20,81],[20,82,20,87],[20,88,20,93]]}
[]
[]
[]
[]
[null,null,null,null,null,null,null,null,{"$f":"IF(OR(#REF!<D3,AND(#REF!<D2,#REF!=D3)),$CN$19,IF(OR(#REF!>D3,AND(#REF!>D2,#REF!=D3)),0,DAY(A2)))","v":{"$error":"#REF!"}}]
[]
[null,null,null,null,null,null,null,null,null,null,null,null,null,null,null,null,null,null,null,null,null,null,null,null,null,null,null,null,null,null,null,null,null,null,null,null,null,null,null,null,null,null,null,null,null,null,null,null,null,null,null,null,null,null,null,null,null,null,null,null,null,null,null,null,null,null,null,null,null,null,null,null,null,null,null,null,null,null,null,null,null,null,null,null,null,null,null,null,null,null,null,null,null,null,null,null,null,null,null,null,null,null,null,null,null,null,null,null,null,null,null,null,null,null,null,null,null,null,null,null,null,null,null,null,null,null,null,null,null,null,null,null,null,null,null,null,null,null,null,null,null,null,null,null,null,null,null,null,null,null,null,null,null,null,null,null,null,null,null,null,null,null,null,null,null,null,null,null,null,null,null,null,null,null,null,null,null,null,null,null,null,null,null,null,null,null,null,null,null,null,null,null,null,null,null,null,null,null,null,null,null,null,null,null,null,null,null,null,1]
[null,null,null,null,null,null,null,null,null,null,null,null,null,null,null,null,null,null,null,null,null,null,null,null,null,null,null,null,null,null,null,null,null,null,null,null,null,null,null,null,null,null,null,null,null,null,null,null,null,null,null,null,null,null,null,null,null,null,null,null,null,null,null,null,null,null,null,null,null,null,null,null,null,null,null,null,null,null,null,null,null,null,null,null,null,null,null,null,null,null,null,null,null,null,null,null,null,null,null,null,null,null,null,null,null,null,null,null,null,null,null,null,null,null,null,null,null,null,null,null,null,null,null,null,null,null,null,null,null,null,null,null,null,null,null,null,null,null,null,null,null,null,null,null,null,null,null,null,null,null,null,null,null,null,null,null,null,null,null,null,null,null,null,null,null,null,null,null,null,null,null,null,null,null,null,null,null,null,null,null,null,null,null,null,null,null,null,null,null,null,null,null,null,null,null,null,null,null,null,null,null,null,null,null,null,null,null,null,2]
[]
[null,null,null,null,null,null,null,null,null,null,null,null,null,null,null,null,null,null,null,null,null,null,null,null,null,null,null,null,null,null,null,null,null,null,null,null,null,null,null,null,null,null,null,null,null,null,null,null,null,null,null,null,null,null,null,null,null,null,null,null,null,null,null,null,null,null,null,null,null,null,null,null,null,null,null,null,null,null,null,null,null,null,null,null,null,null,null,null,null,null,null,null,null,null,null,null,null,null,null,null,null,null,null,null,null,null,null,null,null,null,null,null,null,null,null,null,null,null,null,null,null,null,null,null,null,null,null,null,null,null,null,null,null,null,null,null,null,null,null,null,null,null,null,null,null,null,null,null,null,null,null,null,null,null,null,null,null,null,null,null,null,null,null,null,null,null,null,null,null,null,null,null,null,null,null,null,null,null,null,null,null,null,null,null,null,null,null,null,null,null,"УТВЕРЖДАЮ"]
[null,null,null,null,null,null,null,null,null,null,null,null,null,null,null,null,null,null,null,null,null,null,null,null,null,null,null,null,null,null,null,null,null,null,null,null,null,null,null,null,null,null,null,null,null,null,null,null,null,null,null,null,null,null,null,null,null,null,null,null,null,null,null,null,null,null,null,null,null,null,null,null,null,null,null,null,null,null,null,null,null,null,null,null,null,null,null,null,null,null,null,null,null,null,null,null,null,null,null,null,null,null,null,null,null,null,null,null,null,null,null,null,null,null,null,null,null,null,null,null,null,null,null,null,null,null,null,null,null,null,null,null,null,null,null,null,null,null,null,null,null,null,null,null,null,null,null,null,null,null,null,null,null,null,null,null,null,null,null,null,null,null,null,null,null,null,null,null,null,null,null,null,null,null,null,null,null,null,null,null,null,null,null,null,null,null,null,null,null,null," "]
[null,null,null,null,null,null,null,null,null,null,null,null,null,null,null,null,null,null,null,null,null,null,null,null,null,null,null,null,null,null,null,null,null,null,null,null,null,null,null,null,null,null,null,null,null,null,null,null,null,null,null,null,null,null,null,null,null,null,null,null,null,null,null,null,null,null,null,null,null,null,null,null,null,null,null,null,null,null,null,null,null,null,null,null,null,null,null,null,null,null,null,null,null,null,null,null,null,null,null,null,null,null,null,null,null,null,null,null,null,null,null,null,null,null,null,null,null,null,null,null,null,null,null,null,null,null,null,null,null,null,null,null,null,null,null,null,null,null,null,null,null,null,null,null,null,null,null,null,null,null,null,null,null,null,null,null,null,null,null,null,null,null,null,null,null,null,null,null,null,null,null,null,null,null,null,null,null,null,null,null,null,null,null,null,null,null,null,null,null,null,"_______________С. А. Сорокина"]
[null,null,null,null,null,null,null,null,null,null,null,null,null,null,null,null,null,null,null,null,null,null,null,null,null,null,null,null,null,null,null,null,null,null,null,null,null,null,null,null,null,null,null,null,null,null,null,null,null,null,null,null,null,null,null,null,null,null,null,null,null,null,null,null,null,null,null,null,null,null,null,null,null,null,null,null,null,null,null,null,null,null,null,null,null,null,null,null,null,null,null,null,null,null,null,null,null,null,null,null,null,null,null,null,null,null,null,null,null,null,null,null,null,null,null,null,null,null,null,null,null,null,null,null,null,null,null,null,null,null,null,null,null,null,null,null,null,null,null,null,null,null,null,null,null,null,null,null,null,null,null,null,null,null,null,null,null,null,null,null,null,null,null,null,null,null,null,null,null,null,null,null,null,null,null,null,null,null,null,null,null,null,null,null,null,null,null,null,null,null,"« 10 »     февраля    2020г.",null,null,null,null,null,null,null,null,null,null,"апреля"]
[null,null,null,null,null,null,null,null,null,null,null,null,null,null,null,null,null,null,null,null,null,null,null,null,null,null,null,null,null,null,null,null,null,null,null,null,null,null,null,null,null,null,null,null,null,null,null,null,null,null,null,null,null,null,null,null,null,null,null,null,null,null,null,null,null,null,null,null,null,null,null,null,null,null,null,null,null,null,null,null,null,null,null,null,null,null,null,null,null,null,null,null,null,null,null,null,null,null,null,null,null,null,null,null,null,null,null,null,null,null,null,null,null,null,null,null,null,null,null,null,null,null,null,null,null,null,null,null,null,null,null,null,null,null,null,null,null,null,null,null,null,null,null,null,null,null,null,null,null,null,null,null,null,null,null,null,null,null,null,null,null,null,null,null,null,null,null,null,null,null,null,null,null,null,null,null,null,null,null,null,null,null,null,null,null,null,null,null,null,null,null,null,null,null,null,null,null,null,null,null,null,null,null,null,null,null,null,null,null,null,null,null,null,null,null,null,null,null,null,null,null,null,null,null,null,null,null,null,null,null,null,null,null,null,null,null,null,null,null,null,null,null,null,null,null,null,null,null,null,null,null,null,null,null,null,null,1]
["ГРАФИК",null,null,null,null,null,null,null,null,null,null,null,null,null,null,null,null,null,null,null,null,null,null,null,null,null,null,null,null,null,null,null,null,null,null,null,null,null,null,null,null,null,null,null,null,null,null,null,null,null,null,null,null,null,null,null,null,null,null,null,null,null,null,null,null,null,null,null,null,null,null,null,null,null,null,null,null,null,null,null,null,null,null,null,null,null,null,null,null,null,null,null,null,null,null,null,null,null,null,null,null,null,null,null,null,null,null,null,null,null,null,null,null,null,null,null,null,null,null,null,null,null,null,null,null,null,null,null,null,null,null,null,null,null,null,null,null,null,null,null,null,null,null,null,null,null,null,null,null,null,null,null,null,null,null,null,null,null,null,null,null,null,null,null,null,null,null,null,null,null,null,null,null,null,null,null,null,null,null,null,null,null,null,null,null,null,null,null,null,null,null,null,null,null,null,null,null,null,null,null,null,null,null,null,null,null,null,null,null,null,null,null,null,null,null,null,null,null,null,null,null,null,null,null,null,null,null,null,null,null,null,null,null,null,null,null,null,null,null,null,null,null,null,null,null,null,null,null,null,null,null,null,null,null,null,null,0.5]
["УЧЕТА ИСПОЛЬЗОВАНИЯ РАБОЧЕГО ВРЕМЕНИ ОБСЛУЖИВАЮЩЕГО ПЕРСОНАЛА",null,null,null,null,null,null,null,null,null,null,null,null,null,null,null,null,null,null,null,null,null,null,null,null,null,null,null,null,null,null,null,null,null,null,null,null,null,null,null,null,null,null,null,null,null,null,null,null,null,null,null,null,null,null,null,null,null,null,null,null,null,null,null,null,null,null,null,null,null,null,null,null,null,null,null,null,null,null,null,null,null,null,null,null,null,null,null,null,null,null,null,null,null,null,null,null,null,null,null,null,null,null,null,null,null,null,null,null,null,null,null,null,null,null,null,null,null,null,null,null,null,null,null,null,null,null,null,null,null,null,null,null,null,null,null,null,null,null,null,null,null,null,null,null,null,null,null,null,null,null,null,null,null,null,null,null,null,null,null,null,null,null,null,null,null,null,null,null,null,null,null,null,null,null,null,null,null,null,null,null,null,null,null,null,null,null,null,null,null,null,null,null,null,null,null,null,null,null,null,null,null,null,null,null,null,null,null,null,null,null,null,null,null,null,null,null,null,null,null,null,null,null,null,null,null,null,null,null,null,null,null,null,null,null,null,null,null,null,null,null,null,null,null,null,null,null,null,null,null,null,null,null,null,null,null,0.25]
["2020-06-01"]
[]
["№ п/п",null,null,null,null,"Фамилия Инициалы",null,null,null,null,null,null,null,null,null,null,null,null,null,null,null,null,null,"Ставка",null,null,null,null,1,null,null,null,null,null,2,null,null,null,null,null,"1900-01-03",null,null,null,null,null,4,null,null,null,null,null,5,null,null,null,null,null,6,null,null,null,null,null,7,null,null,null,null,null,8,null,null,null,null,null,9,null,null,null,null,null,10,null,null,null,null,null,11,null,null,null,null,null,12,null,null,null,null,null,13,null,null,null,null,null,14,null,null,null,null,null,15,null,null,null,null,null,16,null,null,null,null,null,17,null,null,null,null,null,18,null,null,null,null,null,19,null,null,null,null,null,20,null,null,null,null,null,21,null,null,null,null,null,22,null,null,null,null,null,23,null,null,null,null,null,24,null,null,null,null,null,25,null,null,null,null,null,26,null,null,null,null,null,27,null,null,null,null,null,28,null,null,null,null,null,{"$f":"IF(29<=$IE$7,29,\"-\")","v":"-"},null,null,null,null,null,{"$f":"IF(30<=$IE$7,30,\"-\")","v":"-"},null,null,null,null,null,{"$f":"IF(31<=$IE$7,31,\"-\")","v":"-"},null,null,null,null,null,"ВСЕГО"]
[null,null,null,null,null,null,null,null,null,null,null,null,null,null,null,null,null,null,null,null,null,null,null,null,null,null,null,null,null,null,null,null,null,null,null,null,null,null,null,null,null,null,null,null,null,null,null,null,null,null,null,null,null,null,null,null,null,null,null,null,null,null,null,null,null,null,null,null,null,null,null,null,null,null,null,null,null,null,null,null,null,null,null,null,null,null,null,null,null,null,null,null,null,null,null,null,null,null,null,null,null,null,null,null,null,null,null,null,null,null,null,null,null,null,null,null,null,null,null,null,null,null,null,null,null,null,null,null,null,null,null,null,null,null,null,null,null,null,null,null,null,null,null,null,null,null,null,null,null,null,null,null,null,null,null,null,null,null,null,null,null,null,null,null,null,null,null,null,null,null,null,null,null,null,null,null,null,null,null,null,null,null,null,null,null,null,null,null,null,null,null,null,null,null,null,null,null,null,null,null,null,null,null,null,null,null,null,null,null,null,null,null,null,null,"дней",null,null,null,null,null,null,null,null,null,null,null,null,null,null,null,null,null,"часов"]
[null,null,null,null,null,null,null,null,null,null,null,null,null,null,null,null,null,null,null,null,null,null,null,null,null,null,null,null,{"$f":"WEEKDAY(AC19)","v":"1900-01-01"},null,null,null,null,null,{"$f":"WEEKDAY(AI19)","v":"1900-01-02"},null,null,null,null,null,{"$f":"WEEKDAY(AO19)","v":"1900-01-03"},null,null,null,null,null,{"$f":"WEEKDAY(AU19)","v":"1900-01-04"},null,null,null,null,null,{"$f":"WEEKDAY(BA19)","v":"1900-01-05"},null,null,null,null,null,{"$f":"WEEKDAY(BG19)","v":"1900-01-06"},null,null,null,null,null,{"$f":"WEEKDAY(BM19)","v":"1900-01-07"}]
[]
[]
[]
[]
[]
[]
[]
[]
[]
[]
[]
[]
[]
[]
[null,null,null,null,null,null,null,null,null,null,null,null,null,null,null,null,null,null,null,null,null,null,null,null,null,null,null,null,null,null,null,null,null,null,null,null,null,null,null,null,null,null,null,null,null,null,null,null,null,null,null,null,null,null,null,null,null,null,null,null,null,null,null,null,null,null,null,null,null,null,null,null,null,"здесь должен быть ПН"]